Workbook

Sheet Cover
A3: Navigator
C5: =Client_Name -> SumProduct Pty Limited
C6: =Model_Name -> SP Depreciating Existing Capex Example.xlsm
C14: Primary Developer: Liam Bastick
C16: General Cover Notes:
C17: Simple example demonstrating how to depreciate existing aggregated capital expenditure.
C21: Any queries, please e-mail: | G21: liam.bastick@sumproduct.com
C22: Website: | G22: www.sumproduct.com

Sheet Navigator
A1: Navigator
A2: =Model_Name -> SP Depreciating Existing Capex Example.xlsm
A3: Navigator
E4: Error Checks: | G4: =Overall_Error_Check -> 0
B7: 1 | C7: Table of Contents
F9: Cover
F10: Style Guide
F11: Model Parameters
F12: Depreciating Existing Capex
F13: Timing
F14: Error Checks

Sheet Style Guide
A1: =IF(ISERROR(RIGHT(CELL("filename",A1),LEN(CELL("filename",A1))-FIND("]",CELL("filename",A1)))), "", RIGHT(CELL("filename",A1),LEN(CELL("filename",A1))-FIND("]",CELL("filename",A1)))) -> Style Guide
A2: =Model_Name -> SP Depreciating Existing Capex Example.xlsm
A3: Navigator
E4: Error Checks: | I4: =Overall_Error_Check -> 0
B6: =MAX($B$5:$B5)+1 -> 1 | C6: Formatting of Headers / Dividers
C8: Description | I8: Display | K8: Style Name
C10: Sheet Title | I10: =C10 -> Sheet Title | K10: Sheet Title
C11: Model Name | I11: =C11 -> Model Name | K11: Model Name
C13: Header 1 | I13: =C13 -> Header 1 | K13: Header 1
C14: Header 2 | I14: =C14 -> Header 2 | K14: Header 2
C15: Header 3 | I15: =C15 -> Header 3 | K15: Header 3
C16: Header 4 | I16: =C16 -> Header 4 | K16: Header 4
C18: Notes | I18: =C18 -> Notes | K18: Notes
C20: Table Heading | I20: =C20 -> Table Heading | K20: Table Heading
B23: =MAX($B$5:$B22)+1 -> 2 | C23: Individual Cell Styles
C25: Description | I25: Display | K25: Style Name
C27: Assumption | I27: Assumption | K27: =C27 -> Assumption
C29: Constraint | I29: =C29 -> Constraint | K29: =C29 -> Constraint
C31: Empty | K31: =C31 -> Empty
C33: Error Check | I33: 0 | K33: =C33 -> Error Check
C35: Hyperlink | I35: Hyperlink | K35: =C35 -> Hyperlink
C37: Internal Reference | I37: ='Error Checks'!E12 -> Unused | K37: =C37 -> Internal Reference
C39: Line Calculation | I39: 77 | K39: Line Calc
C41: Line Total | I41: =I39 -> 77 | K41: =C41 -> Line Total
C43: Parameter | I43: 365 | K43: =C43 -> Parameter
C45: Range Name Description | I45: Not_Named | K45: =C45 -> Range Name Description
C47: Row Reference | I47: =ROW(C47) -> 47 | K47: Row Ref
C49: Row Summary | I49: =I41 -> 77 | K49: =C49 -> Row Summary
C51: Units | I51: A$ | K51: =C51 -> Units
C53: WIP | K53: =C53 -> WIP
B56: =MAX($B$5:$B55)+1 -> 3 | C56: Numerical Styles
C58: Description | I58: Display | K58: Style Name
C60: Comma | I60: 123456.789 | K60: =C60 -> Comma
C62: Comma [0] | I62: -123456.789 | K62: Comma [0]
C64: Currency | I64: 123456.789 | K64: Currency
C66: Currency [0] | I66: 123456.789 | K66: Currency [0]
C68: Date | I68: =TODAY() -> 2019-10-13 | K68: =C68 -> Date
C70: Date Heading | I70: =TODAY() -> 2019-10-13 | K70: =C70 -> Date Heading
C72: Numbers 0 | I72: -123456.789 | K72: =C72 -> Numbers 0
C74: Percent | I74: 0.5 | K74: =C74 -> Percent

Sheet Model Parameters
A1: =IF(ISERROR(RIGHT(CELL("filename",A1),LEN(CELL("filename",A1))-FIND("]",CELL("filename",A1)))), "", RIGHT(CELL("filename",A1),LEN(CELL("filename",A1))-FIND("]",CELL("filename",A1)))) -> Model Parameters
A2: =Model_Name -> SP Depreciating Existing Capex Example.xlsm
A3: Navigator
E4: Error Checks: | I4: =Overall_Error_Check -> 0
B6: =MAX($B$5:$B5)+1 -> 1 | C6: General
C8: Key Inputs
E10: General
E11: Model Name | G11: =IF(ISERROR(OR(FIND("[",CELL("filename",A1)),FIND("]",CELL("filename",A1)))),"",MID(CELL("filename",A1),FIND("[",CELL("filename",A1))+1,FIND("]",CELL("filename",A1))-FIND("[",CELL("filename",A1))-1)) -> SP Depreciating Existing Capex Example.xlsm
E12: Client Name | G12: SumProduct Pty Limited
B15: =MAX($B$5:$B14)+1 -> 2 | C15: General Range Names
C17: Technical Assumptions
E19: Days in Year | G19: 365
E20: Months in Month | G20: 1
E21: Months in Quarter | G21: 3
E22: Months in Half Yr | G22: 6
E23: Months in Year | G23: 12
E24: Quarters in Year | G24: 4
E26: Rounding Accuracy | G26: 5
E28: Very Large Number | G28: 1e+99
E29: Very Small Number | G29: 1e-08
E31: Thousand | G31: 1000

Sheet Depreciating Existing Capex
A1: =IF(ISERROR(RIGHT(CELL("filename",A1),LEN(CELL("filename",A1))-FIND("]",CELL("filename",A1)))), "", RIGHT(CELL("filename",A1),LEN(CELL("filename",A1))-FIND("]",CELL("filename",A1)))) -> Depreciating Existing Capex
A2: =Model_Name -> SP Depreciating Existing Capex Example.xlsm
A3: Navigator
B4: Error Checks: | F4: =Overall_Error_Check -> 0
J5: =Timing!J5 -> 2020-03-31 | K5: =Timing!K5 -> 2020-06-30 | L5: =Timing!L5 -> 2020-09-30 | M5: =Timing!M5 -> 2020-12-31 | N5: =Timing!N5 -> 2021-03-31 | O5: =Timing!O5 -> 2021-06-30 | P5: =Timing!P5 -> 2021-09-30 | Q5: =Timing!Q5 -> 2021-12-31 | R5: =Timing!R5 -> 2022-03-31 | S5: =Timing!S5 -> 2022-06-30 | T5: =Timing!T5 -> 2022-09-30 | U5: =Timing!U5 -> 2022-12-31 | V5: =Timing!V5 -> 2023-03-31 | W5: =Timing!W5 -> 2023-06-30 | X5: =Timing!X5 -> 2023-09-30 | Y5: =Timing!Y5 -> 2023-12-31 | Z5: =Timing!Z5 -> 2024-03-31 | AA5: =Timing!AA5 -> 2024-06-30 | AB5: =Timing!AB5 -> 2024-09-30 | AC5: =Timing!AC5 -> 2024-12-31 | AD5: =Timing!AD5 -> 2025-03-31 | AE5: =Timing!AE5 -> 2025-06-30 | AF5: =Timing!AF5 -> 2025-09-30 | AG5: =Timing!AG5 -> 2025-12-31 | AH5: =Timing!AH5 -> 2026-03-31 | AI5: =Timing!AI5 -> 2026-06-30 | AJ5: =Timing!AJ5 -> 2026-09-30 | AK5: =Timing!AK5 -> 2026-12-31 | AL5: =Timing!AL5 -> 2027-03-31 | AM5: =Timing!AM5 -> 2027-06-30 | AN5: =Timing!AN5 -> 2027-09-30 | AO5: =Timing!AO5 -> 2027-12-31 | AP5: =Timing!AP5 -> 2028-03-31 | AQ5: =Timing!AQ5 -> 2028-06-30 | AR5: =Timing!AR5 -> 2028-09-30 | AS5: =Timing!AS5 -> 2028-12-31 | AT5: =Timing!AT5 -> 2029-03-31 | AU5: =Timing!AU5 -> 2029-06-30 | AV5: =Timing!AV5 -> 2029-09-30 | AW5: =Timing!AW5 -> 2029-12-31
C6: =Timing!C6 -> Start Date | J6: =Timing!J6 -> 2020-01-01 | K6: =Timing!K6 -> 2020-04-01 | L6: =Timing!L6 -> 2020-07-01 | M6: =Timing!M6 -> 2020-10-01 | N6: =Timing!N6 -> 2021-01-01 | O6: =Timing!O6 -> 2021-04-01 | P6: =Timing!P6 -> 2021-07-01 | Q6: =Timing!Q6 -> 2021-10-01 | R6: =Timing!R6 -> 2022-01-01 | S6: =Timing!S6 -> 2022-04-01 | T6: =Timing!T6 -> 2022-07-01 | U6: =Timing!U6 -> 2022-10-01 | V6: =Timing!V6 -> 2023-01-01 | W6: =Timing!W6 -> 2023-04-01 | X6: =Timing!X6 -> 2023-07-01 | Y6: =Timing!Y6 -> 2023-10-01 | Z6: =Timing!Z6 -> 2024-01-01 | AA6: =Timing!AA6 -> 2024-04-01 | AB6: =Timing!AB6 -> 2024-07-01 | AC6: =Timing!AC6 -> 2024-10-01 | AD6: =Timing!AD6 -> 2025-01-01 | AE6: =Timing!AE6 -> 2025-04-01 | AF6: =Timing!AF6 -> 2025-07-01 | AG6: =Timing!AG6 -> 2025-10-01 | AH6: =Timing!AH6 -> 2026-01-01 | AI6: =Timing!AI6 -> 2026-04-01 | AJ6: =Timing!AJ6 -> 2026-07-01 | AK6: =Timing!AK6 -> 2026-10-01 | AL6: =Timing!AL6 -> 2027-01-01 | AM6: =Timing!AM6 -> 2027-04-01 | AN6: =Timing!AN6 -> 2027-07-01 | AO6: =Timing!AO6 -> 2027-10-01 | AP6: =Timing!AP6 -> 2028-01-01 | AQ6: =Timing!AQ6 -> 2028-04-01 | AR6: =Timing!AR6 -> 2028-07-01 | AS6: =Timing!AS6 -> 2028-10-01 | AT6: =Timing!AT6 -> 2029-01-01 | AU6: =Timing!AU6 -> 2029-04-01 | AV6: =Timing!AV6 -> 2029-07-01 | AW6: =Timing!AW6 -> 2029-10-01
C7: =Timing!C7 -> End Date | J7: =Timing!J7 -> 2020-03-31 | K7: =Timing!K7 -> 2020-06-30 | L7: =Timing!L7 -> 2020-09-30 | M7: =Timing!M7 -> 2020-12-31 | N7: =Timing!N7 -> 2021-03-31 | O7: =Timing!O7 -> 2021-06-30 | P7: =Timing!P7 -> 2021-09-30 | Q7: =Timing!Q7 -> 2021-12-31 | R7: =Timing!R7 -> 2022-03-31 | S7: =Timing!S7 -> 2022-06-30 | T7: =Timing!T7 -> 2022-09-30 | U7: =Timing!U7 -> 2022-12-31 | V7: =Timing!V7 -> 2023-03-31 | W7: =Timing!W7 -> 2023-06-30 | X7: =Timing!X7 -> 2023-09-30 | Y7: =Timing!Y7 -> 2023-12-31 | Z7: =Timing!Z7 -> 2024-03-31 | AA7: =Timing!AA7 -> 2024-06-30 | AB7: =Timing!AB7 -> 2024-09-30 | AC7: =Timing!AC7 -> 2024-12-31 | AD7: =Timing!AD7 -> 2025-03-31 | AE7: =Timing!AE7 -> 2025-06-30 | AF7: =Timing!AF7 -> 2025-09-30 | AG7: =Timing!AG7 -> 2025-12-31 | AH7: =Timing!AH7 -> 2026-03-31 | AI7: =Timing!AI7 -> 2026-06-30 | AJ7: =Timing!AJ7 -> 2026-09-30 | AK7: =Timing!AK7 -> 2026-12-31 | AL7: =Timing!AL7 -> 2027-03-31 | AM7: =Timing!AM7 -> 2027-06-30 | AN7: =Timing!AN7 -> 2027-09-30 | AO7: =Timing!AO7 -> 2027-12-31 | AP7: =Timing!AP7 -> 2028-03-31 | AQ7: =Timing!AQ7 -> 2028-06-30 | AR7: =Timing!AR7 -> 2028-09-30 | AS7: =Timing!AS7 -> 2028-12-31 | AT7: =Timing!AT7 -> 2029-03-31 | AU7: =Timing!AU7 -> 2029-06-30 | AV7: =Timing!AV7 -> 2029-09-30 | AW7: =Timing!AW7 -> 2029-12-31
C8: =Timing!C8 -> Number of Days | J8: =Timing!J8 -> 91 | K8: =Timing!K8 -> 91 | L8: =Timing!L8 -> 92 | M8: =Timing!M8 -> 92 | N8: =Timing!N8 -> 90 | O8: =Timing!O8 -> 91 | P8: =Timing!P8 -> 92 | Q8: =Timing!Q8 -> 92 | R8: =Timing!R8 -> 90 | S8: =Timing!S8 -> 91 | T8: =Timing!T8 -> 92 | U8: =Timing!U8 -> 92 | V8: =Timing!V8 -> 90 | W8: =Timing!W8 -> 91 | X8: =Timing!X8 -> 92 | Y8: =Timing!Y8 -> 92 | Z8: =Timing!Z8 -> 91 | AA8: =Timing!AA8 -> 91 | AB8: =Timing!AB8 -> 92 | AC8: =Timing!AC8 -> 92 | AD8: =Timing!AD8 -> 90 | AE8: =Timing!AE8 -> 91 | AF8: =Timing!AF8 -> 92 | AG8: =Timing!AG8 -> 92 | AH8: =Timing!AH8 -> 90 | AI8: =Timing!AI8 -> 91 | AJ8: =Timing!AJ8 -> 92 | AK8: =Timing!AK8 -> 92 | AL8: =Timing!AL8 -> 90 | AM8: =Timing!AM8 -> 91 | AN8: =Timing!AN8 -> 92 | AO8: =Timing!AO8 -> 92 | AP8: =Timing!AP8 -> 91 | AQ8: =Timing!AQ8 -> 91 | AR8: =Timing!AR8 -> 92 | AS8: =Timing!AS8 -> 92 | AT8: =Timing!AT8 -> 90 | AU8: =Timing!AU8 -> 91 | AV8: =Timing!AV8 -> 92 | AW8: =Timing!AW8 -> 92
C9: =Timing!C9 -> Counter | J9: =Timing!J9 -> 1 | K9: =Timing!K9 -> 2 | L9: =Timing!L9 -> 3 | M9: =Timing!M9 -> 4 | N9: =Timing!N9 -> 5 | O9: =Timing!O9 -> 6 | P9: =Timing!P9 -> 7 | Q9: =Timing!Q9 -> 8 | R9: =Timing!R9 -> 9 | S9: =Timing!S9 -> 10 | T9: =Timing!T9 -> 11 | U9: =Timing!U9 -> 12 | V9: =Timing!V9 -> 13 | W9: =Timing!W9 -> 14 | X9: =Timing!X9 -> 15 | Y9: =Timing!Y9 -> 16 | Z9: =Timing!Z9 -> 17 | AA9: =Timing!AA9 -> 18 | AB9: =Timing!AB9 -> 19 | AC9: =Timing!AC9 -> 20 | AD9: =Timing!AD9 -> 21 | AE9: =Timing!AE9 -> 22 | AF9: =Timing!AF9 -> 23 | AG9: =Timing!AG9 -> 24 | AH9: =Timing!AH9 -> 25 | AI9: =Timing!AI9 -> 26 | AJ9: =Timing!AJ9 -> 27 | AK9: =Timing!AK9 -> 28 | AL9: =Timing!AL9 -> 29 | AM9: =Timing!AM9 -> 30 | AN9: =Timing!AN9 -> 31 | AO9: =Timing!AO9 -> 32 | AP9: =Timing!AP9 -> 33 | AQ9: =Timing!AQ9 -> 34 | AR9: =Timing!AR9 -> 35 | AS9: =Timing!AS9 -> 36 | AT9: =Timing!AT9 -> 37 | AU9: =Timing!AU9 -> 38 | AV9: =Timing!AV9 -> 39 | AW9: =Timing!AW9 -> 40
B11: =MAX($B$10:$B10)+1 -> 1 | C11: Longhand Method
C13: Assumptions
D15: Existing Capex
E17: Opening Net Book Value | H17: 10000
E18: Spend Profile | J18: 0.3 | K18: 0.1 | L18: 0.2 | M18: =1-SUM(J18:L18) -> 0.4
E20: Assumed Growth in Existing Capex | H20: 0.05
E22: Depreciation Profile | J22: 0.04 | K22: 0.04 | L22: 0.04 | M22: 0.04 | N22: 0.04 | O22: 0.04 | P22: 0.04 | Q22: 0.04 | R22: 0.04 | S22: 0.04 | T22: 0.04 | U22: 0.56 | AC22: =1-SUM(J22:AB22) -> 0
E24: Final Period | H24: =MROUND(SUMIF(J24:AW24,1,J9:AW9),Quarters_in_Year) -> 12 | J24: =(SUM($J22:J22)=1)*(SUM($I24:I24)=0) -> 0 | K24: =(SUM($J22:K22)=1)*(SUM($I24:J24)=0) -> 0 | L24: =(SUM($J22:L22)=1)*(SUM($I24:K24)=0) -> 0 | M24: =(SUM($J22:M22)=1)*(SUM($I24:L24)=0) -> 0 | N24: =(SUM($J22:N22)=1)*(SUM($I24:M24)=0) -> 0 | O24: =(SUM($J22:O22)=1)*(SUM($I24:N24)=0) -> 0 | P24: =(SUM($J22:P22)=1)*(SUM($I24:O24)=0) -> 0 | Q24: =(SUM($J22:Q22)=1)*(SUM($I24:P24)=0) -> 0 | R24: =(SUM($J22:R22)=1)*(SUM($I24:Q24)=0) -> 0 | S24: =(SUM($J22:S22)=1)*(SUM($I24:R24)=0) -> 0 | T24: =(SUM($J22:T22)=1)*(SUM($I24:S24)=0) -> 0 | U24: =(SUM($J22:U22)=1)*(SUM($I24:T24)=0) -> 1 | V24: =(SUM($J22:V22)=1)*(SUM($I24:U24)=0) -> 0 | W24: =(SUM($J22:W22)=1)*(SUM($I24:V24)=0) -> 0 | X24: =(SUM($J22:X22)=1)*(SUM($I24:W24)=0) -> 0 | Y24: =(SUM($J22:Y22)=1)*(SUM($I24:X24)=0) -> 0 | Z24: =(SUM($J22:Z22)=1)*(SUM($I24:Y24)=0) -> 0 | AA24: =(SUM($J22:AA22)=1)*(SUM($I24:Z24)=0) -> 0 | AB24: =(SUM($J22:AB22)=1)*(SUM($I24:AA24)=0) -> 0 | AC24: =(SUM($J22:AC22)=1)*(SUM($I24:AB24)=0) -> 0 | AD24: =(SUM($J22:AD22)=1)*(SUM($I24:AC24)=0) -> 0 | AE24: =(SUM($J22:AE22)=1)*(SUM($I24:AD24)=0) -> 0 | AF24: =(SUM($J22:AF22)=1)*(SUM($I24:AE24)=0) -> 0 | AG24: =(SUM($J22:AG22)=1)*(SUM($I24:AF24)=0) -> 0 | AH24: =(SUM($J22:AH22)=1)*(SUM($I24:AG24)=0) -> 0 | AI24: =(SUM($J22:AI22)=1)*(SUM($I24:AH24)=0) -> 0 | AJ24: =(SUM($J22:AJ22)=1)*(SUM($I24:AI24)=0) -> 0 | AK24: =(SUM($J22:AK22)=1)*(SUM($I24:AJ24)=0) -> 0 | AL24: =(SUM($J22:AL22)=1)*(SUM($I24:AK24)=0) -> 0 | AM24: =(SUM($J22:AM22)=1)*(SUM($I24:AL24)=0) -> 0 | AN24: =(SUM($J22:AN22)=1)*(SUM($I24:AM24)=0) -> 0 | AO24: =(SUM($J22:AO22)=1)*(SUM($I24:AN24)=0) -> 0 | AP24: =(SUM($J22:AP22)=1)*(SUM($I24:AO24)=0) -> 0 | AQ24: =(SUM($J22:AQ22)=1)*(SUM($I24:AP24)=0) -> 0 | AR24: =(SUM($J22:AR22)=1)*(SUM($I24:AQ24)=0) -> 0 | AS24: =(SUM($J22:AS22)=1)*(SUM($I24:AR24)=0) -> 0 | AT24: =(SUM($J22:AT22)=1)*(SUM($I24:AS24)=0) -> 0 | AU24: =(SUM($J22:AU22)=1)*(SUM($I24:AT24)=0) -> 0 | AV24: =(SUM($J22:AV22)=1)*(SUM($I24:AU24)=0) -> 0 | AW24: =(SUM($J22:AW22)=1)*(SUM($I24:AV24)=0) -> 0
E26: Example Capex | H26: 1000 | J26: =IF(J$9<=Quarters_in_Year,J$18*$H26,F26*(1+$H$20)) -> 300 | K26: =IF(K$9<=Quarters_in_Year,K$18*$H26,G26*(1+$H$20)) -> 100 | L26: 200 | M26: 400 | N26: 315 | O26: 105 | P26: 210 | Q26: 420 | R26: 330.75 | S26: 110.25 | T26: 220.5 | U26: 441 | V26: 347.2875 | W26: 115.7625 | X26: 231.525 | Y26: 463.05 | Z26: 364.651875 | AA26: 121.550625 | AB26: 243.10125 | AC26: 486.2025 | AD26: 382.8844688 | AE26: 127.6281563 | AF26: 255.2563125 | AG26: 510.512625 | AH26: 402.0286922 | AI26: 134.0095641 | AJ26: 268.0191281 | AK26: 536.0382563 | AL26: 422.1301268 | AM26: 140.7100423 | AN26: 281.4200845 | AO26: 562.8401691 | AP26: 443.2366331 | AQ26: 147.7455444 | AR26: 295.4910888 | AS26: 590.9821775 | AT26: 465.3984648 | AU26: 155.1328216 | AV26: 310.2656432 | AW26: 620.5312864
C29: Illustrative Calculation (Using Example Annual Capex)
D31: Depreciation Grid
F33: =OFFSET($I$9,,ROWS($E$33:$E33)) -> 1 | H33: =OFFSET($I$26,,ROWS($E$33:$E33)) -> 300 | J33: =IF(J$9>=$F33,$H33*OFFSET(J$22,,1-$F33),) -> 12 | K33: =IF(K$9>=$F33,$H33*OFFSET(K$22,,1-$F33),) -> 12 | L33: =IF(L$9>=$F33,$H33*OFFSET(L$22,,1-$F33),) -> 12 | M33: =IF(M$9>=$F33,$H33*OFFSET(M$22,,1-$F33),) -> 12 | N33: =IF(N$9>=$F33,$H33*OFFSET(N$22,,1-$F33),) -> 12 | O33: =IF(O$9>=$F33,$H33*OFFSET(O$22,,1-$F33),) -> 12 | P33: =IF(P$9>=$F33,$H33*OFFSET(P$22,,1-$F33),) -> 12 | Q33: =IF(Q$9>=$F33,$H33*OFFSET(Q$22,,1-$F33),) -> 12 | R33: =IF(R$9>=$F33,$H33*OFFSET(R$22,,1-$F33),) -> 12 | S33: =IF(S$9>=$F33,$H33*OFFSET(S$22,,1-$F33),) -> 12 | T33: =IF(T$9>=$F33,$H33*OFFSET(T$22,,1-$F33),) -> 12 | U33: =IF(U$9>=$F33,$H33*OFFSET(U$22,,1-$F33),) -> 168 | V33: =IF(V$9>=$F33,$H33*OFFSET(V$22,,1-$F33),) -> 0 | W33: =IF(W$9>=$F33,$H33*OFFSET(W$22,,1-$F33),) -> 0 | X33: =IF(X$9>=$F33,$H33*OFFSET(X$22,,1-$F33),) -> 0 | Y33: =IF(Y$9>=$F33,$H33*OFFSET(Y$22,,1-$F33),) -> 0 | Z33: =IF(Z$9>=$F33,$H33*OFFSET(Z$22,,1-$F33),) -> 0 | AA33: =IF(AA$9>=$F33,$H33*OFFSET(AA$22,,1-$F33),) -> 0 | AB33: =IF(AB$9>=$F33,$H33*OFFSET(AB$22,,1-$F33),) -> 0 | AC33: =IF(AC$9>=$F33,$H33*OFFSET(AC$22,,1-$F33),) -> 0 | AD33: =IF(AD$9>=$F33,$H33*OFFSET(AD$22,,1-$F33),) -> 0 | AE33: =IF(AE$9>=$F33,$H33*OFFSET(AE$22,,1-$F33),) -> 0 | AF33: =IF(AF$9>=$F33,$H33*OFFSET(AF$22,,1-$F33),) -> 0 | AG33: =IF(AG$9>=$F33,$H33*OFFSET(AG$22,,1-$F33),) -> 0 | AH33: =IF(AH$9>=$F33,$H33*OFFSET(AH$22,,1-$F33),) -> 0 | AI33: =IF(AI$9>=$F33,$H33*OFFSET(AI$22,,1-$F33),) -> 0 | AJ33: =IF(AJ$9>=$F33,$H33*OFFSET(AJ$22,,1-$F33),) -> 0 | AK33: =IF(AK$9>=$F33,$H33*OFFSET(AK$22,,1-$F33),) -> 0 | AL33: =IF(AL$9>=$F33,$H33*OFFSET(AL$22,,1-$F33),) -> 0 | AM33: =IF(AM$9>=$F33,$H33*OFFSET(AM$22,,1-$F33),) -> 0 | AN33: =IF(AN$9>=$F33,$H33*OFFSET(AN$22,,1-$F33),) -> 0 | AO33: =IF(AO$9>=$F33,$H33*OFFSET(AO$22,,1-$F33),) -> 0 | AP33: =IF(AP$9>=$F33,$H33*OFFSET(AP$22,,1-$F33),) -> 0 | AQ33: =IF(AQ$9>=$F33,$H33*OFFSET(AQ$22,,1-$F33),) -> 0 | AR33: =IF(AR$9>=$F33,$H33*OFFSET(AR$22,,1-$F33),) -> 0 | AS33: =IF(AS$9>=$F33,$H33*OFFSET(AS$22,,1-$F33),) -> 0 | AT33: =IF(AT$9>=$F33,$H33*OFFSET(AT$22,,1-$F33),) -> 0 | AU33: =IF(AU$9>=$F33,$H33*OFFSET(AU$22,,1-$F33),) -> 0 | AV33: =IF(AV$9>=$F33,$H33*OFFSET(AV$22,,1-$F33),) -> 0 | AW33: =IF(AW$9>=$F33,$H33*OFFSET(AW$22,,1-$F33),) -> 0
F34: =OFFSET($I$9,,ROWS($E$33:$E34)) -> 2 | H34: =OFFSET($I$26,,ROWS($E$33:$E34)) -> 100 | J34: =IF(J$9>=$F34,$H34*OFFSET(J$22,,1-$F34),) -> 0 | K34: =IF(K$9>=$F34,$H34*OFFSET(K$22,,1-$F34),) -> 4 | L34: =IF(L$9>=$F34,$H34*OFFSET(L$22,,1-$F34),) -> 4 | M34: =IF(M$9>=$F34,$H34*OFFSET(M$22,,1-$F34),) -> 4 | N34: =IF(N$9>=$F34,$H34*OFFSET(N$22,,1-$F34),) -> 4 | O34: =IF(O$9>=$F34,$H34*OFFSET(O$22,,1-$F34),) -> 4 | P34: =IF(P$9>=$F34,$H34*OFFSET(P$22,,1-$F34),) -> 4 | Q34: =IF(Q$9>=$F34,$H34*OFFSET(Q$22,,1-$F34),) -> 4 | R34: =IF(R$9>=$F34,$H34*OFFSET(R$22,,1-$F34),) -> 4 | S34: =IF(S$9>=$F34,$H34*OFFSET(S$22,,1-$F34),) -> 4 | T34: =IF(T$9>=$F34,$H34*OFFSET(T$22,,1-$F34),) -> 4 | U34: =IF(U$9>=$F34,$H34*OFFSET(U$22,,1-$F34),) -> 4 | V34: =IF(V$9>=$F34,$H34*OFFSET(V$22,,1-$F34),) -> 56 | W34: =IF(W$9>=$F34,$H34*OFFSET(W$22,,1-$F34),) -> 0 | X34: =IF(X$9>=$F34,$H34*OFFSET(X$22,,1-$F34),) -> 0 | Y34: =IF(Y$9>=$F34,$H34*OFFSET(Y$22,,1-$F34),) -> 0 | Z34: =IF(Z$9>=$F34,$H34*OFFSET(Z$22,,1-$F34),) -> 0 | AA34: =IF(AA$9>=$F34,$H34*OFFSET(AA$22,,1-$F34),) -> 0 | AB34: =IF(AB$9>=$F34,$H34*OFFSET(AB$22,,1-$F34),) -> 0 | AC34: =IF(AC$9>=$F34,$H34*OFFSET(AC$22,,1-$F34),) -> 0 | AD34: =IF(AD$9>=$F34,$H34*OFFSET(AD$22,,1-$F34),) -> 0 | AE34: =IF(AE$9>=$F34,$H34*OFFSET(AE$22,,1-$F34),) -> 0 | AF34: =IF(AF$9>=$F34,$H34*OFFSET(AF$22,,1-$F34),) -> 0 | AG34: =IF(AG$9>=$F34,$H34*OFFSET(AG$22,,1-$F34),) -> 0 | AH34: =IF(AH$9>=$F34,$H34*OFFSET(AH$22,,1-$F34),) -> 0 | AI34: =IF(AI$9>=$F34,$H34*OFFSET(AI$22,,1-$F34),) -> 0 | AJ34: =IF(AJ$9>=$F34,$H34*OFFSET(AJ$22,,1-$F34),) -> 0 | AK34: =IF(AK$9>=$F34,$H34*OFFSET(AK$22,,1-$F34),) -> 0 | AL34: =IF(AL$9>=$F34,$H34*OFFSET(AL$22,,1-$F34),) -> 0 | AM34: =IF(AM$9>=$F34,$H34*OFFSET(AM$22,,1-$F34),) -> 0 | AN34: =IF(AN$9>=$F34,$H34*OFFSET(AN$22,,1-$F34),) -> 0 | AO34: =IF(AO$9>=$F34,$H34*OFFSET(AO$22,,1-$F34),) -> 0 | AP34: =IF(AP$9>=$F34,$H34*OFFSET(AP$22,,1-$F34),) -> 0 | AQ34: =IF(AQ$9>=$F34,$H34*OFFSET(AQ$22,,1-$F34),) -> 0 | AR34: =IF(AR$9>=$F34,$H34*OFFSET(AR$22,,1-$F34),) -> 0 | AS34: =IF(AS$9>=$F34,$H34*OFFSET(AS$22,,1-$F34),) -> 0 | AT34: =IF(AT$9>=$F34,$H34*OFFSET(AT$22,,1-$F34),) -> 0 | AU34: =IF(AU$9>=$F34,$H34*OFFSET(AU$22,,1-$F34),) -> 0 | AV34: =IF(AV$9>=$F34,$H34*OFFSET(AV$22,,1-$F34),) -> 0 | AW34: =IF(AW$9>=$F34,$H34*OFFSET(AW$22,,1-$F34),) -> 0
F35: =OFFSET($I$9,,ROWS($E$33:$E35)) -> 3 | H35: =OFFSET($I$26,,ROWS($E$33:$E35)) -> 200 | J35: =IF(J$9>=$F35,$H35*OFFSET(J$22,,1-$F35),) -> 0 | K35: =IF(K$9>=$F35,$H35*OFFSET(K$22,,1-$F35),) -> 0 | L35: =IF(L$9>=$F35,$H35*OFFSET(L$22,,1-$F35),) -> 8 | M35: =IF(M$9>=$F35,$H35*OFFSET(M$22,,1-$F35),) -> 8 | N35: =IF(N$9>=$F35,$H35*OFFSET(N$22,,1-$F35),) -> 8 | O35: =IF(O$9>=$F35,$H35*OFFSET(O$22,,1-$F35),) -> 8 | P35: =IF(P$9>=$F35,$H35*OFFSET(P$22,,1-$F35),) -> 8 | Q35: =IF(Q$9>=$F35,$H35*OFFSET(Q$22,,1-$F35),) -> 8 | R35: =IF(R$9>=$F35,$H35*OFFSET(R$22,,1-$F35),) -> 8 | S35: =IF(S$9>=$F35,$H35*OFFSET(S$22,,1-$F35),) -> 8 | T35: =IF(T$9>=$F35,$H35*OFFSET(T$22,,1-$F35),) -> 8 | U35: =IF(U$9>=$F35,$H35*OFFSET(U$22,,1-$F35),) -> 8 | V35: =IF(V$9>=$F35,$H35*OFFSET(V$22,,1-$F35),) -> 8 | W35: =IF(W$9>=$F35,$H35*OFFSET(W$22,,1-$F35),) -> 112 | X35: =IF(X$9>=$F35,$H35*OFFSET(X$22,,1-$F35),) -> 0 | Y35: =IF(Y$9>=$F35,$H35*OFFSET(Y$22,,1-$F35),) -> 0 | Z35: =IF(Z$9>=$F35,$H35*OFFSET(Z$22,,1-$F35),) -> 0 | AA35: =IF(AA$9>=$F35,$H35*OFFSET(AA$22,,1-$F35),) -> 0 | AB35: =IF(AB$9>=$F35,$H35*OFFSET(AB$22,,1-$F35),) -> 0 | AC35: =IF(AC$9>=$F35,$H35*OFFSET(AC$22,,1-$F35),) -> 0 | AD35: =IF(AD$9>=$F35,$H35*OFFSET(AD$22,,1-$F35),) -> 0 | AE35: =IF(AE$9>=$F35,$H35*OFFSET(AE$22,,1-$F35),) -> 0 | AF35: =IF(AF$9>=$F35,$H35*OFFSET(AF$22,,1-$F35),) -> 0 | AG35: =IF(AG$9>=$F35,$H35*OFFSET(AG$22,,1-$F35),) -> 0 | AH35: =IF(AH$9>=$F35,$H35*OFFSET(AH$22,,1-$F35),) -> 0 | AI35: =IF(AI$9>=$F35,$H35*OFFSET(AI$22,,1-$F35),) -> 0 | AJ35: =IF(AJ$9>=$F35,$H35*OFFSET(AJ$22,,1-$F35),) -> 0 | AK35: =IF(AK$9>=$F35,$H35*OFFSET(AK$22,,1-$F35),) -> 0 | AL35: =IF(AL$9>=$F35,$H35*OFFSET(AL$22,,1-$F35),) -> 0 | AM35: =IF(AM$9>=$F35,$H35*OFFSET(AM$22,,1-$F35),) -> 0 | AN35: =IF(AN$9>=$F35,$H35*OFFSET(AN$22,,1-$F35),) -> 0 | AO35: =IF(AO$9>=$F35,$H35*OFFSET(AO$22,,1-$F35),) -> 0 | AP35: =IF(AP$9>=$F35,$H35*OFFSET(AP$22,,1-$F35),) -> 0 | AQ35: =IF(AQ$9>=$F35,$H35*OFFSET(AQ$22,,1-$F35),) -> 0 | AR35: =IF(AR$9>=$F35,$H35*OFFSET(AR$22,,1-$F35),) -> 0 | AS35: =IF(AS$9>=$F35,$H35*OFFSET(AS$22,,1-$F35),) -> 0 | AT35: =IF(AT$9>=$F35,$H35*OFFSET(AT$22,,1-$F35),) -> 0 | AU35: =IF(AU$9>=$F35,$H35*OFFSET(AU$22,,1-$F35),) -> 0 | AV35: =IF(AV$9>=$F35,$H35*OFFSET(AV$22,,1-$F35),) -> 0 | AW35: =IF(AW$9>=$F35,$H35*OFFSET(AW$22,,1-$F35),) -> 0
F36: =OFFSET($I$9,,ROWS($E$33:$E36)) -> 4 | H36: =OFFSET($I$26,,ROWS($E$33:$E36)) -> 400 | J36: =IF(J$9>=$F36,$H36*OFFSET(J$22,,1-$F36),) -> 0 | K36: =IF(K$9>=$F36,$H36*OFFSET(K$22,,1-$F36),) -> 0 | L36: =IF(L$9>=$F36,$H36*OFFSET(L$22,,1-$F36),) -> 0 | M36: =IF(M$9>=$F36,$H36*OFFSET(M$22,,1-$F36),) -> 16 | N36: =IF(N$9>=$F36,$H36*OFFSET(N$22,,1-$F36),) -> 16 | O36: =IF(O$9>=$F36,$H36*OFFSET(O$22,,1-$F36),) -> 16 | P36: =IF(P$9>=$F36,$H36*OFFSET(P$22,,1-$F36),) -> 16 | Q36: =IF(Q$9>=$F36,$H36*OFFSET(Q$22,,1-$F36),) -> 16 | R36: =IF(R$9>=$F36,$H36*OFFSET(R$22,,1-$F36),) -> 16 | S36: =IF(S$9>=$F36,$H36*OFFSET(S$22,,1-$F36),) -> 16 | T36: =IF(T$9>=$F36,$H36*OFFSET(T$22,,1-$F36),) -> 16 | U36: =IF(U$9>=$F36,$H36*OFFSET(U$22,,1-$F36),) -> 16 | V36: =IF(V$9>=$F36,$H36*OFFSET(V$22,,1-$F36),) -> 16 | W36: =IF(W$9>=$F36,$H36*OFFSET(W$22,,1-$F36),) -> 16 | X36: =IF(X$9>=$F36,$H36*OFFSET(X$22,,1-$F36),) -> 224 | Y36: =IF(Y$9>=$F36,$H36*OFFSET(Y$22,,1-$F36),) -> 0 | Z36: =IF(Z$9>=$F36,$H36*OFFSET(Z$22,,1-$F36),) -> 0 | AA36: =IF(AA$9>=$F36,$H36*OFFSET(AA$22,,1-$F36),) -> 0 | AB36: =IF(AB$9>=$F36,$H36*OFFSET(AB$22,,1-$F36),) -> 0 | AC36: =IF(AC$9>=$F36,$H36*OFFSET(AC$22,,1-$F36),) -> 0 | AD36: =IF(AD$9>=$F36,$H36*OFFSET(AD$22,,1-$F36),) -> 0 | AE36: =IF(AE$9>=$F36,$H36*OFFSET(AE$22,,1-$F36),) -> 0 | AF36: =IF(AF$9>=$F36,$H36*OFFSET(AF$22,,1-$F36),) -> 0 | AG36: =IF(AG$9>=$F36,$H36*OFFSET(AG$22,,1-$F36),) -> 0 | AH36: =IF(AH$9>=$F36,$H36*OFFSET(AH$22,,1-$F36),) -> 0 | AI36: =IF(AI$9>=$F36,$H36*OFFSET(AI$22,,1-$F36),) -> 0 | AJ36: =IF(AJ$9>=$F36,$H36*OFFSET(AJ$22,,1-$F36),) -> 0 | AK36: =IF(AK$9>=$F36,$H36*OFFSET(AK$22,,1-$F36),) -> 0 | AL36: =IF(AL$9>=$F36,$H36*OFFSET(AL$22,,1-$F36),) -> 0 | AM36: =IF(AM$9>=$F36,$H36*OFFSET(AM$22,,1-$F36),) -> 0 | AN36: =IF(AN$9>=$F36,$H36*OFFSET(AN$22,,1-$F36),) -> 0 | AO36: =IF(AO$9>=$F36,$H36*OFFSET(AO$22,,1-$F36),) -> 0 | AP36: =IF(AP$9>=$F36,$H36*OFFSET(AP$22,,1-$F36),) -> 0 | AQ36: =IF(AQ$9>=$F36,$H36*OFFSET(AQ$22,,1-$F36),) -> 0 | AR36: =IF(AR$9>=$F36,$H36*OFFSET(AR$22,,1-$F36),) -> 0 | AS36: =IF(AS$9>=$F36,$H36*OFFSET(AS$22,,1-$F36),) -> 0 | AT36: =IF(AT$9>=$F36,$H36*OFFSET(AT$22,,1-$F36),) -> 0 | AU36: =IF(AU$9>=$F36,$H36*OFFSET(AU$22,,1-$F36),) -> 0 | AV36: =IF(AV$9>=$F36,$H36*OFFSET(AV$22,,1-$F36),) -> 0 | AW36: =IF(AW$9>=$F36,$H36*OFFSET(AW$22,,1-$F36),) -> 0
F37: =OFFSET($I$9,,ROWS($E$33:$E37)) -> 5 | H37: =OFFSET($I$26,,ROWS($E$33:$E37)) -> 315 | J37: =IF(J$9>=$F37,$H37*OFFSET(J$22,,1-$F37),) -> 0 | K37: =IF(K$9>=$F37,$H37*OFFSET(K$22,,1-$F37),) -> 0 | L37: =IF(L$9>=$F37,$H37*OFFSET(L$22,,1-$F37),) -> 0 | M37: =IF(M$9>=$F37,$H37*OFFSET(M$22,,1-$F37),) -> 0 | N37: =IF(N$9>=$F37,$H37*OFFSET(N$22,,1-$F37),) -> 12.6 | O37: =IF(O$9>=$F37,$H37*OFFSET(O$22,,1-$F37),) -> 12.6 | P37: =IF(P$9>=$F37,$H37*OFFSET(P$22,,1-$F37),) -> 12.6 | Q37: =IF(Q$9>=$F37,$H37*OFFSET(Q$22,,1-$F37),) -> 12.6 | R37: =IF(R$9>=$F37,$H37*OFFSET(R$22,,1-$F37),) -> 12.6 | S37: =IF(S$9>=$F37,$H37*OFFSET(S$22,,1-$F37),) -> 12.6 | T37: =IF(T$9>=$F37,$H37*OFFSET(T$22,,1-$F37),) -> 12.6 | U37: =IF(U$9>=$F37,$H37*OFFSET(U$22,,1-$F37),) -> 12.6 | V37: =IF(V$9>=$F37,$H37*OFFSET(V$22,,1-$F37),) -> 12.6 | W37: =IF(W$9>=$F37,$H37*OFFSET(W$22,,1-$F37),) -> 12.6 | X37: =IF(X$9>=$F37,$H37*OFFSET(X$22,,1-$F37),) -> 12.6 | Y37: =IF(Y$9>=$F37,$H37*OFFSET(Y$22,,1-$F37),) -> 176.4 | Z37: =IF(Z$9>=$F37,$H37*OFFSET(Z$22,,1-$F37),) -> 0 | AA37: =IF(AA$9>=$F37,$H37*OFFSET(AA$22,,1-$F37),) -> 0 | AB37: =IF(AB$9>=$F37,$H37*OFFSET(AB$22,,1-$F37),) -> 0 | AC37: =IF(AC$9>=$F37,$H37*OFFSET(AC$22,,1-$F37),) -> 0 | AD37: =IF(AD$9>=$F37,$H37*OFFSET(AD$22,,1-$F37),) -> 0 | AE37: =IF(AE$9>=$F37,$H37*OFFSET(AE$22,,1-$F37),) -> 0 | AF37: =IF(AF$9>=$F37,$H37*OFFSET(AF$22,,1-$F37),) -> 0 | AG37: =IF(AG$9>=$F37,$H37*OFFSET(AG$22,,1-$F37),) -> 0 | AH37: =IF(AH$9>=$F37,$H37*OFFSET(AH$22,,1-$F37),) -> 0 | AI37: =IF(AI$9>=$F37,$H37*OFFSET(AI$22,,1-$F37),) -> 0 | AJ37: =IF(AJ$9>=$F37,$H37*OFFSET(AJ$22,,1-$F37),) -> 0 | AK37: =IF(AK$9>=$F37,$H37*OFFSET(AK$22,,1-$F37),) -> 0 | AL37: =IF(AL$9>=$F37,$H37*OFFSET(AL$22,,1-$F37),) -> 0 | AM37: =IF(AM$9>=$F37,$H37*OFFSET(AM$22,,1-$F37),) -> 0 | AN37: =IF(AN$9>=$F37,$H37*OFFSET(AN$22,,1-$F37),) -> 0 | AO37: =IF(AO$9>=$F37,$H37*OFFSET(AO$22,,1-$F37),) -> 0 | AP37: =IF(AP$9>=$F37,$H37*OFFSET(AP$22,,1-$F37),) -> 0 | AQ37: =IF(AQ$9>=$F37,$H37*OFFSET(AQ$22,,1-$F37),) -> 0 | AR37: =IF(AR$9>=$F37,$H37*OFFSET(AR$22,,1-$F37),) -> 0 | AS37: =IF(AS$9>=$F37,$H37*OFFSET(AS$22,,1-$F37),) -> 0 | AT37: =IF(AT$9>=$F37,$H37*OFFSET(AT$22,,1-$F37),) -> 0 | AU37: =IF(AU$9>=$F37,$H37*OFFSET(AU$22,,1-$F37),) -> 0 | AV37: =IF(AV$9>=$F37,$H37*OFFSET(AV$22,,1-$F37),) -> 0 | AW37: =IF(AW$9>=$F37,$H37*OFFSET(AW$22,,1-$F37),) -> 0
F38: =OFFSET($I$9,,ROWS($E$33:$E38)) -> 6 | H38: =OFFSET($I$26,,ROWS($E$33:$E38)) -> 105 | J38: =IF(J$9>=$F38,$H38*OFFSET(J$22,,1-$F38),) -> 0 | K38: =IF(K$9>=$F38,$H38*OFFSET(K$22,,1-$F38),) -> 0 | L38: =IF(L$9>=$F38,$H38*OFFSET(L$22,,1-$F38),) -> 0 | M38: =IF(M$9>=$F38,$H38*OFFSET(M$22,,1-$F38),) -> 0 | N38: =IF(N$9>=$F38,$H38*OFFSET(N$22,,1-$F38),) -> 0 | O38: =IF(O$9>=$F38,$H38*OFFSET(O$22,,1-$F38),) -> 4.2 | P38: =IF(P$9>=$F38,$H38*OFFSET(P$22,,1-$F38),) -> 4.2 | Q38: =IF(Q$9>=$F38,$H38*OFFSET(Q$22,,1-$F38),) -> 4.2 | R38: =IF(R$9>=$F38,$H38*OFFSET(R$22,,1-$F38),) -> 4.2 | S38: =IF(S$9>=$F38,$H38*OFFSET(S$22,,1-$F38),) -> 4.2 | T38: =IF(T$9>=$F38,$H38*OFFSET(T$22,,1-$F38),) -> 4.2 | U38: =IF(U$9>=$F38,$H38*OFFSET(U$22,,1-$F38),) -> 4.2 | V38: =IF(V$9>=$F38,$H38*OFFSET(V$22,,1-$F38),) -> 4.2 | W38: =IF(W$9>=$F38,$H38*OFFSET(W$22,,1-$F38),) -> 4.2 | X38: =IF(X$9>=$F38,$H38*OFFSET(X$22,,1-$F38),) -> 4.2 | Y38: =IF(Y$9>=$F38,$H38*OFFSET(Y$22,,1-$F38),) -> 4.2 | Z38: =IF(Z$9>=$F38,$H38*OFFSET(Z$22,,1-$F38),) -> 58.8 | AA38: =IF(AA$9>=$F38,$H38*OFFSET(AA$22,,1-$F38),) -> 0 | AB38: =IF(AB$9>=$F38,$H38*OFFSET(AB$22,,1-$F38),) -> 0 | AC38: =IF(AC$9>=$F38,$H38*OFFSET(AC$22,,1-$F38),) -> 0 | AD38: =IF(AD$9>=$F38,$H38*OFFSET(AD$22,,1-$F38),) -> 0 | AE38: =IF(AE$9>=$F38,$H38*OFFSET(AE$22,,1-$F38),) -> 0 | AF38: =IF(AF$9>=$F38,$H38*OFFSET(AF$22,,1-$F38),) -> 0 | AG38: =IF(AG$9>=$F38,$H38*OFFSET(AG$22,,1-$F38),) -> 0 | AH38: =IF(AH$9>=$F38,$H38*OFFSET(AH$22,,1-$F38),) -> 0 | AI38: =IF(AI$9>=$F38,$H38*OFFSET(AI$22,,1-$F38),) -> 0 | AJ38: =IF(AJ$9>=$F38,$H38*OFFSET(AJ$22,,1-$F38),) -> 0 | AK38: =IF(AK$9>=$F38,$H38*OFFSET(AK$22,,1-$F38),) -> 0 | AL38: =IF(AL$9>=$F38,$H38*OFFSET(AL$22,,1-$F38),) -> 0 | AM38: =IF(AM$9>=$F38,$H38*OFFSET(AM$22,,1-$F38),) -> 0 | AN38: =IF(AN$9>=$F38,$H38*OFFSET(AN$22,,1-$F38),) -> 0 | AO38: =IF(AO$9>=$F38,$H38*OFFSET(AO$22,,1-$F38),) -> 0 | AP38: =IF(AP$9>=$F38,$H38*OFFSET(AP$22,,1-$F38),) -> 0 | AQ38: =IF(AQ$9>=$F38,$H38*OFFSET(AQ$22,,1-$F38),) -> 0 | AR38: =IF(AR$9>=$F38,$H38*OFFSET(AR$22,,1-$F38),) -> 0 | AS38: =IF(AS$9>=$F38,$H38*OFFSET(AS$22,,1-$F38),) -> 0 | AT38: =IF(AT$9>=$F38,$H38*OFFSET(AT$22,,1-$F38),) -> 0 | AU38: =IF(AU$9>=$F38,$H38*OFFSET(AU$22,,1-$F38),) -> 0 | AV38: =IF(AV$9>=$F38,$H38*OFFSET(AV$22,,1-$F38),) -> 0 | AW38: =IF(AW$9>=$F38,$H38*OFFSET(AW$22,,1-$F38),) -> 0
F39: =OFFSET($I$9,,ROWS($E$33:$E39)) -> 7 | H39: =OFFSET($I$26,,ROWS($E$33:$E39)) -> 210 | J39: =IF(J$9>=$F39,$H39*OFFSET(J$22,,1-$F39),) -> 0 | K39: =IF(K$9>=$F39,$H39*OFFSET(K$22,,1-$F39),) -> 0 | L39: =IF(L$9>=$F39,$H39*OFFSET(L$22,,1-$F39),) -> 0 | M39: =IF(M$9>=$F39,$H39*OFFSET(M$22,,1-$F39),) -> 0 | N39: =IF(N$9>=$F39,$H39*OFFSET(N$22,,1-$F39),) -> 0 | O39: =IF(O$9>=$F39,$H39*OFFSET(O$22,,1-$F39),) -> 0 | P39: =IF(P$9>=$F39,$H39*OFFSET(P$22,,1-$F39),) -> 8.4 | Q39: =IF(Q$9>=$F39,$H39*OFFSET(Q$22,,1-$F39),) -> 8.4 | R39: =IF(R$9>=$F39,$H39*OFFSET(R$22,,1-$F39),) -> 8.4 | S39: =IF(S$9>=$F39,$H39*OFFSET(S$22,,1-$F39),) -> 8.4 | T39: =IF(T$9>=$F39,$H39*OFFSET(T$22,,1-$F39),) -> 8.4 | U39: =IF(U$9>=$F39,$H39*OFFSET(U$22,,1-$F39),) -> 8.4 | V39: =IF(V$9>=$F39,$H39*OFFSET(V$22,,1-$F39),) -> 8.4 | W39: =IF(W$9>=$F39,$H39*OFFSET(W$22,,1-$F39),) -> 8.4 | X39: =IF(X$9>=$F39,$H39*OFFSET(X$22,,1-$F39),) -> 8.4 | Y39: =IF(Y$9>=$F39,$H39*OFFSET(Y$22,,1-$F39),) -> 8.4 | Z39: =IF(Z$9>=$F39,$H39*OFFSET(Z$22,,1-$F39),) -> 8.4 | AA39: =IF(AA$9>=$F39,$H39*OFFSET(AA$22,,1-$F39),) -> 117.6 | AB39: =IF(AB$9>=$F39,$H39*OFFSET(AB$22,,1-$F39),) -> 0 | AC39: =IF(AC$9>=$F39,$H39*OFFSET(AC$22,,1-$F39),) -> 0 | AD39: =IF(AD$9>=$F39,$H39*OFFSET(AD$22,,1-$F39),) -> 0 | AE39: =IF(AE$9>=$F39,$H39*OFFSET(AE$22,,1-$F39),) -> 0 | AF39: =IF(AF$9>=$F39,$H39*OFFSET(AF$22,,1-$F39),) -> 0 | AG39: =IF(AG$9>=$F39,$H39*OFFSET(AG$22,,1-$F39),) -> 0 | AH39: =IF(AH$9>=$F39,$H39*OFFSET(AH$22,,1-$F39),) -> 0 | AI39: =IF(AI$9>=$F39,$H39*OFFSET(AI$22,,1-$F39),) -> 0 | AJ39: =IF(AJ$9>=$F39,$H39*OFFSET(AJ$22,,1-$F39),) -> 0 | AK39: =IF(AK$9>=$F39,$H39*OFFSET(AK$22,,1-$F39),) -> 0 | AL39: =IF(AL$9>=$F39,$H39*OFFSET(AL$22,,1-$F39),) -> 0 | AM39: =IF(AM$9>=$F39,$H39*OFFSET(AM$22,,1-$F39),) -> 0 | AN39: =IF(AN$9>=$F39,$H39*OFFSET(AN$22,,1-$F39),) -> 0 | AO39: =IF(AO$9>=$F39,$H39*OFFSET(AO$22,,1-$F39),) -> 0 | AP39: =IF(AP$9>=$F39,$H39*OFFSET(AP$22,,1-$F39),) -> 0 | AQ39: =IF(AQ$9>=$F39,$H39*OFFSET(AQ$22,,1-$F39),) -> 0 | AR39: =IF(AR$9>=$F39,$H39*OFFSET(AR$22,,1-$F39),) -> 0 | AS39: =IF(AS$9>=$F39,$H39*OFFSET(AS$22,,1-$F39),) -> 0 | AT39: =IF(AT$9>=$F39,$H39*OFFSET(AT$22,,1-$F39),) -> 0 | AU39: =IF(AU$9>=$F39,$H39*OFFSET(AU$22,,1-$F39),) -> 0 | AV39: =IF(AV$9>=$F39,$H39*OFFSET(AV$22,,1-$F39),) -> 0 | AW39: =IF(AW$9>=$F39,$H39*OFFSET(AW$22,,1-$F39),) -> 0
F40: =OFFSET($I$9,,ROWS($E$33:$E40)) -> 8 | H40: =OFFSET($I$26,,ROWS($E$33:$E40)) -> 420 | J40: =IF(J$9>=$F40,$H40*OFFSET(J$22,,1-$F40),) -> 0 | K40: =IF(K$9>=$F40,$H40*OFFSET(K$22,,1-$F40),) -> 0 | L40: =IF(L$9>=$F40,$H40*OFFSET(L$22,,1-$F40),) -> 0 | M40: =IF(M$9>=$F40,$H40*OFFSET(M$22,,1-$F40),) -> 0 | N40: =IF(N$9>=$F40,$H40*OFFSET(N$22,,1-$F40),) -> 0 | O40: =IF(O$9>=$F40,$H40*OFFSET(O$22,,1-$F40),) -> 0 | P40: =IF(P$9>=$F40,$H40*OFFSET(P$22,,1-$F40),) -> 0 | Q40: =IF(Q$9>=$F40,$H40*OFFSET(Q$22,,1-$F40),) -> 16.8 | R40: =IF(R$9>=$F40,$H40*OFFSET(R$22,,1-$F40),) -> 16.8 | S40: =IF(S$9>=$F40,$H40*OFFSET(S$22,,1-$F40),) -> 16.8 | T40: =IF(T$9>=$F40,$H40*OFFSET(T$22,,1-$F40),) -> 16.8 | U40: =IF(U$9>=$F40,$H40*OFFSET(U$22,,1-$F40),) -> 16.8 | V40: =IF(V$9>=$F40,$H40*OFFSET(V$22,,1-$F40),) -> 16.8 | W40: =IF(W$9>=$F40,$H40*OFFSET(W$22,,1-$F40),) -> 16.8 | X40: =IF(X$9>=$F40,$H40*OFFSET(X$22,,1-$F40),) -> 16.8 | Y40: =IF(Y$9>=$F40,$H40*OFFSET(Y$22,,1-$F40),) -> 16.8 | Z40: =IF(Z$9>=$F40,$H40*OFFSET(Z$22,,1-$F40),) -> 16.8 | AA40: =IF(AA$9>=$F40,$H40*OFFSET(AA$22,,1-$F40),) -> 16.8 | AB40: =IF(AB$9>=$F40,$H40*OFFSET(AB$22,,1-$F40),) -> 235.2 | AC40: =IF(AC$9>=$F40,$H40*OFFSET(AC$22,,1-$F40),) -> 0 | AD40: =IF(AD$9>=$F40,$H40*OFFSET(AD$22,,1-$F40),) -> 0 | AE40: =IF(AE$9>=$F40,$H40*OFFSET(AE$22,,1-$F40),) -> 0 | AF40: =IF(AF$9>=$F40,$H40*OFFSET(AF$22,,1-$F40),) -> 0 | AG40: =IF(AG$9>=$F40,$H40*OFFSET(AG$22,,1-$F40),) -> 0 | AH40: =IF(AH$9>=$F40,$H40*OFFSET(AH$22,,1-$F40),) -> 0 | AI40: =IF(AI$9>=$F40,$H40*OFFSET(AI$22,,1-$F40),) -> 0 | AJ40: =IF(AJ$9>=$F40,$H40*OFFSET(AJ$22,,1-$F40),) -> 0 | AK40: =IF(AK$9>=$F40,$H40*OFFSET(AK$22,,1-$F40),) -> 0 | AL40: =IF(AL$9>=$F40,$H40*OFFSET(AL$22,,1-$F40),) -> 0 | AM40: =IF(AM$9>=$F40,$H40*OFFSET(AM$22,,1-$F40),) -> 0 | AN40: =IF(AN$9>=$F40,$H40*OFFSET(AN$22,,1-$F40),) -> 0 | AO40: =IF(AO$9>=$F40,$H40*OFFSET(AO$22,,1-$F40),) -> 0 | AP40: =IF(AP$9>=$F40,$H40*OFFSET(AP$22,,1-$F40),) -> 0 | AQ40: =IF(AQ$9>=$F40,$H40*OFFSET(AQ$22,,1-$F40),) -> 0 | AR40: =IF(AR$9>=$F40,$H40*OFFSET(AR$22,,1-$F40),) -> 0 | AS40: =IF(AS$9>=$F40,$H40*OFFSET(AS$22,,1-$F40),) -> 0 | AT40: =IF(AT$9>=$F40,$H40*OFFSET(AT$22,,1-$F40),) -> 0 | AU40: =IF(AU$9>=$F40,$H40*OFFSET(AU$22,,1-$F40),) -> 0 | AV40: =IF(AV$9>=$F40,$H40*OFFSET(AV$22,,1-$F40),) -> 0 | AW40: =IF(AW$9>=$F40,$H40*OFFSET(AW$22,,1-$F40),) -> 0
F41: =OFFSET($I$9,,ROWS($E$33:$E41)) -> 9 | H41: =OFFSET($I$26,,ROWS($E$33:$E41)) -> 330.75 | J41: =IF(J$9>=$F41,$H41*OFFSET(J$22,,1-$F41),) -> 0 | K41: =IF(K$9>=$F41,$H41*OFFSET(K$22,,1-$F41),) -> 0 | L41: =IF(L$9>=$F41,$H41*OFFSET(L$22,,1-$F41),) -> 0 | M41: =IF(M$9>=$F41,$H41*OFFSET(M$22,,1-$F41),) -> 0 | N41: =IF(N$9>=$F41,$H41*OFFSET(N$22,,1-$F41),) -> 0 | O41: =IF(O$9>=$F41,$H41*OFFSET(O$22,,1-$F41),) -> 0 | P41: =IF(P$9>=$F41,$H41*OFFSET(P$22,,1-$F41),) -> 0 | Q41: =IF(Q$9>=$F41,$H41*OFFSET(Q$22,,1-$F41),) -> 0 | R41: =IF(R$9>=$F41,$H41*OFFSET(R$22,,1-$F41),) -> 13.23 | S41: =IF(S$9>=$F41,$H41*OFFSET(S$22,,1-$F41),) -> 13.23 | T41: =IF(T$9>=$F41,$H41*OFFSET(T$22,,1-$F41),) -> 13.23 | U41: =IF(U$9>=$F41,$H41*OFFSET(U$22,,1-$F41),) -> 13.23 | V41: =IF(V$9>=$F41,$H41*OFFSET(V$22,,1-$F41),) -> 13.23 | W41: =IF(W$9>=$F41,$H41*OFFSET(W$22,,1-$F41),) -> 13.23 | X41: =IF(X$9>=$F41,$H41*OFFSET(X$22,,1-$F41),) -> 13.23 | Y41: =IF(Y$9>=$F41,$H41*OFFSET(Y$22,,1-$F41),) -> 13.23 | Z41: =IF(Z$9>=$F41,$H41*OFFSET(Z$22,,1-$F41),) -> 13.23 | AA41: =IF(AA$9>=$F41,$H41*OFFSET(AA$22,,1-$F41),) -> 13.23 | AB41: =IF(AB$9>=$F41,$H41*OFFSET(AB$22,,1-$F41),) -> 13.23 | AC41: =IF(AC$9>=$F41,$H41*OFFSET(AC$22,,1-$F41),) -> 185.22 | AD41: =IF(AD$9>=$F41,$H41*OFFSET(AD$22,,1-$F41),) -> 0 | AE41: =IF(AE$9>=$F41,$H41*OFFSET(AE$22,,1-$F41),) -> 0 | AF41: =IF(AF$9>=$F41,$H41*OFFSET(AF$22,,1-$F41),) -> 0 | AG41: =IF(AG$9>=$F41,$H41*OFFSET(AG$22,,1-$F41),) -> 0 | AH41: =IF(AH$9>=$F41,$H41*OFFSET(AH$22,,1-$F41),) -> 0 | AI41: =IF(AI$9>=$F41,$H41*OFFSET(AI$22,,1-$F41),) -> 0 | AJ41: =IF(AJ$9>=$F41,$H41*OFFSET(AJ$22,,1-$F41),) -> 0 | AK41: =IF(AK$9>=$F41,$H41*OFFSET(AK$22,,1-$F41),) -> 0 | AL41: =IF(AL$9>=$F41,$H41*OFFSET(AL$22,,1-$F41),) -> 0 | AM41: =IF(AM$9>=$F41,$H41*OFFSET(AM$22,,1-$F41),) -> 0 | AN41: =IF(AN$9>=$F41,$H41*OFFSET(AN$22,,1-$F41),) -> 0 | AO41: =IF(AO$9>=$F41,$H41*OFFSET(AO$22,,1-$F41),) -> 0 | AP41: =IF(AP$9>=$F41,$H41*OFFSET(AP$22,,1-$F41),) -> 0 | AQ41: =IF(AQ$9>=$F41,$H41*OFFSET(AQ$22,,1-$F41),) -> 0 | AR41: =IF(AR$9>=$F41,$H41*OFFSET(AR$22,,1-$F41),) -> 0 | AS41: =IF(AS$9>=$F41,$H41*OFFSET(AS$22,,1-$F41),) -> 0 | AT41: =IF(AT$9>=$F41,$H41*OFFSET(AT$22,,1-$F41),) -> 0 | AU41: =IF(AU$9>=$F41,$H41*OFFSET(AU$22,,1-$F41),) -> 0 | AV41: =IF(AV$9>=$F41,$H41*OFFSET(AV$22,,1-$F41),) -> 0 | AW41: =IF(AW$9>=$F41,$H41*OFFSET(AW$22,,1-$F41),) -> 0
F42: =OFFSET($I$9,,ROWS($E$33:$E42)) -> 10 | H42: =OFFSET($I$26,,ROWS($E$33:$E42)) -> 110.25 | J42: =IF(J$9>=$F42,$H42*OFFSET(J$22,,1-$F42),) -> 0 | K42: =IF(K$9>=$F42,$H42*OFFSET(K$22,,1-$F42),) -> 0 | L42: =IF(L$9>=$F42,$H42*OFFSET(L$22,,1-$F42),) -> 0 | M42: =IF(M$9>=$F42,$H42*OFFSET(M$22,,1-$F42),) -> 0 | N42: =IF(N$9>=$F42,$H42*OFFSET(N$22,,1-$F42),) -> 0 | O42: =IF(O$9>=$F42,$H42*OFFSET(O$22,,1-$F42),) -> 0 | P42: =IF(P$9>=$F42,$H42*OFFSET(P$22,,1-$F42),) -> 0 | Q42: =IF(Q$9>=$F42,$H42*OFFSET(Q$22,,1-$F42),) -> 0 | R42: =IF(R$9>=$F42,$H42*OFFSET(R$22,,1-$F42),) -> 0 | S42: =IF(S$9>=$F42,$H42*OFFSET(S$22,,1-$F42),) -> 4.41 | T42: =IF(T$9>=$F42,$H42*OFFSET(T$22,,1-$F42),) -> 4.41 | U42: =IF(U$9>=$F42,$H42*OFFSET(U$22,,1-$F42),) -> 4.41 | V42: =IF(V$9>=$F42,$H42*OFFSET(V$22,,1-$F42),) -> 4.41 | W42: =IF(W$9>=$F42,$H42*OFFSET(W$22,,1-$F42),) -> 4.41 | X42: =IF(X$9>=$F42,$H42*OFFSET(X$22,,1-$F42),) -> 4.41 | Y42: =IF(Y$9>=$F42,$H42*OFFSET(Y$22,,1-$F42),) -> 4.41 | Z42: =IF(Z$9>=$F42,$H42*OFFSET(Z$22,,1-$F42),) -> 4.41 | AA42: =IF(AA$9>=$F42,$H42*OFFSET(AA$22,,1-$F42),) -> 4.41 | AB42: =IF(AB$9>=$F42,$H42*OFFSET(AB$22,,1-$F42),) -> 4.41 | AC42: =IF(AC$9>=$F42,$H42*OFFSET(AC$22,,1-$F42),) -> 4.41 | AD42: =IF(AD$9>=$F42,$H42*OFFSET(AD$22,,1-$F42),) -> 61.74 | AE42: =IF(AE$9>=$F42,$H42*OFFSET(AE$22,,1-$F42),) -> 0 | AF42: =IF(AF$9>=$F42,$H42*OFFSET(AF$22,,1-$F42),) -> 0 | AG42: =IF(AG$9>=$F42,$H42*OFFSET(AG$22,,1-$F42),) -> 0 | AH42: =IF(AH$9>=$F42,$H42*OFFSET(AH$22,,1-$F42),) -> 0 | AI42: =IF(AI$9>=$F42,$H42*OFFSET(AI$22,,1-$F42),) -> 0 | AJ42: =IF(AJ$9>=$F42,$H42*OFFSET(AJ$22,,1-$F42),) -> 0 | AK42: =IF(AK$9>=$F42,$H42*OFFSET(AK$22,,1-$F42),) -> 0 | AL42: =IF(AL$9>=$F42,$H42*OFFSET(AL$22,,1-$F42),) -> 0 | AM42: =IF(AM$9>=$F42,$H42*OFFSET(AM$22,,1-$F42),) -> 0 | AN42: =IF(AN$9>=$F42,$H42*OFFSET(AN$22,,1-$F42),) -> 0 | AO42: =IF(AO$9>=$F42,$H42*OFFSET(AO$22,,1-$F42),) -> 0 | AP42: =IF(AP$9>=$F42,$H42*OFFSET(AP$22,,1-$F42),) -> 0 | AQ42: =IF(AQ$9>=$F42,$H42*OFFSET(AQ$22,,1-$F42),) -> 0 | AR42: =IF(AR$9>=$F42,$H42*OFFSET(AR$22,,1-$F42),) -> 0 | AS42: =IF(AS$9>=$F42,$H42*OFFSET(AS$22,,1-$F42),) -> 0 | AT42: =IF(AT$9>=$F42,$H42*OFFSET(AT$22,,1-$F42),) -> 0 | AU42: =IF(AU$9>=$F42,$H42*OFFSET(AU$22,,1-$F42),) -> 0 | AV42: =IF(AV$9>=$F42,$H42*OFFSET(AV$22,,1-$F42),) -> 0 | AW42: =IF(AW$9>=$F42,$H42*OFFSET(AW$22,,1-$F42),) -> 0
F43: =OFFSET($I$9,,ROWS($E$33:$E43)) -> 11 | H43: =OFFSET($I$26,,ROWS($E$33:$E43)) -> 220.5 | J43: =IF(J$9>=$F43,$H43*OFFSET(J$22,,1-$F43),) -> 0 | K43: =IF(K$9>=$F43,$H43*OFFSET(K$22,,1-$F43),) -> 0 | L43: =IF(L$9>=$F43,$H43*OFFSET(L$22,,1-$F43),) -> 0 | M43: =IF(M$9>=$F43,$H43*OFFSET(M$22,,1-$F43),) -> 0 | N43: =IF(N$9>=$F43,$H43*OFFSET(N$22,,1-$F43),) -> 0 | O43: =IF(O$9>=$F43,$H43*OFFSET(O$22,,1-$F43),) -> 0 | P43: =IF(P$9>=$F43,$H43*OFFSET(P$22,,1-$F43),) -> 0 | Q43: =IF(Q$9>=$F43,$H43*OFFSET(Q$22,,1-$F43),) -> 0 | R43: =IF(R$9>=$F43,$H43*OFFSET(R$22,,1-$F43),) -> 0 | S43: =IF(S$9>=$F43,$H43*OFFSET(S$22,,1-$F43),) -> 0 | T43: =IF(T$9>=$F43,$H43*OFFSET(T$22,,1-$F43),) -> 8.82 | U43: =IF(U$9>=$F43,$H43*OFFSET(U$22,,1-$F43),) -> 8.82 | V43: =IF(V$9>=$F43,$H43*OFFSET(V$22,,1-$F43),) -> 8.82 | W43: =IF(W$9>=$F43,$H43*OFFSET(W$22,,1-$F43),) -> 8.82 | X43: =IF(X$9>=$F43,$H43*OFFSET(X$22,,1-$F43),) -> 8.82 | Y43: =IF(Y$9>=$F43,$H43*OFFSET(Y$22,,1-$F43),) -> 8.82 | Z43: =IF(Z$9>=$F43,$H43*OFFSET(Z$22,,1-$F43),) -> 8.82 | AA43: =IF(AA$9>=$F43,$H43*OFFSET(AA$22,,1-$F43),) -> 8.82 | AB43: =IF(AB$9>=$F43,$H43*OFFSET(AB$22,,1-$F43),) -> 8.82 | AC43: =IF(AC$9>=$F43,$H43*OFFSET(AC$22,,1-$F43),) -> 8.82 | AD43: =IF(AD$9>=$F43,$H43*OFFSET(AD$22,,1-$F43),) -> 8.82 | AE43: =IF(AE$9>=$F43,$H43*OFFSET(AE$22,,1-$F43),) -> 123.48 | AF43: =IF(AF$9>=$F43,$H43*OFFSET(AF$22,,1-$F43),) -> 0 | AG43: =IF(AG$9>=$F43,$H43*OFFSET(AG$22,,1-$F43),) -> 0 | AH43: =IF(AH$9>=$F43,$H43*OFFSET(AH$22,,1-$F43),) -> 0 | AI43: =IF(AI$9>=$F43,$H43*OFFSET(AI$22,,1-$F43),) -> 0 | AJ43: =IF(AJ$9>=$F43,$H43*OFFSET(AJ$22,,1-$F43),) -> 0 | AK43: =IF(AK$9>=$F43,$H43*OFFSET(AK$22,,1-$F43),) -> 0 | AL43: =IF(AL$9>=$F43,$H43*OFFSET(AL$22,,1-$F43),) -> 0 | AM43: =IF(AM$9>=$F43,$H43*OFFSET(AM$22,,1-$F43),) -> 0 | AN43: =IF(AN$9>=$F43,$H43*OFFSET(AN$22,,1-$F43),) -> 0 | AO43: =IF(AO$9>=$F43,$H43*OFFSET(AO$22,,1-$F43),) -> 0 | AP43: =IF(AP$9>=$F43,$H43*OFFSET(AP$22,,1-$F43),) -> 0 | AQ43: =IF(AQ$9>=$F43,$H43*OFFSET(AQ$22,,1-$F43),) -> 0 | AR43: =IF(AR$9>=$F43,$H43*OFFSET(AR$22,,1-$F43),) -> 0 | AS43: =IF(AS$9>=$F43,$H43*OFFSET(AS$22,,1-$F43),) -> 0 | AT43: =IF(AT$9>=$F43,$H43*OFFSET(AT$22,,1-$F43),) -> 0 | AU43: =IF(AU$9>=$F43,$H43*OFFSET(AU$22,,1-$F43),) -> 0 | AV43: =IF(AV$9>=$F43,$H43*OFFSET(AV$22,,1-$F43),) -> 0 | AW43: =IF(AW$9>=$F43,$H43*OFFSET(AW$22,,1-$F43),) -> 0
F44: =OFFSET($I$9,,ROWS($E$33:$E44)) -> 12 | H44: =OFFSET($I$26,,ROWS($E$33:$E44)) -> 441 | J44: =IF(J$9>=$F44,$H44*OFFSET(J$22,,1-$F44),) -> 0 | K44: =IF(K$9>=$F44,$H44*OFFSET(K$22,,1-$F44),) -> 0 | L44: =IF(L$9>=$F44,$H44*OFFSET(L$22,,1-$F44),) -> 0 | M44: =IF(M$9>=$F44,$H44*OFFSET(M$22,,1-$F44),) -> 0 | N44: =IF(N$9>=$F44,$H44*OFFSET(N$22,,1-$F44),) -> 0 | O44: =IF(O$9>=$F44,$H44*OFFSET(O$22,,1-$F44),) -> 0 | P44: =IF(P$9>=$F44,$H44*OFFSET(P$22,,1-$F44),) -> 0 | Q44: =IF(Q$9>=$F44,$H44*OFFSET(Q$22,,1-$F44),) -> 0 | R44: =IF(R$9>=$F44,$H44*OFFSET(R$22,,1-$F44),) -> 0 | S44: =IF(S$9>=$F44,$H44*OFFSET(S$22,,1-$F44),) -> 0 | T44: =IF(T$9>=$F44,$H44*OFFSET(T$22,,1-$F44),) -> 0 | U44: =IF(U$9>=$F44,$H44*OFFSET(U$22,,1-$F44),) -> 17.64 | V44: =IF(V$9>=$F44,$H44*OFFSET(V$22,,1-$F44),) -> 17.64 | W44: =IF(W$9>=$F44,$H44*OFFSET(W$22,,1-$F44),) -> 17.64 | X44: =IF(X$9>=$F44,$H44*OFFSET(X$22,,1-$F44),) -> 17.64 | Y44: =IF(Y$9>=$F44,$H44*OFFSET(Y$22,,1-$F44),) -> 17.64 | Z44: =IF(Z$9>=$F44,$H44*OFFSET(Z$22,,1-$F44),) -> 17.64 | AA44: =IF(AA$9>=$F44,$H44*OFFSET(AA$22,,1-$F44),) -> 17.64 | AB44: =IF(AB$9>=$F44,$H44*OFFSET(AB$22,,1-$F44),) -> 17.64 | AC44: =IF(AC$9>=$F44,$H44*OFFSET(AC$22,,1-$F44),) -> 17.64 | AD44: =IF(AD$9>=$F44,$H44*OFFSET(AD$22,,1-$F44),) -> 17.64 | AE44: =IF(AE$9>=$F44,$H44*OFFSET(AE$22,,1-$F44),) -> 17.64 | AF44: =IF(AF$9>=$F44,$H44*OFFSET(AF$22,,1-$F44),) -> 246.96 | AG44: =IF(AG$9>=$F44,$H44*OFFSET(AG$22,,1-$F44),) -> 0 | AH44: =IF(AH$9>=$F44,$H44*OFFSET(AH$22,,1-$F44),) -> 0 | AI44: =IF(AI$9>=$F44,$H44*OFFSET(AI$22,,1-$F44),) -> 0 | AJ44: =IF(AJ$9>=$F44,$H44*OFFSET(AJ$22,,1-$F44),) -> 0 | AK44: =IF(AK$9>=$F44,$H44*OFFSET(AK$22,,1-$F44),) -> 0 | AL44: =IF(AL$9>=$F44,$H44*OFFSET(AL$22,,1-$F44),) -> 0 | AM44: =IF(AM$9>=$F44,$H44*OFFSET(AM$22,,1-$F44),) -> 0 | AN44: =IF(AN$9>=$F44,$H44*OFFSET(AN$22,,1-$F44),) -> 0 | AO44: =IF(AO$9>=$F44,$H44*OFFSET(AO$22,,1-$F44),) -> 0 | AP44: =IF(AP$9>=$F44,$H44*OFFSET(AP$22,,1-$F44),) -> 0 | AQ44: =IF(AQ$9>=$F44,$H44*OFFSET(AQ$22,,1-$F44),) -> 0 | AR44: =IF(AR$9>=$F44,$H44*OFFSET(AR$22,,1-$F44),) -> 0 | AS44: =IF(AS$9>=$F44,$H44*OFFSET(AS$22,,1-$F44),) -> 0 | AT44: =IF(AT$9>=$F44,$H44*OFFSET(AT$22,,1-$F44),) -> 0 | AU44: =IF(AU$9>=$F44,$H44*OFFSET(AU$22,,1-$F44),) -> 0 | AV44: =IF(AV$9>=$F44,$H44*OFFSET(AV$22,,1-$F44),) -> 0 | AW44: =IF(AW$9>=$F44,$H44*OFFSET(AW$22,,1-$F44),) -> 0
F45: =OFFSET($I$9,,ROWS($E$33:$E45)) -> 13 | H45: =OFFSET($I$26,,ROWS($E$33:$E45)) -> 347.2875 | J45: =IF(J$9>=$F45,$H45*OFFSET(J$22,,1-$F45),) -> 0 | K45: =IF(K$9>=$F45,$H45*OFFSET(K$22,,1-$F45),) -> 0 | L45: =IF(L$9>=$F45,$H45*OFFSET(L$22,,1-$F45),) -> 0 | M45: =IF(M$9>=$F45,$H45*OFFSET(M$22,,1-$F45),) -> 0 | N45: =IF(N$9>=$F45,$H45*OFFSET(N$22,,1-$F45),) -> 0 | O45: =IF(O$9>=$F45,$H45*OFFSET(O$22,,1-$F45),) -> 0 | P45: =IF(P$9>=$F45,$H45*OFFSET(P$22,,1-$F45),) -> 0 | Q45: =IF(Q$9>=$F45,$H45*OFFSET(Q$22,,1-$F45),) -> 0 | R45: =IF(R$9>=$F45,$H45*OFFSET(R$22,,1-$F45),) -> 0 | S45: =IF(S$9>=$F45,$H45*OFFSET(S$22,,1-$F45),) -> 0 | T45: =IF(T$9>=$F45,$H45*OFFSET(T$22,,1-$F45),) -> 0 | U45: =IF(U$9>=$F45,$H45*OFFSET(U$22,,1-$F45),) -> 0 | V45: =IF(V$9>=$F45,$H45*OFFSET(V$22,,1-$F45),) -> 13.8915 | W45: =IF(W$9>=$F45,$H45*OFFSET(W$22,,1-$F45),) -> 13.8915 | X45: =IF(X$9>=$F45,$H45*OFFSET(X$22,,1-$F45),) -> 13.8915 | Y45: =IF(Y$9>=$F45,$H45*OFFSET(Y$22,,1-$F45),) -> 13.8915 | Z45: =IF(Z$9>=$F45,$H45*OFFSET(Z$22,,1-$F45),) -> 13.8915 | AA45: =IF(AA$9>=$F45,$H45*OFFSET(AA$22,,1-$F45),) -> 13.8915 | AB45: =IF(AB$9>=$F45,$H45*OFFSET(AB$22,,1-$F45),) -> 13.8915 | AC45: =IF(AC$9>=$F45,$H45*OFFSET(AC$22,,1-$F45),) -> 13.8915 | AD45: =IF(AD$9>=$F45,$H45*OFFSET(AD$22,,1-$F45),) -> 13.8915 | AE45: =IF(AE$9>=$F45,$H45*OFFSET(AE$22,,1-$F45),) -> 13.8915 | AF45: =IF(AF$9>=$F45,$H45*OFFSET(AF$22,,1-$F45),) -> 13.8915 | AG45: =IF(AG$9>=$F45,$H45*OFFSET(AG$22,,1-$F45),) -> 194.481 | AH45: =IF(AH$9>=$F45,$H45*OFFSET(AH$22,,1-$F45),) -> 0 | AI45: =IF(AI$9>=$F45,$H45*OFFSET(AI$22,,1-$F45),) -> 0 | AJ45: =IF(AJ$9>=$F45,$H45*OFFSET(AJ$22,,1-$F45),) -> 0 | AK45: =IF(AK$9>=$F45,$H45*OFFSET(AK$22,,1-$F45),) -> 0 | AL45: =IF(AL$9>=$F45,$H45*OFFSET(AL$22,,1-$F45),) -> 0 | AM45: =IF(AM$9>=$F45,$H45*OFFSET(AM$22,,1-$F45),) -> 0 | AN45: =IF(AN$9>=$F45,$H45*OFFSET(AN$22,,1-$F45),) -> 0 | AO45: =IF(AO$9>=$F45,$H45*OFFSET(AO$22,,1-$F45),) -> 0 | AP45: =IF(AP$9>=$F45,$H45*OFFSET(AP$22,,1-$F45),) -> 0 | AQ45: =IF(AQ$9>=$F45,$H45*OFFSET(AQ$22,,1-$F45),) -> 0 | AR45: =IF(AR$9>=$F45,$H45*OFFSET(AR$22,,1-$F45),) -> 0 | AS45: =IF(AS$9>=$F45,$H45*OFFSET(AS$22,,1-$F45),) -> 0 | AT45: =IF(AT$9>=$F45,$H45*OFFSET(AT$22,,1-$F45),) -> 0 | AU45: =IF(AU$9>=$F45,$H45*OFFSET(AU$22,,1-$F45),) -> 0 | AV45: =IF(AV$9>=$F45,$H45*OFFSET(AV$22,,1-$F45),) -> 0 | AW45: =IF(AW$9>=$F45,$H45*OFFSET(AW$22,,1-$F45),) -> 0
F46: =OFFSET($I$9,,ROWS($E$33:$E46)) -> 14 | H46: =OFFSET($I$26,,ROWS($E$33:$E46)) -> 115.7625 | J46: =IF(J$9>=$F46,$H46*OFFSET(J$22,,1-$F46),) -> 0 | K46: =IF(K$9>=$F46,$H46*OFFSET(K$22,,1-$F46),) -> 0 | L46: =IF(L$9>=$F46,$H46*OFFSET(L$22,,1-$F46),) -> 0 | M46: =IF(M$9>=$F46,$H46*OFFSET(M$22,,1-$F46),) -> 0 | N46: =IF(N$9>=$F46,$H46*OFFSET(N$22,,1-$F46),) -> 0 | O46: =IF(O$9>=$F46,$H46*OFFSET(O$22,,1-$F46),) -> 0 | P46: =IF(P$9>=$F46,$H46*OFFSET(P$22,,1-$F46),) -> 0 | Q46: =IF(Q$9>=$F46,$H46*OFFSET(Q$22,,1-$F46),) -> 0 | R46: =IF(R$9>=$F46,$H46*OFFSET(R$22,,1-$F46),) -> 0 | S46: =IF(S$9>=$F46,$H46*OFFSET(S$22,,1-$F46),) -> 0 | T46: =IF(T$9>=$F46,$H46*OFFSET(T$22,,1-$F46),) -> 0 | U46: =IF(U$9>=$F46,$H46*OFFSET(U$22,,1-$F46),) -> 0 | V46: =IF(V$9>=$F46,$H46*OFFSET(V$22,,1-$F46),) -> 0 | W46: =IF(W$9>=$F46,$H46*OFFSET(W$22,,1-$F46),) -> 4.6305 | X46: =IF(X$9>=$F46,$H46*OFFSET(X$22,,1-$F46),) -> 4.6305 | Y46: =IF(Y$9>=$F46,$H46*OFFSET(Y$22,,1-$F46),) -> 4.6305 | Z46: =IF(Z$9>=$F46,$H46*OFFSET(Z$22,,1-$F46),) -> 4.6305 | AA46: =IF(AA$9>=$F46,$H46*OFFSET(AA$22,,1-$F46),) -> 4.6305 | AB46: =IF(AB$9>=$F46,$H46*OFFSET(AB$22,,1-$F46),) -> 4.6305 | AC46: =IF(AC$9>=$F46,$H46*OFFSET(AC$22,,1-$F46),) -> 4.6305 | AD46: =IF(AD$9>=$F46,$H46*OFFSET(AD$22,,1-$F46),) -> 4.6305 | AE46: =IF(AE$9>=$F46,$H46*OFFSET(AE$22,,1-$F46),) -> 4.6305 | AF46: =IF(AF$9>=$F46,$H46*OFFSET(AF$22,,1-$F46),) -> 4.6305 | AG46: =IF(AG$9>=$F46,$H46*OFFSET(AG$22,,1-$F46),) -> 4.6305 | AH46: =IF(AH$9>=$F46,$H46*OFFSET(AH$22,,1-$F46),) -> 64.827 | AI46: =IF(AI$9>=$F46,$H46*OFFSET(AI$22,,1-$F46),) -> 0 | AJ46: =IF(AJ$9>=$F46,$H46*OFFSET(AJ$22,,1-$F46),) -> 0 | AK46: =IF(AK$9>=$F46,$H46*OFFSET(AK$22,,1-$F46),) -> 0 | AL46: =IF(AL$9>=$F46,$H46*OFFSET(AL$22,,1-$F46),) -> 0 | AM46: =IF(AM$9>=$F46,$H46*OFFSET(AM$22,,1-$F46),) -> 0 | AN46: =IF(AN$9>=$F46,$H46*OFFSET(AN$22,,1-$F46),) -> 0 | AO46: =IF(AO$9>=$F46,$H46*OFFSET(AO$22,,1-$F46),) -> 0 | AP46: =IF(AP$9>=$F46,$H46*OFFSET(AP$22,,1-$F46),) -> 0 | AQ46: =IF(AQ$9>=$F46,$H46*OFFSET(AQ$22,,1-$F46),) -> 0 | AR46: =IF(AR$9>=$F46,$H46*OFFSET(AR$22,,1-$F46),) -> 0 | AS46: =IF(AS$9>=$F46,$H46*OFFSET(AS$22,,1-$F46),) -> 0 | AT46: =IF(AT$9>=$F46,$H46*OFFSET(AT$22,,1-$F46),) -> 0 | AU46: =IF(AU$9>=$F46,$H46*OFFSET(AU$22,,1-$F46),) -> 0 | AV46: =IF(AV$9>=$F46,$H46*OFFSET(AV$22,,1-$F46),) -> 0 | AW46: =IF(AW$9>=$F46,$H46*OFFSET(AW$22,,1-$F46),) -> 0
F47: =OFFSET($I$9,,ROWS($E$33:$E47)) -> 15 | H47: =OFFSET($I$26,,ROWS($E$33:$E47)) -> 231.525 | J47: =IF(J$9>=$F47,$H47*OFFSET(J$22,,1-$F47),) -> 0 | K47: =IF(K$9>=$F47,$H47*OFFSET(K$22,,1-$F47),) -> 0 | L47: =IF(L$9>=$F47,$H47*OFFSET(L$22,,1-$F47),) -> 0 | M47: =IF(M$9>=$F47,$H47*OFFSET(M$22,,1-$F47),) -> 0 | N47: =IF(N$9>=$F47,$H47*OFFSET(N$22,,1-$F47),) -> 0 | O47: =IF(O$9>=$F47,$H47*OFFSET(O$22,,1-$F47),) -> 0 | P47: =IF(P$9>=$F47,$H47*OFFSET(P$22,,1-$F47),) -> 0 | Q47: =IF(Q$9>=$F47,$H47*OFFSET(Q$22,,1-$F47),) -> 0 | R47: =IF(R$9>=$F47,$H47*OFFSET(R$22,,1-$F47),) -> 0 | S47: =IF(S$9>=$F47,$H47*OFFSET(S$22,,1-$F47),) -> 0 | T47: =IF(T$9>=$F47,$H47*OFFSET(T$22,,1-$F47),) -> 0 | U47: =IF(U$9>=$F47,$H47*OFFSET(U$22,,1-$F47),) -> 0 | V47: =IF(V$9>=$F47,$H47*OFFSET(V$22,,1-$F47),) -> 0 | W47: =IF(W$9>=$F47,$H47*OFFSET(W$22,,1-$F47),) -> 0 | X47: =IF(X$9>=$F47,$H47*OFFSET(X$22,,1-$F47),) -> 9.261 | Y47: =IF(Y$9>=$F47,$H47*OFFSET(Y$22,,1-$F47),) -> 9.261 | Z47: =IF(Z$9>=$F47,$H47*OFFSET(Z$22,,1-$F47),) -> 9.261 | AA47: =IF(AA$9>=$F47,$H47*OFFSET(AA$22,,1-$F47),) -> 9.261 | AB47: =IF(AB$9>=$F47,$H47*OFFSET(AB$22,,1-$F47),) -> 9.261 | AC47: =IF(AC$9>=$F47,$H47*OFFSET(AC$22,,1-$F47),) -> 9.261 | AD47: =IF(AD$9>=$F47,$H47*OFFSET(AD$22,,1-$F47),) -> 9.261 | AE47: =IF(AE$9>=$F47,$H47*OFFSET(AE$22,,1-$F47),) -> 9.261 | AF47: =IF(AF$9>=$F47,$H47*OFFSET(AF$22,,1-$F47),) -> 9.261 | AG47: =IF(AG$9>=$F47,$H47*OFFSET(AG$22,,1-$F47),) -> 9.261 | AH47: =IF(AH$9>=$F47,$H47*OFFSET(AH$22,,1-$F47),) -> 9.261 | AI47: =IF(AI$9>=$F47,$H47*OFFSET(AI$22,,1-$F47),) -> 129.654 | AJ47: =IF(AJ$9>=$F47,$H47*OFFSET(AJ$22,,1-$F47),) -> 0 | AK47: =IF(AK$9>=$F47,$H47*OFFSET(AK$22,,1-$F47),) -> 0 | AL47: =IF(AL$9>=$F47,$H47*OFFSET(AL$22,,1-$F47),) -> 0 | AM47: =IF(AM$9>=$F47,$H47*OFFSET(AM$22,,1-$F47),) -> 0 | AN47: =IF(AN$9>=$F47,$H47*OFFSET(AN$22,,1-$F47),) -> 0 | AO47: =IF(AO$9>=$F47,$H47*OFFSET(AO$22,,1-$F47),) -> 0 | AP47: =IF(AP$9>=$F47,$H47*OFFSET(AP$22,,1-$F47),) -> 0 | AQ47: =IF(AQ$9>=$F47,$H47*OFFSET(AQ$22,,1-$F47),) -> 0 | AR47: =IF(AR$9>=$F47,$H47*OFFSET(AR$22,,1-$F47),) -> 0 | AS47: =IF(AS$9>=$F47,$H47*OFFSET(AS$22,,1-$F47),) -> 0 | AT47: =IF(AT$9>=$F47,$H47*OFFSET(AT$22,,1-$F47),) -> 0 | AU47: =IF(AU$9>=$F47,$H47*OFFSET(AU$22,,1-$F47),) -> 0 | AV47: =IF(AV$9>=$F47,$H47*OFFSET(AV$22,,1-$F47),) -> 0 | AW47: =IF(AW$9>=$F47,$H47*OFFSET(AW$22,,1-$F47),) -> 0
F48: =OFFSET($I$9,,ROWS($E$33:$E48)) -> 16 | H48: =OFFSET($I$26,,ROWS($E$33:$E48)) -> 463.05 | J48: =IF(J$9>=$F48,$H48*OFFSET(J$22,,1-$F48),) -> 0 | K48: =IF(K$9>=$F48,$H48*OFFSET(K$22,,1-$F48),) -> 0 | L48: =IF(L$9>=$F48,$H48*OFFSET(L$22,,1-$F48),) -> 0 | M48: =IF(M$9>=$F48,$H48*OFFSET(M$22,,1-$F48),) -> 0 | N48: =IF(N$9>=$F48,$H48*OFFSET(N$22,,1-$F48),) -> 0 | O48: =IF(O$9>=$F48,$H48*OFFSET(O$22,,1-$F48),) -> 0 | P48: =IF(P$9>=$F48,$H48*OFFSET(P$22,,1-$F48),) -> 0 | Q48: =IF(Q$9>=$F48,$H48*OFFSET(Q$22,,1-$F48),) -> 0 | R48: =IF(R$9>=$F48,$H48*OFFSET(R$22,,1-$F48),) -> 0 | S48: =IF(S$9>=$F48,$H48*OFFSET(S$22,,1-$F48),) -> 0 | T48: =IF(T$9>=$F48,$H48*OFFSET(T$22,,1-$F48),) -> 0 | U48: =IF(U$9>=$F48,$H48*OFFSET(U$22,,1-$F48),) -> 0 | V48: =IF(V$9>=$F48,$H48*OFFSET(V$22,,1-$F48),) -> 0 | W48: =IF(W$9>=$F48,$H48*OFFSET(W$22,,1-$F48),) -> 0 | X48: =IF(X$9>=$F48,$H48*OFFSET(X$22,,1-$F48),) -> 0 | Y48: =IF(Y$9>=$F48,$H48*OFFSET(Y$22,,1-$F48),) -> 18.522 | Z48: =IF(Z$9>=$F48,$H48*OFFSET(Z$22,,1-$F48),) -> 18.522 | AA48: =IF(AA$9>=$F48,$H48*OFFSET(AA$22,,1-$F48),) -> 18.522 | AB48: =IF(AB$9>=$F48,$H48*OFFSET(AB$22,,1-$F48),) -> 18.522 | AC48: =IF(AC$9>=$F48,$H48*OFFSET(AC$22,,1-$F48),) -> 18.522 | AD48: =IF(AD$9>=$F48,$H48*OFFSET(AD$22,,1-$F48),) -> 18.522 | AE48: =IF(AE$9>=$F48,$H48*OFFSET(AE$22,,1-$F48),) -> 18.522 | AF48: =IF(AF$9>=$F48,$H48*OFFSET(AF$22,,1-$F48),) -> 18.522 | AG48: =IF(AG$9>=$F48,$H48*OFFSET(AG$22,,1-$F48),) -> 18.522 | AH48: =IF(AH$9>=$F48,$H48*OFFSET(AH$22,,1-$F48),) -> 18.522 | AI48: =IF(AI$9>=$F48,$H48*OFFSET(AI$22,,1-$F48),) -> 18.522 | AJ48: =IF(AJ$9>=$F48,$H48*OFFSET(AJ$22,,1-$F48),) -> 259.308 | AK48: =IF(AK$9>=$F48,$H48*OFFSET(AK$22,,1-$F48),) -> 0 | AL48: =IF(AL$9>=$F48,$H48*OFFSET(AL$22,,1-$F48),) -> 0 | AM48: =IF(AM$9>=$F48,$H48*OFFSET(AM$22,,1-$F48),) -> 0 | AN48: =IF(AN$9>=$F48,$H48*OFFSET(AN$22,,1-$F48),) -> 0 | AO48: =IF(AO$9>=$F48,$H48*OFFSET(AO$22,,1-$F48),) -> 0 | AP48: =IF(AP$9>=$F48,$H48*OFFSET(AP$22,,1-$F48),) -> 0 | AQ48: =IF(AQ$9>=$F48,$H48*OFFSET(AQ$22,,1-$F48),) -> 0 | AR48: =IF(AR$9>=$F48,$H48*OFFSET(AR$22,,1-$F48),) -> 0 | AS48: =IF(AS$9>=$F48,$H48*OFFSET(AS$22,,1-$F48),) -> 0 | AT48: =IF(AT$9>=$F48,$H48*OFFSET(AT$22,,1-$F48),) -> 0 | AU48: =IF(AU$9>=$F48,$H48*OFFSET(AU$22,,1-$F48),) -> 0 | AV48: =IF(AV$9>=$F48,$H48*OFFSET(AV$22,,1-$F48),) -> 0 | AW48: =IF(AW$9>=$F48,$H48*OFFSET(AW$22,,1-$F48),) -> 0
F49: =OFFSET($I$9,,ROWS($E$33:$E49)) -> 17 | H49: =OFFSET($I$26,,ROWS($E$33:$E49)) -> 364.651875 | J49: =IF(J$9>=$F49,$H49*OFFSET(J$22,,1-$F49),) -> 0 | K49: =IF(K$9>=$F49,$H49*OFFSET(K$22,,1-$F49),) -> 0 | L49: =IF(L$9>=$F49,$H49*OFFSET(L$22,,1-$F49),) -> 0 | M49: =IF(M$9>=$F49,$H49*OFFSET(M$22,,1-$F49),) -> 0 | N49: =IF(N$9>=$F49,$H49*OFFSET(N$22,,1-$F49),) -> 0 | O49: =IF(O$9>=$F49,$H49*OFFSET(O$22,,1-$F49),) -> 0 | P49: =IF(P$9>=$F49,$H49*OFFSET(P$22,,1-$F49),) -> 0 | Q49: =IF(Q$9>=$F49,$H49*OFFSET(Q$22,,1-$F49),) -> 0 | R49: =IF(R$9>=$F49,$H49*OFFSET(R$22,,1-$F49),) -> 0 | S49: =IF(S$9>=$F49,$H49*OFFSET(S$22,,1-$F49),) -> 0 | T49: =IF(T$9>=$F49,$H49*OFFSET(T$22,,1-$F49),) -> 0 | U49: =IF(U$9>=$F49,$H49*OFFSET(U$22,,1-$F49),) -> 0 | V49: =IF(V$9>=$F49,$H49*OFFSET(V$22,,1-$F49),) -> 0 | W49: =IF(W$9>=$F49,$H49*OFFSET(W$22,,1-$F49),) -> 0 | X49: =IF(X$9>=$F49,$H49*OFFSET(X$22,,1-$F49),) -> 0 | Y49: =IF(Y$9>=$F49,$H49*OFFSET(Y$22,,1-$F49),) -> 0 | Z49: =IF(Z$9>=$F49,$H49*OFFSET(Z$22,,1-$F49),) -> 14.586075 | AA49: =IF(AA$9>=$F49,$H49*OFFSET(AA$22,,1-$F49),) -> 14.586075 | AB49: =IF(AB$9>=$F49,$H49*OFFSET(AB$22,,1-$F49),) -> 14.586075 | AC49: =IF(AC$9>=$F49,$H49*OFFSET(AC$22,,1-$F49),) -> 14.586075 | AD49: =IF(AD$9>=$F49,$H49*OFFSET(AD$22,,1-$F49),) -> 14.586075 | AE49: =IF(AE$9>=$F49,$H49*OFFSET(AE$22,,1-$F49),) -> 14.586075 | AF49: =IF(AF$9>=$F49,$H49*OFFSET(AF$22,,1-$F49),) -> 14.586075 | AG49: =IF(AG$9>=$F49,$H49*OFFSET(AG$22,,1-$F49),) -> 14.586075 | AH49: =IF(AH$9>=$F49,$H49*OFFSET(AH$22,,1-$F49),) -> 14.586075 | AI49: =IF(AI$9>=$F49,$H49*OFFSET(AI$22,,1-$F49),) -> 14.586075 | AJ49: =IF(AJ$9>=$F49,$H49*OFFSET(AJ$22,,1-$F49),) -> 14.586075 | AK49: =IF(AK$9>=$F49,$H49*OFFSET(AK$22,,1-$F49),) -> 204.20505 | AL49: =IF(AL$9>=$F49,$H49*OFFSET(AL$22,,1-$F49),) -> 0 | AM49: =IF(AM$9>=$F49,$H49*OFFSET(AM$22,,1-$F49),) -> 0 | AN49: =IF(AN$9>=$F49,$H49*OFFSET(AN$22,,1-$F49),) -> 0 | AO49: =IF(AO$9>=$F49,$H49*OFFSET(AO$22,,1-$F49),) -> 0 | AP49: =IF(AP$9>=$F49,$H49*OFFSET(AP$22,,1-$F49),) -> 0 | AQ49: =IF(AQ$9>=$F49,$H49*OFFSET(AQ$22,,1-$F49),) -> 0 | AR49: =IF(AR$9>=$F49,$H49*OFFSET(AR$22,,1-$F49),) -> 0 | AS49: =IF(AS$9>=$F49,$H49*OFFSET(AS$22,,1-$F49),) -> 0 | AT49: =IF(AT$9>=$F49,$H49*OFFSET(AT$22,,1-$F49),) -> 0 | AU49: =IF(AU$9>=$F49,$H49*OFFSET(AU$22,,1-$F49),) -> 0 | AV49: =IF(AV$9>=$F49,$H49*OFFSET(AV$22,,1-$F49),) -> 0 | AW49: =IF(AW$9>=$F49,$H49*OFFSET(AW$22,,1-$F49),) -> 0
F50: =OFFSET($I$9,,ROWS($E$33:$E50)) -> 18 | H50: =OFFSET($I$26,,ROWS($E$33:$E50)) -> 121.550625 | J50: =IF(J$9>=$F50,$H50*OFFSET(J$22,,1-$F50),) -> 0 | K50: =IF(K$9>=$F50,$H50*OFFSET(K$22,,1-$F50),) -> 0 | L50: =IF(L$9>=$F50,$H50*OFFSET(L$22,,1-$F50),) -> 0 | M50: =IF(M$9>=$F50,$H50*OFFSET(M$22,,1-$F50),) -> 0 | N50: =IF(N$9>=$F50,$H50*OFFSET(N$22,,1-$F50),) -> 0 | O50: =IF(O$9>=$F50,$H50*OFFSET(O$22,,1-$F50),) -> 0 | P50: =IF(P$9>=$F50,$H50*OFFSET(P$22,,1-$F50),) -> 0 | Q50: =IF(Q$9>=$F50,$H50*OFFSET(Q$22,,1-$F50),) -> 0 | R50: =IF(R$9>=$F50,$H50*OFFSET(R$22,,1-$F50),) -> 0 | S50: =IF(S$9>=$F50,$H50*OFFSET(S$22,,1-$F50),) -> 0 | T50: =IF(T$9>=$F50,$H50*OFFSET(T$22,,1-$F50),) -> 0 | U50: =IF(U$9>=$F50,$H50*OFFSET(U$22,,1-$F50),) -> 0 | V50: =IF(V$9>=$F50,$H50*OFFSET(V$22,,1-$F50),) -> 0 | W50: =IF(W$9>=$F50,$H50*OFFSET(W$22,,1-$F50),) -> 0 | X50: =IF(X$9>=$F50,$H50*OFFSET(X$22,,1-$F50),) -> 0 | Y50: =IF(Y$9>=$F50,$H50*OFFSET(Y$22,,1-$F50),) -> 0 | Z50: =IF(Z$9>=$F50,$H50*OFFSET(Z$22,,1-$F50),) -> 0 | AA50: =IF(AA$9>=$F50,$H50*OFFSET(AA$22,,1-$F50),) -> 4.862025 | AB50: =IF(AB$9>=$F50,$H50*OFFSET(AB$22,,1-$F50),) -> 4.862025 | AC50: =IF(AC$9>=$F50,$H50*OFFSET(AC$22,,1-$F50),) -> 4.862025 | AD50: =IF(AD$9>=$F50,$H50*OFFSET(AD$22,,1-$F50),) -> 4.862025 | AE50: =IF(AE$9>=$F50,$H50*OFFSET(AE$22,,1-$F50),) -> 4.862025 | AF50: =IF(AF$9>=$F50,$H50*OFFSET(AF$22,,1-$F50),) -> 4.862025 | AG50: =IF(AG$9>=$F50,$H50*OFFSET(AG$22,,1-$F50),) -> 4.862025 | AH50: =IF(AH$9>=$F50,$H50*OFFSET(AH$22,,1-$F50),) -> 4.862025 | AI50: =IF(AI$9>=$F50,$H50*OFFSET(AI$22,,1-$F50),) -> 4.862025 | AJ50: =IF(AJ$9>=$F50,$H50*OFFSET(AJ$22,,1-$F50),) -> 4.862025 | AK50: =IF(AK$9>=$F50,$H50*OFFSET(AK$22,,1-$F50),) -> 4.862025 | AL50: =IF(AL$9>=$F50,$H50*OFFSET(AL$22,,1-$F50),) -> 68.06835 | AM50: =IF(AM$9>=$F50,$H50*OFFSET(AM$22,,1-$F50),) -> 0 | AN50: =IF(AN$9>=$F50,$H50*OFFSET(AN$22,,1-$F50),) -> 0 | AO50: =IF(AO$9>=$F50,$H50*OFFSET(AO$22,,1-$F50),) -> 0 | AP50: =IF(AP$9>=$F50,$H50*OFFSET(AP$22,,1-$F50),) -> 0 | AQ50: =IF(AQ$9>=$F50,$H50*OFFSET(AQ$22,,1-$F50),) -> 0 | AR50: =IF(AR$9>=$F50,$H50*OFFSET(AR$22,,1-$F50),) -> 0 | AS50: =IF(AS$9>=$F50,$H50*OFFSET(AS$22,,1-$F50),) -> 0 | AT50: =IF(AT$9>=$F50,$H50*OFFSET(AT$22,,1-$F50),) -> 0 | AU50: =IF(AU$9>=$F50,$H50*OFFSET(AU$22,,1-$F50),) -> 0 | AV50: =IF(AV$9>=$F50,$H50*OFFSET(AV$22,,1-$F50),) -> 0 | AW50: =IF(AW$9>=$F50,$H50*OFFSET(AW$22,,1-$F50),) -> 0
F51: =OFFSET($I$9,,ROWS($E$33:$E51)) -> 19 | H51: =OFFSET($I$26,,ROWS($E$33:$E51)) -> 243.10125 | J51: =IF(J$9>=$F51,$H51*OFFSET(J$22,,1-$F51),) -> 0 | K51: =IF(K$9>=$F51,$H51*OFFSET(K$22,,1-$F51),) -> 0 | L51: =IF(L$9>=$F51,$H51*OFFSET(L$22,,1-$F51),) -> 0 | M51: =IF(M$9>=$F51,$H51*OFFSET(M$22,,1-$F51),) -> 0 | N51: =IF(N$9>=$F51,$H51*OFFSET(N$22,,1-$F51),) -> 0 | O51: =IF(O$9>=$F51,$H51*OFFSET(O$22,,1-$F51),) -> 0 | P51: =IF(P$9>=$F51,$H51*OFFSET(P$22,,1-$F51),) -> 0 | Q51: =IF(Q$9>=$F51,$H51*OFFSET(Q$22,,1-$F51),) -> 0 | R51: =IF(R$9>=$F51,$H51*OFFSET(R$22,,1-$F51),) -> 0 | S51: =IF(S$9>=$F51,$H51*OFFSET(S$22,,1-$F51),) -> 0 | T51: =IF(T$9>=$F51,$H51*OFFSET(T$22,,1-$F51),) -> 0 | U51: =IF(U$9>=$F51,$H51*OFFSET(U$22,,1-$F51),) -> 0 | V51: =IF(V$9>=$F51,$H51*OFFSET(V$22,,1-$F51),) -> 0 | W51: =IF(W$9>=$F51,$H51*OFFSET(W$22,,1-$F51),) -> 0 | X51: =IF(X$9>=$F51,$H51*OFFSET(X$22,,1-$F51),) -> 0 | Y51: =IF(Y$9>=$F51,$H51*OFFSET(Y$22,,1-$F51),) -> 0 | Z51: =IF(Z$9>=$F51,$H51*OFFSET(Z$22,,1-$F51),) -> 0 | AA51: =IF(AA$9>=$F51,$H51*OFFSET(AA$22,,1-$F51),) -> 0 | AB51: =IF(AB$9>=$F51,$H51*OFFSET(AB$22,,1-$F51),) -> 9.72405 | AC51: =IF(AC$9>=$F51,$H51*OFFSET(AC$22,,1-$F51),) -> 9.72405 | AD51: =IF(AD$9>=$F51,$H51*OFFSET(AD$22,,1-$F51),) -> 9.72405 | AE51: =IF(AE$9>=$F51,$H51*OFFSET(AE$22,,1-$F51),) -> 9.72405 | AF51: =IF(AF$9>=$F51,$H51*OFFSET(AF$22,,1-$F51),) -> 9.72405 | AG51: =IF(AG$9>=$F51,$H51*OFFSET(AG$22,,1-$F51),) -> 9.72405 | AH51: =IF(AH$9>=$F51,$H51*OFFSET(AH$22,,1-$F51),) -> 9.72405 | AI51: =IF(AI$9>=$F51,$H51*OFFSET(AI$22,,1-$F51),) -> 9.72405 | AJ51: =IF(AJ$9>=$F51,$H51*OFFSET(AJ$22,,1-$F51),) -> 9.72405 | AK51: =IF(AK$9>=$F51,$H51*OFFSET(AK$22,,1-$F51),) -> 9.72405 | AL51: =IF(AL$9>=$F51,$H51*OFFSET(AL$22,,1-$F51),) -> 9.72405 | AM51: =IF(AM$9>=$F51,$H51*OFFSET(AM$22,,1-$F51),) -> 136.1367 | AN51: =IF(AN$9>=$F51,$H51*OFFSET(AN$22,,1-$F51),) -> 0 | AO51: =IF(AO$9>=$F51,$H51*OFFSET(AO$22,,1-$F51),) -> 0 | AP51: =IF(AP$9>=$F51,$H51*OFFSET(AP$22,,1-$F51),) -> 0 | AQ51: =IF(AQ$9>=$F51,$H51*OFFSET(AQ$22,,1-$F51),) -> 0 | AR51: =IF(AR$9>=$F51,$H51*OFFSET(AR$22,,1-$F51),) -> 0 | AS51: =IF(AS$9>=$F51,$H51*OFFSET(AS$22,,1-$F51),) -> 0 | AT51: =IF(AT$9>=$F51,$H51*OFFSET(AT$22,,1-$F51),) -> 0 | AU51: =IF(AU$9>=$F51,$H51*OFFSET(AU$22,,1-$F51),) -> 0 | AV51: =IF(AV$9>=$F51,$H51*OFFSET(AV$22,,1-$F51),) -> 0 | AW51: =IF(AW$9>=$F51,$H51*OFFSET(AW$22,,1-$F51),) -> 0
F52: =OFFSET($I$9,,ROWS($E$33:$E52)) -> 20 | H52: =OFFSET($I$26,,ROWS($E$33:$E52)) -> 486.2025 | J52: =IF(J$9>=$F52,$H52*OFFSET(J$22,,1-$F52),) -> 0 | K52: =IF(K$9>=$F52,$H52*OFFSET(K$22,,1-$F52),) -> 0 | L52: =IF(L$9>=$F52,$H52*OFFSET(L$22,,1-$F52),) -> 0 | M52: =IF(M$9>=$F52,$H52*OFFSET(M$22,,1-$F52),) -> 0 | N52: =IF(N$9>=$F52,$H52*OFFSET(N$22,,1-$F52),) -> 0 | O52: =IF(O$9>=$F52,$H52*OFFSET(O$22,,1-$F52),) -> 0 | P52: =IF(P$9>=$F52,$H52*OFFSET(P$22,,1-$F52),) -> 0 | Q52: =IF(Q$9>=$F52,$H52*OFFSET(Q$22,,1-$F52),) -> 0 | R52: =IF(R$9>=$F52,$H52*OFFSET(R$22,,1-$F52),) -> 0 | S52: =IF(S$9>=$F52,$H52*OFFSET(S$22,,1-$F52),) -> 0 | T52: =IF(T$9>=$F52,$H52*OFFSET(T$22,,1-$F52),) -> 0 | U52: =IF(U$9>=$F52,$H52*OFFSET(U$22,,1-$F52),) -> 0 | V52: =IF(V$9>=$F52,$H52*OFFSET(V$22,,1-$F52),) -> 0 | W52: =IF(W$9>=$F52,$H52*OFFSET(W$22,,1-$F52),) -> 0 | X52: =IF(X$9>=$F52,$H52*OFFSET(X$22,,1-$F52),) -> 0 | Y52: =IF(Y$9>=$F52,$H52*OFFSET(Y$22,,1-$F52),) -> 0 | Z52: =IF(Z$9>=$F52,$H52*OFFSET(Z$22,,1-$F52),) -> 0 | AA52: =IF(AA$9>=$F52,$H52*OFFSET(AA$22,,1-$F52),) -> 0 | AB52: =IF(AB$9>=$F52,$H52*OFFSET(AB$22,,1-$F52),) -> 0 | AC52: =IF(AC$9>=$F52,$H52*OFFSET(AC$22,,1-$F52),) -> 19.4481 | AD52: =IF(AD$9>=$F52,$H52*OFFSET(AD$22,,1-$F52),) -> 19.4481 | AE52: =IF(AE$9>=$F52,$H52*OFFSET(AE$22,,1-$F52),) -> 19.4481 | AF52: =IF(AF$9>=$F52,$H52*OFFSET(AF$22,,1-$F52),) -> 19.4481 | AG52: =IF(AG$9>=$F52,$H52*OFFSET(AG$22,,1-$F52),) -> 19.4481 | AH52: =IF(AH$9>=$F52,$H52*OFFSET(AH$22,,1-$F52),) -> 19.4481 | AI52: =IF(AI$9>=$F52,$H52*OFFSET(AI$22,,1-$F52),) -> 19.4481 | AJ52: =IF(AJ$9>=$F52,$H52*OFFSET(AJ$22,,1-$F52),) -> 19.4481 | AK52: =IF(AK$9>=$F52,$H52*OFFSET(AK$22,,1-$F52),) -> 19.4481 | AL52: =IF(AL$9>=$F52,$H52*OFFSET(AL$22,,1-$F52),) -> 19.4481 | AM52: =IF(AM$9>=$F52,$H52*OFFSET(AM$22,,1-$F52),) -> 19.4481 | AN52: =IF(AN$9>=$F52,$H52*OFFSET(AN$22,,1-$F52),) -> 272.2734 | AO52: =IF(AO$9>=$F52,$H52*OFFSET(AO$22,,1-$F52),) -> 0 | AP52: =IF(AP$9>=$F52,$H52*OFFSET(AP$22,,1-$F52),) -> 0 | AQ52: =IF(AQ$9>=$F52,$H52*OFFSET(AQ$22,,1-$F52),) -> 0 | AR52: =IF(AR$9>=$F52,$H52*OFFSET(AR$22,,1-$F52),) -> 0 | AS52: =IF(AS$9>=$F52,$H52*OFFSET(AS$22,,1-$F52),) -> 0 | AT52: =IF(AT$9>=$F52,$H52*OFFSET(AT$22,,1-$F52),) -> 0 | AU52: =IF(AU$9>=$F52,$H52*OFFSET(AU$22,,1-$F52),) -> 0 | AV52: =IF(AV$9>=$F52,$H52*OFFSET(AV$22,,1-$F52),) -> 0 | AW52: =IF(AW$9>=$F52,$H52*OFFSET(AW$22,,1-$F52),) -> 0
F53: =OFFSET($I$9,,ROWS($E$33:$E53)) -> 21 | H53: =OFFSET($I$26,,ROWS($E$33:$E53)) -> 382.8844688 | J53: =IF(J$9>=$F53,$H53*OFFSET(J$22,,1-$F53),) -> 0 | K53: =IF(K$9>=$F53,$H53*OFFSET(K$22,,1-$F53),) -> 0 | L53: =IF(L$9>=$F53,$H53*OFFSET(L$22,,1-$F53),) -> 0 | M53: =IF(M$9>=$F53,$H53*OFFSET(M$22,,1-$F53),) -> 0 | N53: =IF(N$9>=$F53,$H53*OFFSET(N$22,,1-$F53),) -> 0 | O53: =IF(O$9>=$F53,$H53*OFFSET(O$22,,1-$F53),) -> 0 | P53: =IF(P$9>=$F53,$H53*OFFSET(P$22,,1-$F53),) -> 0 | Q53: =IF(Q$9>=$F53,$H53*OFFSET(Q$22,,1-$F53),) -> 0 | R53: =IF(R$9>=$F53,$H53*OFFSET(R$22,,1-$F53),) -> 0 | S53: =IF(S$9>=$F53,$H53*OFFSET(S$22,,1-$F53),) -> 0 | T53: =IF(T$9>=$F53,$H53*OFFSET(T$22,,1-$F53),) -> 0 | U53: =IF(U$9>=$F53,$H53*OFFSET(U$22,,1-$F53),) -> 0 | V53: =IF(V$9>=$F53,$H53*OFFSET(V$22,,1-$F53),) -> 0 | W53: =IF(W$9>=$F53,$H53*OFFSET(W$22,,1-$F53),) -> 0 | X53: =IF(X$9>=$F53,$H53*OFFSET(X$22,,1-$F53),) -> 0 | Y53: =IF(Y$9>=$F53,$H53*OFFSET(Y$22,,1-$F53),) -> 0 | Z53: =IF(Z$9>=$F53,$H53*OFFSET(Z$22,,1-$F53),) -> 0 | AA53: =IF(AA$9>=$F53,$H53*OFFSET(AA$22,,1-$F53),) -> 0 | AB53: =IF(AB$9>=$F53,$H53*OFFSET(AB$22,,1-$F53),) -> 0 | AC53: =IF(AC$9>=$F53,$H53*OFFSET(AC$22,,1-$F53),) -> 0 | AD53: =IF(AD$9>=$F53,$H53*OFFSET(AD$22,,1-$F53),) -> 15.31537875 | AE53: =IF(AE$9>=$F53,$H53*OFFSET(AE$22,,1-$F53),) -> 15.31537875 | AF53: =IF(AF$9>=$F53,$H53*OFFSET(AF$22,,1-$F53),) -> 15.31537875 | AG53: =IF(AG$9>=$F53,$H53*OFFSET(AG$22,,1-$F53),) -> 15.31537875 | AH53: =IF(AH$9>=$F53,$H53*OFFSET(AH$22,,1-$F53),) -> 15.31537875 | AI53: =IF(AI$9>=$F53,$H53*OFFSET(AI$22,,1-$F53),) -> 15.31537875 | AJ53: =IF(AJ$9>=$F53,$H53*OFFSET(AJ$22,,1-$F53),) -> 15.31537875 | AK53: =IF(AK$9>=$F53,$H53*OFFSET(AK$22,,1-$F53),) -> 15.31537875 | AL53: =IF(AL$9>=$F53,$H53*OFFSET(AL$22,,1-$F53),) -> 15.31537875 | AM53: =IF(AM$9>=$F53,$H53*OFFSET(AM$22,,1-$F53),) -> 15.31537875 | AN53: =IF(AN$9>=$F53,$H53*OFFSET(AN$22,,1-$F53),) -> 15.31537875 | AO53: =IF(AO$9>=$F53,$H53*OFFSET(AO$22,,1-$F53),) -> 214.4153025 | AP53: =IF(AP$9>=$F53,$H53*OFFSET(AP$22,,1-$F53),) -> 0 | AQ53: =IF(AQ$9>=$F53,$H53*OFFSET(AQ$22,,1-$F53),) -> 0 | AR53: =IF(AR$9>=$F53,$H53*OFFSET(AR$22,,1-$F53),) -> 0 | AS53: =IF(AS$9>=$F53,$H53*OFFSET(AS$22,,1-$F53),) -> 0 | AT53: =IF(AT$9>=$F53,$H53*OFFSET(AT$22,,1-$F53),) -> 0 | AU53: =IF(AU$9>=$F53,$H53*OFFSET(AU$22,,1-$F53),) -> 0 | AV53: =IF(AV$9>=$F53,$H53*OFFSET(AV$22,,1-$F53),) -> 0 | AW53: =IF(AW$9>=$F53,$H53*OFFSET(AW$22,,1-$F53),) -> 0
F54: =OFFSET($I$9,,ROWS($E$33:$E54)) -> 22 | H54: =OFFSET($I$26,,ROWS($E$33:$E54)) -> 127.6281563 | J54: =IF(J$9>=$F54,$H54*OFFSET(J$22,,1-$F54),) -> 0 | K54: =IF(K$9>=$F54,$H54*OFFSET(K$22,,1-$F54),) -> 0 | L54: =IF(L$9>=$F54,$H54*OFFSET(L$22,,1-$F54),) -> 0 | M54: =IF(M$9>=$F54,$H54*OFFSET(M$22,,1-$F54),) -> 0 | N54: =IF(N$9>=$F54,$H54*OFFSET(N$22,,1-$F54),) -> 0 | O54: =IF(O$9>=$F54,$H54*OFFSET(O$22,,1-$F54),) -> 0 | P54: =IF(P$9>=$F54,$H54*OFFSET(P$22,,1-$F54),) -> 0 | Q54: =IF(Q$9>=$F54,$H54*OFFSET(Q$22,,1-$F54),) -> 0 | R54: =IF(R$9>=$F54,$H54*OFFSET(R$22,,1-$F54),) -> 0 | S54: =IF(S$9>=$F54,$H54*OFFSET(S$22,,1-$F54),) -> 0 | T54: =IF(T$9>=$F54,$H54*OFFSET(T$22,,1-$F54),) -> 0 | U54: =IF(U$9>=$F54,$H54*OFFSET(U$22,,1-$F54),) -> 0 | V54: =IF(V$9>=$F54,$H54*OFFSET(V$22,,1-$F54),) -> 0 | W54: =IF(W$9>=$F54,$H54*OFFSET(W$22,,1-$F54),) -> 0 | X54: =IF(X$9>=$F54,$H54*OFFSET(X$22,,1-$F54),) -> 0 | Y54: =IF(Y$9>=$F54,$H54*OFFSET(Y$22,,1-$F54),) -> 0 | Z54: =IF(Z$9>=$F54,$H54*OFFSET(Z$22,,1-$F54),) -> 0 | AA54: =IF(AA$9>=$F54,$H54*OFFSET(AA$22,,1-$F54),) -> 0 | AB54: =IF(AB$9>=$F54,$H54*OFFSET(AB$22,,1-$F54),) -> 0 | AC54: =IF(AC$9>=$F54,$H54*OFFSET(AC$22,,1-$F54),) -> 0 | AD54: =IF(AD$9>=$F54,$H54*OFFSET(AD$22,,1-$F54),) -> 0 | AE54: =IF(AE$9>=$F54,$H54*OFFSET(AE$22,,1-$F54),) -> 5.10512625 | AF54: =IF(AF$9>=$F54,$H54*OFFSET(AF$22,,1-$F54),) -> 5.10512625 | AG54: =IF(AG$9>=$F54,$H54*OFFSET(AG$22,,1-$F54),) -> 5.10512625 | AH54: =IF(AH$9>=$F54,$H54*OFFSET(AH$22,,1-$F54),) -> 5.10512625 | AI54: =IF(AI$9>=$F54,$H54*OFFSET(AI$22,,1-$F54),) -> 5.10512625 | AJ54: =IF(AJ$9>=$F54,$H54*OFFSET(AJ$22,,1-$F54),) -> 5.10512625 | AK54: =IF(AK$9>=$F54,$H54*OFFSET(AK$22,,1-$F54),) -> 5.10512625 | AL54: =IF(AL$9>=$F54,$H54*OFFSET(AL$22,,1-$F54),) -> 5.10512625 | AM54: =IF(AM$9>=$F54,$H54*OFFSET(AM$22,,1-$F54),) -> 5.10512625 | AN54: =IF(AN$9>=$F54,$H54*OFFSET(AN$22,,1-$F54),) -> 5.10512625 | AO54: =IF(AO$9>=$F54,$H54*OFFSET(AO$22,,1-$F54),) -> 5.10512625 | AP54: =IF(AP$9>=$F54,$H54*OFFSET(AP$22,,1-$F54),) -> 71.4717675 | AQ54: =IF(AQ$9>=$F54,$H54*OFFSET(AQ$22,,1-$F54),) -> 0 | AR54: =IF(AR$9>=$F54,$H54*OFFSET(AR$22,,1-$F54),) -> 0 | AS54: =IF(AS$9>=$F54,$H54*OFFSET(AS$22,,1-$F54),) -> 0 | AT54: =IF(AT$9>=$F54,$H54*OFFSET(AT$22,,1-$F54),) -> 0 | AU54: =IF(AU$9>=$F54,$H54*OFFSET(AU$22,,1-$F54),) -> 0 | AV54: =IF(AV$9>=$F54,$H54*OFFSET(AV$22,,1-$F54),) -> 0 | AW54: =IF(AW$9>=$F54,$H54*OFFSET(AW$22,,1-$F54),) -> 0
F55: =OFFSET($I$9,,ROWS($E$33:$E55)) -> 23 | H55: =OFFSET($I$26,,ROWS($E$33:$E55)) -> 255.2563125 | J55: =IF(J$9>=$F55,$H55*OFFSET(J$22,,1-$F55),) -> 0 | K55: =IF(K$9>=$F55,$H55*OFFSET(K$22,,1-$F55),) -> 0 | L55: =IF(L$9>=$F55,$H55*OFFSET(L$22,,1-$F55),) -> 0 | M55: =IF(M$9>=$F55,$H55*OFFSET(M$22,,1-$F55),) -> 0 | N55: =IF(N$9>=$F55,$H55*OFFSET(N$22,,1-$F55),) -> 0 | O55: =IF(O$9>=$F55,$H55*OFFSET(O$22,,1-$F55),) -> 0 | P55: =IF(P$9>=$F55,$H55*OFFSET(P$22,,1-$F55),) -> 0 | Q55: =IF(Q$9>=$F55,$H55*OFFSET(Q$22,,1-$F55),) -> 0 | R55: =IF(R$9>=$F55,$H55*OFFSET(R$22,,1-$F55),) -> 0 | S55: =IF(S$9>=$F55,$H55*OFFSET(S$22,,1-$F55),) -> 0 | T55: =IF(T$9>=$F55,$H55*OFFSET(T$22,,1-$F55),) -> 0 | U55: =IF(U$9>=$F55,$H55*OFFSET(U$22,,1-$F55),) -> 0 | V55: =IF(V$9>=$F55,$H55*OFFSET(V$22,,1-$F55),) -> 0 | W55: =IF(W$9>=$F55,$H55*OFFSET(W$22,,1-$F55),) -> 0 | X55: =IF(X$9>=$F55,$H55*OFFSET(X$22,,1-$F55),) -> 0 | Y55: =IF(Y$9>=$F55,$H55*OFFSET(Y$22,,1-$F55),) -> 0 | Z55: =IF(Z$9>=$F55,$H55*OFFSET(Z$22,,1-$F55),) -> 0 | AA55: =IF(AA$9>=$F55,$H55*OFFSET(AA$22,,1-$F55),) -> 0 | AB55: =IF(AB$9>=$F55,$H55*OFFSET(AB$22,,1-$F55),) -> 0 | AC55: =IF(AC$9>=$F55,$H55*OFFSET(AC$22,,1-$F55),) -> 0 | AD55: =IF(AD$9>=$F55,$H55*OFFSET(AD$22,,1-$F55),) -> 0 | AE55: =IF(AE$9>=$F55,$H55*OFFSET(AE$22,,1-$F55),) -> 0 | AF55: =IF(AF$9>=$F55,$H55*OFFSET(AF$22,,1-$F55),) -> 10.2102525 | AG55: =IF(AG$9>=$F55,$H55*OFFSET(AG$22,,1-$F55),) -> 10.2102525 | AH55: =IF(AH$9>=$F55,$H55*OFFSET(AH$22,,1-$F55),) -> 10.2102525 | AI55: =IF(AI$9>=$F55,$H55*OFFSET(AI$22,,1-$F55),) -> 10.2102525 | AJ55: =IF(AJ$9>=$F55,$H55*OFFSET(AJ$22,,1-$F55),) -> 10.2102525 | AK55: =IF(AK$9>=$F55,$H55*OFFSET(AK$22,,1-$F55),) -> 10.2102525 | AL55: =IF(AL$9>=$F55,$H55*OFFSET(AL$22,,1-$F55),) -> 10.2102525 | AM55: =IF(AM$9>=$F55,$H55*OFFSET(AM$22,,1-$F55),) -> 10.2102525 | AN55: =IF(AN$9>=$F55,$H55*OFFSET(AN$22,,1-$F55),) -> 10.2102525 | AO55: =IF(AO$9>=$F55,$H55*OFFSET(AO$22,,1-$F55),) -> 10.2102525 | AP55: =IF(AP$9>=$F55,$H55*OFFSET(AP$22,,1-$F55),) -> 10.2102525 | AQ55: =IF(AQ$9>=$F55,$H55*OFFSET(AQ$22,,1-$F55),) -> 142.943535 | AR55: =IF(AR$9>=$F55,$H55*OFFSET(AR$22,,1-$F55),) -> 0 | AS55: =IF(AS$9>=$F55,$H55*OFFSET(AS$22,,1-$F55),) -> 0 | AT55: =IF(AT$9>=$F55,$H55*OFFSET(AT$22,,1-$F55),) -> 0 | AU55: =IF(AU$9>=$F55,$H55*OFFSET(AU$22,,1-$F55),) -> 0 | AV55: =IF(AV$9>=$F55,$H55*OFFSET(AV$22,,1-$F55),) -> 0 | AW55: =IF(AW$9>=$F55,$H55*OFFSET(AW$22,,1-$F55),) -> 0
F56: =OFFSET($I$9,,ROWS($E$33:$E56)) -> 24 | H56: =OFFSET($I$26,,ROWS($E$33:$E56)) -> 510.512625 | J56: =IF(J$9>=$F56,$H56*OFFSET(J$22,,1-$F56),) -> 0 | K56: =IF(K$9>=$F56,$H56*OFFSET(K$22,,1-$F56),) -> 0 | L56: =IF(L$9>=$F56,$H56*OFFSET(L$22,,1-$F56),) -> 0 | M56: =IF(M$9>=$F56,$H56*OFFSET(M$22,,1-$F56),) -> 0 | N56: =IF(N$9>=$F56,$H56*OFFSET(N$22,,1-$F56),) -> 0 | O56: =IF(O$9>=$F56,$H56*OFFSET(O$22,,1-$F56),) -> 0 | P56: =IF(P$9>=$F56,$H56*OFFSET(P$22,,1-$F56),) -> 0 | Q56: =IF(Q$9>=$F56,$H56*OFFSET(Q$22,,1-$F56),) -> 0 | R56: =IF(R$9>=$F56,$H56*OFFSET(R$22,,1-$F56),) -> 0 | S56: =IF(S$9>=$F56,$H56*OFFSET(S$22,,1-$F56),) -> 0 | T56: =IF(T$9>=$F56,$H56*OFFSET(T$22,,1-$F56),) -> 0 | U56: =IF(U$9>=$F56,$H56*OFFSET(U$22,,1-$F56),) -> 0 | V56: =IF(V$9>=$F56,$H56*OFFSET(V$22,,1-$F56),) -> 0 | W56: =IF(W$9>=$F56,$H56*OFFSET(W$22,,1-$F56),) -> 0 | X56: =IF(X$9>=$F56,$H56*OFFSET(X$22,,1-$F56),) -> 0 | Y56: =IF(Y$9>=$F56,$H56*OFFSET(Y$22,,1-$F56),) -> 0 | Z56: =IF(Z$9>=$F56,$H56*OFFSET(Z$22,,1-$F56),) -> 0 | AA56: =IF(AA$9>=$F56,$H56*OFFSET(AA$22,,1-$F56),) -> 0 | AB56: =IF(AB$9>=$F56,$H56*OFFSET(AB$22,,1-$F56),) -> 0 | AC56: =IF(AC$9>=$F56,$H56*OFFSET(AC$22,,1-$F56),) -> 0 | AD56: =IF(AD$9>=$F56,$H56*OFFSET(AD$22,,1-$F56),) -> 0 | AE56: =IF(AE$9>=$F56,$H56*OFFSET(AE$22,,1-$F56),) -> 0 | AF56: =IF(AF$9>=$F56,$H56*OFFSET(AF$22,,1-$F56),) -> 0 | AG56: =IF(AG$9>=$F56,$H56*OFFSET(AG$22,,1-$F56),) -> 20.420505 | AH56: =IF(AH$9>=$F56,$H56*OFFSET(AH$22,,1-$F56),) -> 20.420505 | AI56: =IF(AI$9>=$F56,$H56*OFFSET(AI$22,,1-$F56),) -> 20.420505 | AJ56: =IF(AJ$9>=$F56,$H56*OFFSET(AJ$22,,1-$F56),) -> 20.420505 | AK56: =IF(AK$9>=$F56,$H56*OFFSET(AK$22,,1-$F56),) -> 20.420505 | AL56: =IF(AL$9>=$F56,$H56*OFFSET(AL$22,,1-$F56),) -> 20.420505 | AM56: =IF(AM$9>=$F56,$H56*OFFSET(AM$22,,1-$F56),) -> 20.420505 | AN56: =IF(AN$9>=$F56,$H56*OFFSET(AN$22,,1-$F56),) -> 20.420505 | AO56: =IF(AO$9>=$F56,$H56*OFFSET(AO$22,,1-$F56),) -> 20.420505 | AP56: =IF(AP$9>=$F56,$H56*OFFSET(AP$22,,1-$F56),) -> 20.420505 | AQ56: =IF(AQ$9>=$F56,$H56*OFFSET(AQ$22,,1-$F56),) -> 20.420505 | AR56: =IF(AR$9>=$F56,$H56*OFFSET(AR$22,,1-$F56),) -> 285.88707 | AS56: =IF(AS$9>=$F56,$H56*OFFSET(AS$22,,1-$F56),) -> 0 | AT56: =IF(AT$9>=$F56,$H56*OFFSET(AT$22,,1-$F56),) -> 0 | AU56: =IF(AU$9>=$F56,$H56*OFFSET(AU$22,,1-$F56),) -> 0 | AV56: =IF(AV$9>=$F56,$H56*OFFSET(AV$22,,1-$F56),) -> 0 | AW56: =IF(AW$9>=$F56,$H56*OFFSET(AW$22,,1-$F56),) -> 0
F57: =OFFSET($I$9,,ROWS($E$33:$E57)) -> 25 | H57: =OFFSET($I$26,,ROWS($E$33:$E57)) -> 402.0286922 | J57: =IF(J$9>=$F57,$H57*OFFSET(J$22,,1-$F57),) -> 0 | K57: =IF(K$9>=$F57,$H57*OFFSET(K$22,,1-$F57),) -> 0 | L57: =IF(L$9>=$F57,$H57*OFFSET(L$22,,1-$F57),) -> 0 | M57: =IF(M$9>=$F57,$H57*OFFSET(M$22,,1-$F57),) -> 0 | N57: =IF(N$9>=$F57,$H57*OFFSET(N$22,,1-$F57),) -> 0 | O57: =IF(O$9>=$F57,$H57*OFFSET(O$22,,1-$F57),) -> 0 | P57: =IF(P$9>=$F57,$H57*OFFSET(P$22,,1-$F57),) -> 0 | Q57: =IF(Q$9>=$F57,$H57*OFFSET(Q$22,,1-$F57),) -> 0 | R57: =IF(R$9>=$F57,$H57*OFFSET(R$22,,1-$F57),) -> 0 | S57: =IF(S$9>=$F57,$H57*OFFSET(S$22,,1-$F57),) -> 0 | T57: =IF(T$9>=$F57,$H57*OFFSET(T$22,,1-$F57),) -> 0 | U57: =IF(U$9>=$F57,$H57*OFFSET(U$22,,1-$F57),) -> 0 | V57: =IF(V$9>=$F57,$H57*OFFSET(V$22,,1-$F57),) -> 0 | W57: =IF(W$9>=$F57,$H57*OFFSET(W$22,,1-$F57),) -> 0 | X57: =IF(X$9>=$F57,$H57*OFFSET(X$22,,1-$F57),) -> 0 | Y57: =IF(Y$9>=$F57,$H57*OFFSET(Y$22,,1-$F57),) -> 0 | Z57: =IF(Z$9>=$F57,$H57*OFFSET(Z$22,,1-$F57),) -> 0 | AA57: =IF(AA$9>=$F57,$H57*OFFSET(AA$22,,1-$F57),) -> 0 | AB57: =IF(AB$9>=$F57,$H57*OFFSET(AB$22,,1-$F57),) -> 0 | AC57: =IF(AC$9>=$F57,$H57*OFFSET(AC$22,,1-$F57),) -> 0 | AD57: =IF(AD$9>=$F57,$H57*OFFSET(AD$22,,1-$F57),) -> 0 | AE57: =IF(AE$9>=$F57,$H57*OFFSET(AE$22,,1-$F57),) -> 0 | AF57: =IF(AF$9>=$F57,$H57*OFFSET(AF$22,,1-$F57),) -> 0 | AG57: =IF(AG$9>=$F57,$H57*OFFSET(AG$22,,1-$F57),) -> 0 | AH57: =IF(AH$9>=$F57,$H57*OFFSET(AH$22,,1-$F57),) -> 16.08114769 | AI57: =IF(AI$9>=$F57,$H57*OFFSET(AI$22,,1-$F57),) -> 16.08114769 | AJ57: =IF(AJ$9>=$F57,$H57*OFFSET(AJ$22,,1-$F57),) -> 16.08114769 | AK57: =IF(AK$9>=$F57,$H57*OFFSET(AK$22,,1-$F57),) -> 16.08114769 | AL57: =IF(AL$9>=$F57,$H57*OFFSET(AL$22,,1-$F57),) -> 16.08114769 | AM57: =IF(AM$9>=$F57,$H57*OFFSET(AM$22,,1-$F57),) -> 16.08114769 | AN57: =IF(AN$9>=$F57,$H57*OFFSET(AN$22,,1-$F57),) -> 16.08114769 | AO57: =IF(AO$9>=$F57,$H57*OFFSET(AO$22,,1-$F57),) -> 16.08114769 | AP57: =IF(AP$9>=$F57,$H57*OFFSET(AP$22,,1-$F57),) -> 16.08114769 | AQ57: =IF(AQ$9>=$F57,$H57*OFFSET(AQ$22,,1-$F57),) -> 16.08114769 | AR57: =IF(AR$9>=$F57,$H57*OFFSET(AR$22,,1-$F57),) -> 16.08114769 | AS57: =IF(AS$9>=$F57,$H57*OFFSET(AS$22,,1-$F57),) -> 225.1360676 | AT57: =IF(AT$9>=$F57,$H57*OFFSET(AT$22,,1-$F57),) -> 0 | AU57: =IF(AU$9>=$F57,$H57*OFFSET(AU$22,,1-$F57),) -> 0 | AV57: =IF(AV$9>=$F57,$H57*OFFSET(AV$22,,1-$F57),) -> 0 | AW57: =IF(AW$9>=$F57,$H57*OFFSET(AW$22,,1-$F57),) -> 0
F58: =OFFSET($I$9,,ROWS($E$33:$E58)) -> 26 | H58: =OFFSET($I$26,,ROWS($E$33:$E58)) -> 134.0095641 | J58: =IF(J$9>=$F58,$H58*OFFSET(J$22,,1-$F58),) -> 0 | K58: =IF(K$9>=$F58,$H58*OFFSET(K$22,,1-$F58),) -> 0 | L58: =IF(L$9>=$F58,$H58*OFFSET(L$22,,1-$F58),) -> 0 | M58: =IF(M$9>=$F58,$H58*OFFSET(M$22,,1-$F58),) -> 0 | N58: =IF(N$9>=$F58,$H58*OFFSET(N$22,,1-$F58),) -> 0 | O58: =IF(O$9>=$F58,$H58*OFFSET(O$22,,1-$F58),) -> 0 | P58: =IF(P$9>=$F58,$H58*OFFSET(P$22,,1-$F58),) -> 0 | Q58: =IF(Q$9>=$F58,$H58*OFFSET(Q$22,,1-$F58),) -> 0 | R58: =IF(R$9>=$F58,$H58*OFFSET(R$22,,1-$F58),) -> 0 | S58: =IF(S$9>=$F58,$H58*OFFSET(S$22,,1-$F58),) -> 0 | T58: =IF(T$9>=$F58,$H58*OFFSET(T$22,,1-$F58),) -> 0 | U58: =IF(U$9>=$F58,$H58*OFFSET(U$22,,1-$F58),) -> 0 | V58: =IF(V$9>=$F58,$H58*OFFSET(V$22,,1-$F58),) -> 0 | W58: =IF(W$9>=$F58,$H58*OFFSET(W$22,,1-$F58),) -> 0 | X58: =IF(X$9>=$F58,$H58*OFFSET(X$22,,1-$F58),) -> 0 | Y58: =IF(Y$9>=$F58,$H58*OFFSET(Y$22,,1-$F58),) -> 0 | Z58: =IF(Z$9>=$F58,$H58*OFFSET(Z$22,,1-$F58),) -> 0 | AA58: =IF(AA$9>=$F58,$H58*OFFSET(AA$22,,1-$F58),) -> 0 | AB58: =IF(AB$9>=$F58,$H58*OFFSET(AB$22,,1-$F58),) -> 0 | AC58: =IF(AC$9>=$F58,$H58*OFFSET(AC$22,,1-$F58),) -> 0 | AD58: =IF(AD$9>=$F58,$H58*OFFSET(AD$22,,1-$F58),) -> 0 | AE58: =IF(AE$9>=$F58,$H58*OFFSET(AE$22,,1-$F58),) -> 0 | AF58: =IF(AF$9>=$F58,$H58*OFFSET(AF$22,,1-$F58),) -> 0 | AG58: =IF(AG$9>=$F58,$H58*OFFSET(AG$22,,1-$F58),) -> 0 | AH58: =IF(AH$9>=$F58,$H58*OFFSET(AH$22,,1-$F58),) -> 0 | AI58: =IF(AI$9>=$F58,$H58*OFFSET(AI$22,,1-$F58),) -> 5.360382563 | AJ58: =IF(AJ$9>=$F58,$H58*OFFSET(AJ$22,,1-$F58),) -> 5.360382563 | AK58: =IF(AK$9>=$F58,$H58*OFFSET(AK$22,,1-$F58),) -> 5.360382563 | AL58: =IF(AL$9>=$F58,$H58*OFFSET(AL$22,,1-$F58),) -> 5.360382563 | AM58: =IF(AM$9>=$F58,$H58*OFFSET(AM$22,,1-$F58),) -> 5.360382563 | AN58: =IF(AN$9>=$F58,$H58*OFFSET(AN$22,,1-$F58),) -> 5.360382563 | AO58: =IF(AO$9>=$F58,$H58*OFFSET(AO$22,,1-$F58),) -> 5.360382563 | AP58: =IF(AP$9>=$F58,$H58*OFFSET(AP$22,,1-$F58),) -> 5.360382563 | AQ58: =IF(AQ$9>=$F58,$H58*OFFSET(AQ$22,,1-$F58),) -> 5.360382563 | AR58: =IF(AR$9>=$F58,$H58*OFFSET(AR$22,,1-$F58),) -> 5.360382563 | AS58: =IF(AS$9>=$F58,$H58*OFFSET(AS$22,,1-$F58),) -> 5.360382563 | AT58: =IF(AT$9>=$F58,$H58*OFFSET(AT$22,,1-$F58),) -> 75.04535588 | AU58: =IF(AU$9>=$F58,$H58*OFFSET(AU$22,,1-$F58),) -> 0 | AV58: =IF(AV$9>=$F58,$H58*OFFSET(AV$22,,1-$F58),) -> 0 | AW58: =IF(AW$9>=$F58,$H58*OFFSET(AW$22,,1-$F58),) -> 0
F59: =OFFSET($I$9,,ROWS($E$33:$E59)) -> 27 | H59: =OFFSET($I$26,,ROWS($E$33:$E59)) -> 268.0191281 | J59: =IF(J$9>=$F59,$H59*OFFSET(J$22,,1-$F59),) -> 0 | K59: =IF(K$9>=$F59,$H59*OFFSET(K$22,,1-$F59),) -> 0 | L59: =IF(L$9>=$F59,$H59*OFFSET(L$22,,1-$F59),) -> 0 | M59: =IF(M$9>=$F59,$H59*OFFSET(M$22,,1-$F59),) -> 0 | N59: =IF(N$9>=$F59,$H59*OFFSET(N$22,,1-$F59),) -> 0 | O59: =IF(O$9>=$F59,$H59*OFFSET(O$22,,1-$F59),) -> 0 | P59: =IF(P$9>=$F59,$H59*OFFSET(P$22,,1-$F59),) -> 0 | Q59: =IF(Q$9>=$F59,$H59*OFFSET(Q$22,,1-$F59),) -> 0 | R59: =IF(R$9>=$F59,$H59*OFFSET(R$22,,1-$F59),) -> 0 | S59: =IF(S$9>=$F59,$H59*OFFSET(S$22,,1-$F59),) -> 0 | T59: =IF(T$9>=$F59,$H59*OFFSET(T$22,,1-$F59),) -> 0 | U59: =IF(U$9>=$F59,$H59*OFFSET(U$22,,1-$F59),) -> 0 | V59: =IF(V$9>=$F59,$H59*OFFSET(V$22,,1-$F59),) -> 0 | W59: =IF(W$9>=$F59,$H59*OFFSET(W$22,,1-$F59),) -> 0 | X59: =IF(X$9>=$F59,$H59*OFFSET(X$22,,1-$F59),) -> 0 | Y59: =IF(Y$9>=$F59,$H59*OFFSET(Y$22,,1-$F59),) -> 0 | Z59: =IF(Z$9>=$F59,$H59*OFFSET(Z$22,,1-$F59),) -> 0 | AA59: =IF(AA$9>=$F59,$H59*OFFSET(AA$22,,1-$F59),) -> 0 | AB59: =IF(AB$9>=$F59,$H59*OFFSET(AB$22,,1-$F59),) -> 0 | AC59: =IF(AC$9>=$F59,$H59*OFFSET(AC$22,,1-$F59),) -> 0 | AD59: =IF(AD$9>=$F59,$H59*OFFSET(AD$22,,1-$F59),) -> 0 | AE59: =IF(AE$9>=$F59,$H59*OFFSET(AE$22,,1-$F59),) -> 0 | AF59: =IF(AF$9>=$F59,$H59*OFFSET(AF$22,,1-$F59),) -> 0 | AG59: =IF(AG$9>=$F59,$H59*OFFSET(AG$22,,1-$F59),) -> 0 | AH59: =IF(AH$9>=$F59,$H59*OFFSET(AH$22,,1-$F59),) -> 0 | AI59: =IF(AI$9>=$F59,$H59*OFFSET(AI$22,,1-$F59),) -> 0 | AJ59: =IF(AJ$9>=$F59,$H59*OFFSET(AJ$22,,1-$F59),) -> 10.72076513 | AK59: =IF(AK$9>=$F59,$H59*OFFSET(AK$22,,1-$F59),) -> 10.72076513 | AL59: =IF(AL$9>=$F59,$H59*OFFSET(AL$22,,1-$F59),) -> 10.72076513 | AM59: =IF(AM$9>=$F59,$H59*OFFSET(AM$22,,1-$F59),) -> 10.72076513 | AN59: =IF(AN$9>=$F59,$H59*OFFSET(AN$22,,1-$F59),) -> 10.72076513 | AO59: =IF(AO$9>=$F59,$H59*OFFSET(AO$22,,1-$F59),) -> 10.72076513 | AP59: =IF(AP$9>=$F59,$H59*OFFSET(AP$22,,1-$F59),) -> 10.72076513 | AQ59: =IF(AQ$9>=$F59,$H59*OFFSET(AQ$22,,1-$F59),) -> 10.72076513 | AR59: =IF(AR$9>=$F59,$H59*OFFSET(AR$22,,1-$F59),) -> 10.72076513 | AS59: =IF(AS$9>=$F59,$H59*OFFSET(AS$22,,1-$F59),) -> 10.72076513 | AT59: =IF(AT$9>=$F59,$H59*OFFSET(AT$22,,1-$F59),) -> 10.72076513 | AU59: =IF(AU$9>=$F59,$H59*OFFSET(AU$22,,1-$F59),) -> 150.0907118 | AV59: =IF(AV$9>=$F59,$H59*OFFSET(AV$22,,1-$F59),) -> 0 | AW59: =IF(AW$9>=$F59,$H59*OFFSET(AW$22,,1-$F59),) -> 0
F60: =OFFSET($I$9,,ROWS($E$33:$E60)) -> 28 | H60: =OFFSET($I$26,,ROWS($E$33:$E60)) -> 536.0382563 | J60: =IF(J$9>=$F60,$H60*OFFSET(J$22,,1-$F60),) -> 0 | K60: =IF(K$9>=$F60,$H60*OFFSET(K$22,,1-$F60),) -> 0 | L60: =IF(L$9>=$F60,$H60*OFFSET(L$22,,1-$F60),) -> 0 | M60: =IF(M$9>=$F60,$H60*OFFSET(M$22,,1-$F60),) -> 0 | N60: =IF(N$9>=$F60,$H60*OFFSET(N$22,,1-$F60),) -> 0 | O60: =IF(O$9>=$F60,$H60*OFFSET(O$22,,1-$F60),) -> 0 | P60: =IF(P$9>=$F60,$H60*OFFSET(P$22,,1-$F60),) -> 0 | Q60: =IF(Q$9>=$F60,$H60*OFFSET(Q$22,,1-$F60),) -> 0 | R60: =IF(R$9>=$F60,$H60*OFFSET(R$22,,1-$F60),) -> 0 | S60: =IF(S$9>=$F60,$H60*OFFSET(S$22,,1-$F60),) -> 0 | T60: =IF(T$9>=$F60,$H60*OFFSET(T$22,,1-$F60),) -> 0 | U60: =IF(U$9>=$F60,$H60*OFFSET(U$22,,1-$F60),) -> 0 | V60: =IF(V$9>=$F60,$H60*OFFSET(V$22,,1-$F60),) -> 0 | W60: =IF(W$9>=$F60,$H60*OFFSET(W$22,,1-$F60),) -> 0 | X60: =IF(X$9>=$F60,$H60*OFFSET(X$22,,1-$F60),) -> 0 | Y60: =IF(Y$9>=$F60,$H60*OFFSET(Y$22,,1-$F60),) -> 0 | Z60: =IF(Z$9>=$F60,$H60*OFFSET(Z$22,,1-$F60),) -> 0 | AA60: =IF(AA$9>=$F60,$H60*OFFSET(AA$22,,1-$F60),) -> 0 | AB60: =IF(AB$9>=$F60,$H60*OFFSET(AB$22,,1-$F60),) -> 0 | AC60: =IF(AC$9>=$F60,$H60*OFFSET(AC$22,,1-$F60),) -> 0 | AD60: =IF(AD$9>=$F60,$H60*OFFSET(AD$22,,1-$F60),) -> 0 | AE60: =IF(AE$9>=$F60,$H60*OFFSET(AE$22,,1-$F60),) -> 0 | AF60: =IF(AF$9>=$F60,$H60*OFFSET(AF$22,,1-$F60),) -> 0 | AG60: =IF(AG$9>=$F60,$H60*OFFSET(AG$22,,1-$F60),) -> 0 | AH60: =IF(AH$9>=$F60,$H60*OFFSET(AH$22,,1-$F60),) -> 0 | AI60: =IF(AI$9>=$F60,$H60*OFFSET(AI$22,,1-$F60),) -> 0 | AJ60: =IF(AJ$9>=$F60,$H60*OFFSET(AJ$22,,1-$F60),) -> 0 | AK60: =IF(AK$9>=$F60,$H60*OFFSET(AK$22,,1-$F60),) -> 21.44153025 | AL60: =IF(AL$9>=$F60,$H60*OFFSET(AL$22,,1-$F60),) -> 21.44153025 | AM60: =IF(AM$9>=$F60,$H60*OFFSET(AM$22,,1-$F60),) -> 21.44153025 | AN60: =IF(AN$9>=$F60,$H60*OFFSET(AN$22,,1-$F60),) -> 21.44153025 | AO60: =IF(AO$9>=$F60,$H60*OFFSET(AO$22,,1-$F60),) -> 21.44153025 | AP60: =IF(AP$9>=$F60,$H60*OFFSET(AP$22,,1-$F60),) -> 21.44153025 | AQ60: =IF(AQ$9>=$F60,$H60*OFFSET(AQ$22,,1-$F60),) -> 21.44153025 | AR60: =IF(AR$9>=$F60,$H60*OFFSET(AR$22,,1-$F60),) -> 21.44153025 | AS60: =IF(AS$9>=$F60,$H60*OFFSET(AS$22,,1-$F60),) -> 21.44153025 | AT60: =IF(AT$9>=$F60,$H60*OFFSET(AT$22,,1-$F60),) -> 21.44153025 | AU60: =IF(AU$9>=$F60,$H60*OFFSET(AU$22,,1-$F60),) -> 21.44153025 | AV60: =IF(AV$9>=$F60,$H60*OFFSET(AV$22,,1-$F60),) -> 300.1814235 | AW60: =IF(AW$9>=$F60,$H60*OFFSET(AW$22,,1-$F60),) -> 0
F61: =OFFSET($I$9,,ROWS($E$33:$E61)) -> 29 | H61: =OFFSET($I$26,,ROWS($E$33:$E61)) -> 422.1301268 | J61: =IF(J$9>=$F61,$H61*OFFSET(J$22,,1-$F61),) -> 0 | K61: =IF(K$9>=$F61,$H61*OFFSET(K$22,,1-$F61),) -> 0 | L61: =IF(L$9>=$F61,$H61*OFFSET(L$22,,1-$F61),) -> 0 | M61: =IF(M$9>=$F61,$H61*OFFSET(M$22,,1-$F61),) -> 0 | N61: =IF(N$9>=$F61,$H61*OFFSET(N$22,,1-$F61),) -> 0 | O61: =IF(O$9>=$F61,$H61*OFFSET(O$22,,1-$F61),) -> 0 | P61: =IF(P$9>=$F61,$H61*OFFSET(P$22,,1-$F61),) -> 0 | Q61: =IF(Q$9>=$F61,$H61*OFFSET(Q$22,,1-$F61),) -> 0 | R61: =IF(R$9>=$F61,$H61*OFFSET(R$22,,1-$F61),) -> 0 | S61: =IF(S$9>=$F61,$H61*OFFSET(S$22,,1-$F61),) -> 0 | T61: =IF(T$9>=$F61,$H61*OFFSET(T$22,,1-$F61),) -> 0 | U61: =IF(U$9>=$F61,$H61*OFFSET(U$22,,1-$F61),) -> 0 | V61: =IF(V$9>=$F61,$H61*OFFSET(V$22,,1-$F61),) -> 0 | W61: =IF(W$9>=$F61,$H61*OFFSET(W$22,,1-$F61),) -> 0 | X61: =IF(X$9>=$F61,$H61*OFFSET(X$22,,1-$F61),) -> 0 | Y61: =IF(Y$9>=$F61,$H61*OFFSET(Y$22,,1-$F61),) -> 0 | Z61: =IF(Z$9>=$F61,$H61*OFFSET(Z$22,,1-$F61),) -> 0 | AA61: =IF(AA$9>=$F61,$H61*OFFSET(AA$22,,1-$F61),) -> 0 | AB61: =IF(AB$9>=$F61,$H61*OFFSET(AB$22,,1-$F61),) -> 0 | AC61: =IF(AC$9>=$F61,$H61*OFFSET(AC$22,,1-$F61),) -> 0 | AD61: =IF(AD$9>=$F61,$H61*OFFSET(AD$22,,1-$F61),) -> 0 | AE61: =IF(AE$9>=$F61,$H61*OFFSET(AE$22,,1-$F61),) -> 0 | AF61: =IF(AF$9>=$F61,$H61*OFFSET(AF$22,,1-$F61),) -> 0 | AG61: =IF(AG$9>=$F61,$H61*OFFSET(AG$22,,1-$F61),) -> 0 | AH61: =IF(AH$9>=$F61,$H61*OFFSET(AH$22,,1-$F61),) -> 0 | AI61: =IF(AI$9>=$F61,$H61*OFFSET(AI$22,,1-$F61),) -> 0 | AJ61: =IF(AJ$9>=$F61,$H61*OFFSET(AJ$22,,1-$F61),) -> 0 | AK61: =IF(AK$9>=$F61,$H61*OFFSET(AK$22,,1-$F61),) -> 0 | AL61: =IF(AL$9>=$F61,$H61*OFFSET(AL$22,,1-$F61),) -> 16.88520507 | AM61: =IF(AM$9>=$F61,$H61*OFFSET(AM$22,,1-$F61),) -> 16.88520507 | AN61: =IF(AN$9>=$F61,$H61*OFFSET(AN$22,,1-$F61),) -> 16.88520507 | AO61: =IF(AO$9>=$F61,$H61*OFFSET(AO$22,,1-$F61),) -> 16.88520507 | AP61: =IF(AP$9>=$F61,$H61*OFFSET(AP$22,,1-$F61),) -> 16.88520507 | AQ61: =IF(AQ$9>=$F61,$H61*OFFSET(AQ$22,,1-$F61),) -> 16.88520507 | AR61: =IF(AR$9>=$F61,$H61*OFFSET(AR$22,,1-$F61),) -> 16.88520507 | AS61: =IF(AS$9>=$F61,$H61*OFFSET(AS$22,,1-$F61),) -> 16.88520507 | AT61: =IF(AT$9>=$F61,$H61*OFFSET(AT$22,,1-$F61),) -> 16.88520507 | AU61: =IF(AU$9>=$F61,$H61*OFFSET(AU$22,,1-$F61),) -> 16.88520507 | AV61: =IF(AV$9>=$F61,$H61*OFFSET(AV$22,,1-$F61),) -> 16.88520507 | AW61: =IF(AW$9>=$F61,$H61*OFFSET(AW$22,,1-$F61),) -> 236.392871
F62: =OFFSET($I$9,,ROWS($E$33:$E62)) -> 30 | H62: =OFFSET($I$26,,ROWS($E$33:$E62)) -> 140.7100423 | J62: =IF(J$9>=$F62,$H62*OFFSET(J$22,,1-$F62),) -> 0 | K62: =IF(K$9>=$F62,$H62*OFFSET(K$22,,1-$F62),) -> 0 | L62: =IF(L$9>=$F62,$H62*OFFSET(L$22,,1-$F62),) -> 0 | M62: =IF(M$9>=$F62,$H62*OFFSET(M$22,,1-$F62),) -> 0 | N62: =IF(N$9>=$F62,$H62*OFFSET(N$22,,1-$F62),) -> 0 | O62: =IF(O$9>=$F62,$H62*OFFSET(O$22,,1-$F62),) -> 0 | P62: =IF(P$9>=$F62,$H62*OFFSET(P$22,,1-$F62),) -> 0 | Q62: =IF(Q$9>=$F62,$H62*OFFSET(Q$22,,1-$F62),) -> 0 | R62: =IF(R$9>=$F62,$H62*OFFSET(R$22,,1-$F62),) -> 0 | S62: =IF(S$9>=$F62,$H62*OFFSET(S$22,,1-$F62),) -> 0 | T62: =IF(T$9>=$F62,$H62*OFFSET(T$22,,1-$F62),) -> 0 | U62: =IF(U$9>=$F62,$H62*OFFSET(U$22,,1-$F62),) -> 0 | V62: =IF(V$9>=$F62,$H62*OFFSET(V$22,,1-$F62),) -> 0 | W62: =IF(W$9>=$F62,$H62*OFFSET(W$22,,1-$F62),) -> 0 | X62: =IF(X$9>=$F62,$H62*OFFSET(X$22,,1-$F62),) -> 0 | Y62: =IF(Y$9>=$F62,$H62*OFFSET(Y$22,,1-$F62),) -> 0 | Z62: =IF(Z$9>=$F62,$H62*OFFSET(Z$22,,1-$F62),) -> 0 | AA62: =IF(AA$9>=$F62,$H62*OFFSET(AA$22,,1-$F62),) -> 0 | AB62: =IF(AB$9>=$F62,$H62*OFFSET(AB$22,,1-$F62),) -> 0 | AC62: =IF(AC$9>=$F62,$H62*OFFSET(AC$22,,1-$F62),) -> 0 | AD62: =IF(AD$9>=$F62,$H62*OFFSET(AD$22,,1-$F62),) -> 0 | AE62: =IF(AE$9>=$F62,$H62*OFFSET(AE$22,,1-$F62),) -> 0 | AF62: =IF(AF$9>=$F62,$H62*OFFSET(AF$22,,1-$F62),) -> 0 | AG62: =IF(AG$9>=$F62,$H62*OFFSET(AG$22,,1-$F62),) -> 0 | AH62: =IF(AH$9>=$F62,$H62*OFFSET(AH$22,,1-$F62),) -> 0 | AI62: =IF(AI$9>=$F62,$H62*OFFSET(AI$22,,1-$F62),) -> 0 | AJ62: =IF(AJ$9>=$F62,$H62*OFFSET(AJ$22,,1-$F62),) -> 0 | AK62: =IF(AK$9>=$F62,$H62*OFFSET(AK$22,,1-$F62),) -> 0 | AL62: =IF(AL$9>=$F62,$H62*OFFSET(AL$22,,1-$F62),) -> 0 | AM62: =IF(AM$9>=$F62,$H62*OFFSET(AM$22,,1-$F62),) -> 5.628401691 | AN62: =IF(AN$9>=$F62,$H62*OFFSET(AN$22,,1-$F62),) -> 5.628401691 | AO62: =IF(AO$9>=$F62,$H62*OFFSET(AO$22,,1-$F62),) -> 5.628401691 | AP62: =IF(AP$9>=$F62,$H62*OFFSET(AP$22,,1-$F62),) -> 5.628401691 | AQ62: =IF(AQ$9>=$F62,$H62*OFFSET(AQ$22,,1-$F62),) -> 5.628401691 | AR62: =IF(AR$9>=$F62,$H62*OFFSET(AR$22,,1-$F62),) -> 5.628401691 | AS62: =IF(AS$9>=$F62,$H62*OFFSET(AS$22,,1-$F62),) -> 5.628401691 | AT62: =IF(AT$9>=$F62,$H62*OFFSET(AT$22,,1-$F62),) -> 5.628401691 | AU62: =IF(AU$9>=$F62,$H62*OFFSET(AU$22,,1-$F62),) -> 5.628401691 | AV62: =IF(AV$9>=$F62,$H62*OFFSET(AV$22,,1-$F62),) -> 5.628401691 | AW62: =IF(AW$9>=$F62,$H62*OFFSET(AW$22,,1-$F62),) -> 5.628401691
F63: =OFFSET($I$9,,ROWS($E$33:$E63)) -> 31 | H63: =OFFSET($I$26,,ROWS($E$33:$E63)) -> 281.4200845 | J63: =IF(J$9>=$F63,$H63*OFFSET(J$22,,1-$F63),) -> 0 | K63: =IF(K$9>=$F63,$H63*OFFSET(K$22,,1-$F63),) -> 0 | L63: =IF(L$9>=$F63,$H63*OFFSET(L$22,,1-$F63),) -> 0 | M63: =IF(M$9>=$F63,$H63*OFFSET(M$22,,1-$F63),) -> 0 | N63: =IF(N$9>=$F63,$H63*OFFSET(N$22,,1-$F63),) -> 0 | O63: =IF(O$9>=$F63,$H63*OFFSET(O$22,,1-$F63),) -> 0 | P63: =IF(P$9>=$F63,$H63*OFFSET(P$22,,1-$F63),) -> 0 | Q63: =IF(Q$9>=$F63,$H63*OFFSET(Q$22,,1-$F63),) -> 0 | R63: =IF(R$9>=$F63,$H63*OFFSET(R$22,,1-$F63),) -> 0 | S63: =IF(S$9>=$F63,$H63*OFFSET(S$22,,1-$F63),) -> 0 | T63: =IF(T$9>=$F63,$H63*OFFSET(T$22,,1-$F63),) -> 0 | U63: =IF(U$9>=$F63,$H63*OFFSET(U$22,,1-$F63),) -> 0 | V63: =IF(V$9>=$F63,$H63*OFFSET(V$22,,1-$F63),) -> 0 | W63: =IF(W$9>=$F63,$H63*OFFSET(W$22,,1-$F63),) -> 0 | X63: =IF(X$9>=$F63,$H63*OFFSET(X$22,,1-$F63),) -> 0 | Y63: =IF(Y$9>=$F63,$H63*OFFSET(Y$22,,1-$F63),) -> 0 | Z63: =IF(Z$9>=$F63,$H63*OFFSET(Z$22,,1-$F63),) -> 0 | AA63: =IF(AA$9>=$F63,$H63*OFFSET(AA$22,,1-$F63),) -> 0 | AB63: =IF(AB$9>=$F63,$H63*OFFSET(AB$22,,1-$F63),) -> 0 | AC63: =IF(AC$9>=$F63,$H63*OFFSET(AC$22,,1-$F63),) -> 0 | AD63: =IF(AD$9>=$F63,$H63*OFFSET(AD$22,,1-$F63),) -> 0 | AE63: =IF(AE$9>=$F63,$H63*OFFSET(AE$22,,1-$F63),) -> 0 | AF63: =IF(AF$9>=$F63,$H63*OFFSET(AF$22,,1-$F63),) -> 0 | AG63: =IF(AG$9>=$F63,$H63*OFFSET(AG$22,,1-$F63),) -> 0 | AH63: =IF(AH$9>=$F63,$H63*OFFSET(AH$22,,1-$F63),) -> 0 | AI63: =IF(AI$9>=$F63,$H63*OFFSET(AI$22,,1-$F63),) -> 0 | AJ63: =IF(AJ$9>=$F63,$H63*OFFSET(AJ$22,,1-$F63),) -> 0 | AK63: =IF(AK$9>=$F63,$H63*OFFSET(AK$22,,1-$F63),) -> 0 | AL63: =IF(AL$9>=$F63,$H63*OFFSET(AL$22,,1-$F63),) -> 0 | AM63: =IF(AM$9>=$F63,$H63*OFFSET(AM$22,,1-$F63),) -> 0 | AN63: =IF(AN$9>=$F63,$H63*OFFSET(AN$22,,1-$F63),) -> 11.25680338 | AO63: =IF(AO$9>=$F63,$H63*OFFSET(AO$22,,1-$F63),) -> 11.25680338 | AP63: =IF(AP$9>=$F63,$H63*OFFSET(AP$22,,1-$F63),) -> 11.25680338 | AQ63: =IF(AQ$9>=$F63,$H63*OFFSET(AQ$22,,1-$F63),) -> 11.25680338 | AR63: =IF(AR$9>=$F63,$H63*OFFSET(AR$22,,1-$F63),) -> 11.25680338 | AS63: =IF(AS$9>=$F63,$H63*OFFSET(AS$22,,1-$F63),) -> 11.25680338 | AT63: =IF(AT$9>=$F63,$H63*OFFSET(AT$22,,1-$F63),) -> 11.25680338 | AU63: =IF(AU$9>=$F63,$H63*OFFSET(AU$22,,1-$F63),) -> 11.25680338 | AV63: =IF(AV$9>=$F63,$H63*OFFSET(AV$22,,1-$F63),) -> 11.25680338 | AW63: =IF(AW$9>=$F63,$H63*OFFSET(AW$22,,1-$F63),) -> 11.25680338
F64: =OFFSET($I$9,,ROWS($E$33:$E64)) -> 32 | H64: =OFFSET($I$26,,ROWS($E$33:$E64)) -> 562.8401691 | J64: =IF(J$9>=$F64,$H64*OFFSET(J$22,,1-$F64),) -> 0 | K64: =IF(K$9>=$F64,$H64*OFFSET(K$22,,1-$F64),) -> 0 | L64: =IF(L$9>=$F64,$H64*OFFSET(L$22,,1-$F64),) -> 0 | M64: =IF(M$9>=$F64,$H64*OFFSET(M$22,,1-$F64),) -> 0 | N64: =IF(N$9>=$F64,$H64*OFFSET(N$22,,1-$F64),) -> 0 | O64: =IF(O$9>=$F64,$H64*OFFSET(O$22,,1-$F64),) -> 0 | P64: =IF(P$9>=$F64,$H64*OFFSET(P$22,,1-$F64),) -> 0 | Q64: =IF(Q$9>=$F64,$H64*OFFSET(Q$22,,1-$F64),) -> 0 | R64: =IF(R$9>=$F64,$H64*OFFSET(R$22,,1-$F64),) -> 0 | S64: =IF(S$9>=$F64,$H64*OFFSET(S$22,,1-$F64),) -> 0 | T64: =IF(T$9>=$F64,$H64*OFFSET(T$22,,1-$F64),) -> 0 | U64: =IF(U$9>=$F64,$H64*OFFSET(U$22,,1-$F64),) -> 0 | V64: =IF(V$9>=$F64,$H64*OFFSET(V$22,,1-$F64),) -> 0 | W64: =IF(W$9>=$F64,$H64*OFFSET(W$22,,1-$F64),) -> 0 | X64: =IF(X$9>=$F64,$H64*OFFSET(X$22,,1-$F64),) -> 0 | Y64: =IF(Y$9>=$F64,$H64*OFFSET(Y$22,,1-$F64),) -> 0 | Z64: =IF(Z$9>=$F64,$H64*OFFSET(Z$22,,1-$F64),) -> 0 | AA64: =IF(AA$9>=$F64,$H64*OFFSET(AA$22,,1-$F64),) -> 0 | AB64: =IF(AB$9>=$F64,$H64*OFFSET(AB$22,,1-$F64),) -> 0 | AC64: =IF(AC$9>=$F64,$H64*OFFSET(AC$22,,1-$F64),) -> 0 | AD64: =IF(AD$9>=$F64,$H64*OFFSET(AD$22,,1-$F64),) -> 0 | AE64: =IF(AE$9>=$F64,$H64*OFFSET(AE$22,,1-$F64),) -> 0 | AF64: =IF(AF$9>=$F64,$H64*OFFSET(AF$22,,1-$F64),) -> 0 | AG64: =IF(AG$9>=$F64,$H64*OFFSET(AG$22,,1-$F64),) -> 0 | AH64: =IF(AH$9>=$F64,$H64*OFFSET(AH$22,,1-$F64),) -> 0 | AI64: =IF(AI$9>=$F64,$H64*OFFSET(AI$22,,1-$F64),) -> 0 | AJ64: =IF(AJ$9>=$F64,$H64*OFFSET(AJ$22,,1-$F64),) -> 0 | AK64: =IF(AK$9>=$F64,$H64*OFFSET(AK$22,,1-$F64),) -> 0 | AL64: =IF(AL$9>=$F64,$H64*OFFSET(AL$22,,1-$F64),) -> 0 | AM64: =IF(AM$9>=$F64,$H64*OFFSET(AM$22,,1-$F64),) -> 0 | AN64: =IF(AN$9>=$F64,$H64*OFFSET(AN$22,,1-$F64),) -> 0 | AO64: =IF(AO$9>=$F64,$H64*OFFSET(AO$22,,1-$F64),) -> 22.51360676 | AP64: =IF(AP$9>=$F64,$H64*OFFSET(AP$22,,1-$F64),) -> 22.51360676 | AQ64: =IF(AQ$9>=$F64,$H64*OFFSET(AQ$22,,1-$F64),) -> 22.51360676 | AR64: =IF(AR$9>=$F64,$H64*OFFSET(AR$22,,1-$F64),) -> 22.51360676 | AS64: =IF(AS$9>=$F64,$H64*OFFSET(AS$22,,1-$F64),) -> 22.51360676 | AT64: =IF(AT$9>=$F64,$H64*OFFSET(AT$22,,1-$F64),) -> 22.51360676 | AU64: =IF(AU$9>=$F64,$H64*OFFSET(AU$22,,1-$F64),) -> 22.51360676 | AV64: =IF(AV$9>=$F64,$H64*OFFSET(AV$22,,1-$F64),) -> 22.51360676 | AW64: =IF(AW$9>=$F64,$H64*OFFSET(AW$22,,1-$F64),) -> 22.51360676
F65: =OFFSET($I$9,,ROWS($E$33:$E65)) -> 33 | H65: =OFFSET($I$26,,ROWS($E$33:$E65)) -> 443.2366331 | J65: =IF(J$9>=$F65,$H65*OFFSET(J$22,,1-$F65),) -> 0 | K65: =IF(K$9>=$F65,$H65*OFFSET(K$22,,1-$F65),) -> 0 | L65: =IF(L$9>=$F65,$H65*OFFSET(L$22,,1-$F65),) -> 0 | M65: =IF(M$9>=$F65,$H65*OFFSET(M$22,,1-$F65),) -> 0 | N65: =IF(N$9>=$F65,$H65*OFFSET(N$22,,1-$F65),) -> 0 | O65: =IF(O$9>=$F65,$H65*OFFSET(O$22,,1-$F65),) -> 0 | P65: =IF(P$9>=$F65,$H65*OFFSET(P$22,,1-$F65),) -> 0 | Q65: =IF(Q$9>=$F65,$H65*OFFSET(Q$22,,1-$F65),) -> 0 | R65: =IF(R$9>=$F65,$H65*OFFSET(R$22,,1-$F65),) -> 0 | S65: =IF(S$9>=$F65,$H65*OFFSET(S$22,,1-$F65),) -> 0 | T65: =IF(T$9>=$F65,$H65*OFFSET(T$22,,1-$F65),) -> 0 | U65: =IF(U$9>=$F65,$H65*OFFSET(U$22,,1-$F65),) -> 0 | V65: =IF(V$9>=$F65,$H65*OFFSET(V$22,,1-$F65),) -> 0 | W65: =IF(W$9>=$F65,$H65*OFFSET(W$22,,1-$F65),) -> 0 | X65: =IF(X$9>=$F65,$H65*OFFSET(X$22,,1-$F65),) -> 0 | Y65: =IF(Y$9>=$F65,$H65*OFFSET(Y$22,,1-$F65),) -> 0 | Z65: =IF(Z$9>=$F65,$H65*OFFSET(Z$22,,1-$F65),) -> 0 | AA65: =IF(AA$9>=$F65,$H65*OFFSET(AA$22,,1-$F65),) -> 0 | AB65: =IF(AB$9>=$F65,$H65*OFFSET(AB$22,,1-$F65),) -> 0 | AC65: =IF(AC$9>=$F65,$H65*OFFSET(AC$22,,1-$F65),) -> 0 | AD65: =IF(AD$9>=$F65,$H65*OFFSET(AD$22,,1-$F65),) -> 0 | AE65: =IF(AE$9>=$F65,$H65*OFFSET(AE$22,,1-$F65),) -> 0 | AF65: =IF(AF$9>=$F65,$H65*OFFSET(AF$22,,1-$F65),) -> 0 | AG65: =IF(AG$9>=$F65,$H65*OFFSET(AG$22,,1-$F65),) -> 0 | AH65: =IF(AH$9>=$F65,$H65*OFFSET(AH$22,,1-$F65),) -> 0 | AI65: =IF(AI$9>=$F65,$H65*OFFSET(AI$22,,1-$F65),) -> 0 | AJ65: =IF(AJ$9>=$F65,$H65*OFFSET(AJ$22,,1-$F65),) -> 0 | AK65: =IF(AK$9>=$F65,$H65*OFFSET(AK$22,,1-$F65),) -> 0 | AL65: =IF(AL$9>=$F65,$H65*OFFSET(AL$22,,1-$F65),) -> 0 | AM65: =IF(AM$9>=$F65,$H65*OFFSET(AM$22,,1-$F65),) -> 0 | AN65: =IF(AN$9>=$F65,$H65*OFFSET(AN$22,,1-$F65),) -> 0 | AO65: =IF(AO$9>=$F65,$H65*OFFSET(AO$22,,1-$F65),) -> 0 | AP65: =IF(AP$9>=$F65,$H65*OFFSET(AP$22,,1-$F65),) -> 17.72946533 | AQ65: =IF(AQ$9>=$F65,$H65*OFFSET(AQ$22,,1-$F65),) -> 17.72946533 | AR65: =IF(AR$9>=$F65,$H65*OFFSET(AR$22,,1-$F65),) -> 17.72946533 | AS65: =IF(AS$9>=$F65,$H65*OFFSET(AS$22,,1-$F65),) -> 17.72946533 | AT65: =IF(AT$9>=$F65,$H65*OFFSET(AT$22,,1-$F65),) -> 17.72946533 | AU65: =IF(AU$9>=$F65,$H65*OFFSET(AU$22,,1-$F65),) -> 17.72946533 | AV65: =IF(AV$9>=$F65,$H65*OFFSET(AV$22,,1-$F65),) -> 17.72946533 | AW65: =IF(AW$9>=$F65,$H65*OFFSET(AW$22,,1-$F65),) -> 17.72946533
F66: =OFFSET($I$9,,ROWS($E$33:$E66)) -> 34 | H66: =OFFSET($I$26,,ROWS($E$33:$E66)) -> 147.7455444 | J66: =IF(J$9>=$F66,$H66*OFFSET(J$22,,1-$F66),) -> 0 | K66: =IF(K$9>=$F66,$H66*OFFSET(K$22,,1-$F66),) -> 0 | L66: =IF(L$9>=$F66,$H66*OFFSET(L$22,,1-$F66),) -> 0 | M66: =IF(M$9>=$F66,$H66*OFFSET(M$22,,1-$F66),) -> 0 | N66: =IF(N$9>=$F66,$H66*OFFSET(N$22,,1-$F66),) -> 0 | O66: =IF(O$9>=$F66,$H66*OFFSET(O$22,,1-$F66),) -> 0 | P66: =IF(P$9>=$F66,$H66*OFFSET(P$22,,1-$F66),) -> 0 | Q66: =IF(Q$9>=$F66,$H66*OFFSET(Q$22,,1-$F66),) -> 0 | R66: =IF(R$9>=$F66,$H66*OFFSET(R$22,,1-$F66),) -> 0 | S66: =IF(S$9>=$F66,$H66*OFFSET(S$22,,1-$F66),) -> 0 | T66: =IF(T$9>=$F66,$H66*OFFSET(T$22,,1-$F66),) -> 0 | U66: =IF(U$9>=$F66,$H66*OFFSET(U$22,,1-$F66),) -> 0 | V66: =IF(V$9>=$F66,$H66*OFFSET(V$22,,1-$F66),) -> 0 | W66: =IF(W$9>=$F66,$H66*OFFSET(W$22,,1-$F66),) -> 0 | X66: =IF(X$9>=$F66,$H66*OFFSET(X$22,,1-$F66),) -> 0 | Y66: =IF(Y$9>=$F66,$H66*OFFSET(Y$22,,1-$F66),) -> 0 | Z66: =IF(Z$9>=$F66,$H66*OFFSET(Z$22,,1-$F66),) -> 0 | AA66: =IF(AA$9>=$F66,$H66*OFFSET(AA$22,,1-$F66),) -> 0 | AB66: =IF(AB$9>=$F66,$H66*OFFSET(AB$22,,1-$F66),) -> 0 | AC66: =IF(AC$9>=$F66,$H66*OFFSET(AC$22,,1-$F66),) -> 0 | AD66: =IF(AD$9>=$F66,$H66*OFFSET(AD$22,,1-$F66),) -> 0 | AE66: =IF(AE$9>=$F66,$H66*OFFSET(AE$22,,1-$F66),) -> 0 | AF66: =IF(AF$9>=$F66,$H66*OFFSET(AF$22,,1-$F66),) -> 0 | AG66: =IF(AG$9>=$F66,$H66*OFFSET(AG$22,,1-$F66),) -> 0 | AH66: =IF(AH$9>=$F66,$H66*OFFSET(AH$22,,1-$F66),) -> 0 | AI66: =IF(AI$9>=$F66,$H66*OFFSET(AI$22,,1-$F66),) -> 0 | AJ66: =IF(AJ$9>=$F66,$H66*OFFSET(AJ$22,,1-$F66),) -> 0 | AK66: =IF(AK$9>=$F66,$H66*OFFSET(AK$22,,1-$F66),) -> 0 | AL66: =IF(AL$9>=$F66,$H66*OFFSET(AL$22,,1-$F66),) -> 0 | AM66: =IF(AM$9>=$F66,$H66*OFFSET(AM$22,,1-$F66),) -> 0 | AN66: =IF(AN$9>=$F66,$H66*OFFSET(AN$22,,1-$F66),) -> 0 | AO66: =IF(AO$9>=$F66,$H66*OFFSET(AO$22,,1-$F66),) -> 0 | AP66: =IF(AP$9>=$F66,$H66*OFFSET(AP$22,,1-$F66),) -> 0 | AQ66: =IF(AQ$9>=$F66,$H66*OFFSET(AQ$22,,1-$F66),) -> 5.909821775 | AR66: =IF(AR$9>=$F66,$H66*OFFSET(AR$22,,1-$F66),) -> 5.909821775 | AS66: =IF(AS$9>=$F66,$H66*OFFSET(AS$22,,1-$F66),) -> 5.909821775 | AT66: =IF(AT$9>=$F66,$H66*OFFSET(AT$22,,1-$F66),) -> 5.909821775 | AU66: =IF(AU$9>=$F66,$H66*OFFSET(AU$22,,1-$F66),) -> 5.909821775 | AV66: =IF(AV$9>=$F66,$H66*OFFSET(AV$22,,1-$F66),) -> 5.909821775 | AW66: =IF(AW$9>=$F66,$H66*OFFSET(AW$22,,1-$F66),) -> 5.909821775
F67: =OFFSET($I$9,,ROWS($E$33:$E67)) -> 35 | H67: =OFFSET($I$26,,ROWS($E$33:$E67)) -> 295.4910888 | J67: =IF(J$9>=$F67,$H67*OFFSET(J$22,,1-$F67),) -> 0 | K67: =IF(K$9>=$F67,$H67*OFFSET(K$22,,1-$F67),) -> 0 | L67: =IF(L$9>=$F67,$H67*OFFSET(L$22,,1-$F67),) -> 0 | M67: =IF(M$9>=$F67,$H67*OFFSET(M$22,,1-$F67),) -> 0 | N67: =IF(N$9>=$F67,$H67*OFFSET(N$22,,1-$F67),) -> 0 | O67: =IF(O$9>=$F67,$H67*OFFSET(O$22,,1-$F67),) -> 0 | P67: =IF(P$9>=$F67,$H67*OFFSET(P$22,,1-$F67),) -> 0 | Q67: =IF(Q$9>=$F67,$H67*OFFSET(Q$22,,1-$F67),) -> 0 | R67: =IF(R$9>=$F67,$H67*OFFSET(R$22,,1-$F67),) -> 0 | S67: =IF(S$9>=$F67,$H67*OFFSET(S$22,,1-$F67),) -> 0 | T67: =IF(T$9>=$F67,$H67*OFFSET(T$22,,1-$F67),) -> 0 | U67: =IF(U$9>=$F67,$H67*OFFSET(U$22,,1-$F67),) -> 0 | V67: =IF(V$9>=$F67,$H67*OFFSET(V$22,,1-$F67),) -> 0 | W67: =IF(W$9>=$F67,$H67*OFFSET(W$22,,1-$F67),) -> 0 | X67: =IF(X$9>=$F67,$H67*OFFSET(X$22,,1-$F67),) -> 0 | Y67: =IF(Y$9>=$F67,$H67*OFFSET(Y$22,,1-$F67),) -> 0 | Z67: =IF(Z$9>=$F67,$H67*OFFSET(Z$22,,1-$F67),) -> 0 | AA67: =IF(AA$9>=$F67,$H67*OFFSET(AA$22,,1-$F67),) -> 0 | AB67: =IF(AB$9>=$F67,$H67*OFFSET(AB$22,,1-$F67),) -> 0 | AC67: =IF(AC$9>=$F67,$H67*OFFSET(AC$22,,1-$F67),) -> 0 | AD67: =IF(AD$9>=$F67,$H67*OFFSET(AD$22,,1-$F67),) -> 0 | AE67: =IF(AE$9>=$F67,$H67*OFFSET(AE$22,,1-$F67),) -> 0 | AF67: =IF(AF$9>=$F67,$H67*OFFSET(AF$22,,1-$F67),) -> 0 | AG67: =IF(AG$9>=$F67,$H67*OFFSET(AG$22,,1-$F67),) -> 0 | AH67: =IF(AH$9>=$F67,$H67*OFFSET(AH$22,,1-$F67),) -> 0 | AI67: =IF(AI$9>=$F67,$H67*OFFSET(AI$22,,1-$F67),) -> 0 | AJ67: =IF(AJ$9>=$F67,$H67*OFFSET(AJ$22,,1-$F67),) -> 0 | AK67: =IF(AK$9>=$F67,$H67*OFFSET(AK$22,,1-$F67),) -> 0 | AL67: =IF(AL$9>=$F67,$H67*OFFSET(AL$22,,1-$F67),) -> 0 | AM67: =IF(AM$9>=$F67,$H67*OFFSET(AM$22,,1-$F67),) -> 0 | AN67: =IF(AN$9>=$F67,$H67*OFFSET(AN$22,,1-$F67),) -> 0 | AO67: =IF(AO$9>=$F67,$H67*OFFSET(AO$22,,1-$F67),) -> 0 | AP67: =IF(AP$9>=$F67,$H67*OFFSET(AP$22,,1-$F67),) -> 0 | AQ67: =IF(AQ$9>=$F67,$H67*OFFSET(AQ$22,,1-$F67),) -> 0 | AR67: =IF(AR$9>=$F67,$H67*OFFSET(AR$22,,1-$F67),) -> 11.81964355 | AS67: =IF(AS$9>=$F67,$H67*OFFSET(AS$22,,1-$F67),) -> 11.81964355 | AT67: =IF(AT$9>=$F67,$H67*OFFSET(AT$22,,1-$F67),) -> 11.81964355 | AU67: =IF(AU$9>=$F67,$H67*OFFSET(AU$22,,1-$F67),) -> 11.81964355 | AV67: =IF(AV$9>=$F67,$H67*OFFSET(AV$22,,1-$F67),) -> 11.81964355 | AW67: =IF(AW$9>=$F67,$H67*OFFSET(AW$22,,1-$F67),) -> 11.81964355
F68: =OFFSET($I$9,,ROWS($E$33:$E68)) -> 36 | H68: =OFFSET($I$26,,ROWS($E$33:$E68)) -> 590.9821775 | J68: =IF(J$9>=$F68,$H68*OFFSET(J$22,,1-$F68),) -> 0 | K68: =IF(K$9>=$F68,$H68*OFFSET(K$22,,1-$F68),) -> 0 | L68: =IF(L$9>=$F68,$H68*OFFSET(L$22,,1-$F68),) -> 0 | M68: =IF(M$9>=$F68,$H68*OFFSET(M$22,,1-$F68),) -> 0 | N68: =IF(N$9>=$F68,$H68*OFFSET(N$22,,1-$F68),) -> 0 | O68: =IF(O$9>=$F68,$H68*OFFSET(O$22,,1-$F68),) -> 0 | P68: =IF(P$9>=$F68,$H68*OFFSET(P$22,,1-$F68),) -> 0 | Q68: =IF(Q$9>=$F68,$H68*OFFSET(Q$22,,1-$F68),) -> 0 | R68: =IF(R$9>=$F68,$H68*OFFSET(R$22,,1-$F68),) -> 0 | S68: =IF(S$9>=$F68,$H68*OFFSET(S$22,,1-$F68),) -> 0 | T68: =IF(T$9>=$F68,$H68*OFFSET(T$22,,1-$F68),) -> 0 | U68: =IF(U$9>=$F68,$H68*OFFSET(U$22,,1-$F68),) -> 0 | V68: =IF(V$9>=$F68,$H68*OFFSET(V$22,,1-$F68),) -> 0 | W68: =IF(W$9>=$F68,$H68*OFFSET(W$22,,1-$F68),) -> 0 | X68: =IF(X$9>=$F68,$H68*OFFSET(X$22,,1-$F68),) -> 0 | Y68: =IF(Y$9>=$F68,$H68*OFFSET(Y$22,,1-$F68),) -> 0 | Z68: =IF(Z$9>=$F68,$H68*OFFSET(Z$22,,1-$F68),) -> 0 | AA68: =IF(AA$9>=$F68,$H68*OFFSET(AA$22,,1-$F68),) -> 0 | AB68: =IF(AB$9>=$F68,$H68*OFFSET(AB$22,,1-$F68),) -> 0 | AC68: =IF(AC$9>=$F68,$H68*OFFSET(AC$22,,1-$F68),) -> 0 | AD68: =IF(AD$9>=$F68,$H68*OFFSET(AD$22,,1-$F68),) -> 0 | AE68: =IF(AE$9>=$F68,$H68*OFFSET(AE$22,,1-$F68),) -> 0 | AF68: =IF(AF$9>=$F68,$H68*OFFSET(AF$22,,1-$F68),) -> 0 | AG68: =IF(AG$9>=$F68,$H68*OFFSET(AG$22,,1-$F68),) -> 0 | AH68: =IF(AH$9>=$F68,$H68*OFFSET(AH$22,,1-$F68),) -> 0 | AI68: =IF(AI$9>=$F68,$H68*OFFSET(AI$22,,1-$F68),) -> 0 | AJ68: =IF(AJ$9>=$F68,$H68*OFFSET(AJ$22,,1-$F68),) -> 0 | AK68: =IF(AK$9>=$F68,$H68*OFFSET(AK$22,,1-$F68),) -> 0 | AL68: =IF(AL$9>=$F68,$H68*OFFSET(AL$22,,1-$F68),) -> 0 | AM68: =IF(AM$9>=$F68,$H68*OFFSET(AM$22,,1-$F68),) -> 0 | AN68: =IF(AN$9>=$F68,$H68*OFFSET(AN$22,,1-$F68),) -> 0 | AO68: =IF(AO$9>=$F68,$H68*OFFSET(AO$22,,1-$F68),) -> 0 | AP68: =IF(AP$9>=$F68,$H68*OFFSET(AP$22,,1-$F68),) -> 0 | AQ68: =IF(AQ$9>=$F68,$H68*OFFSET(AQ$22,,1-$F68),) -> 0 | AR68: =IF(AR$9>=$F68,$H68*OFFSET(AR$22,,1-$F68),) -> 0 | AS68: =IF(AS$9>=$F68,$H68*OFFSET(AS$22,,1-$F68),) -> 23.6392871 | AT68: =IF(AT$9>=$F68,$H68*OFFSET(AT$22,,1-$F68),) -> 23.6392871 | AU68: =IF(AU$9>=$F68,$H68*OFFSET(AU$22,,1-$F68),) -> 23.6392871 | AV68: =IF(AV$9>=$F68,$H68*OFFSET(AV$22,,1-$F68),) -> 23.6392871 | AW68: =IF(AW$9>=$F68,$H68*OFFSET(AW$22,,1-$F68),) -> 23.6392871
F69: =OFFSET($I$9,,ROWS($E$33:$E69)) -> 37 | H69: =OFFSET($I$26,,ROWS($E$33:$E69)) -> 465.3984648 | J69: =IF(J$9>=$F69,$H69*OFFSET(J$22,,1-$F69),) -> 0 | K69: =IF(K$9>=$F69,$H69*OFFSET(K$22,,1-$F69),) -> 0 | L69: =IF(L$9>=$F69,$H69*OFFSET(L$22,,1-$F69),) -> 0 | M69: =IF(M$9>=$F69,$H69*OFFSET(M$22,,1-$F69),) -> 0 | N69: =IF(N$9>=$F69,$H69*OFFSET(N$22,,1-$F69),) -> 0 | O69: =IF(O$9>=$F69,$H69*OFFSET(O$22,,1-$F69),) -> 0 | P69: =IF(P$9>=$F69,$H69*OFFSET(P$22,,1-$F69),) -> 0 | Q69: =IF(Q$9>=$F69,$H69*OFFSET(Q$22,,1-$F69),) -> 0 | R69: =IF(R$9>=$F69,$H69*OFFSET(R$22,,1-$F69),) -> 0 | S69: =IF(S$9>=$F69,$H69*OFFSET(S$22,,1-$F69),) -> 0 | T69: =IF(T$9>=$F69,$H69*OFFSET(T$22,,1-$F69),) -> 0 | U69: =IF(U$9>=$F69,$H69*OFFSET(U$22,,1-$F69),) -> 0 | V69: =IF(V$9>=$F69,$H69*OFFSET(V$22,,1-$F69),) -> 0 | W69: =IF(W$9>=$F69,$H69*OFFSET(W$22,,1-$F69),) -> 0 | X69: =IF(X$9>=$F69,$H69*OFFSET(X$22,,1-$F69),) -> 0 | Y69: =IF(Y$9>=$F69,$H69*OFFSET(Y$22,,1-$F69),) -> 0 | Z69: =IF(Z$9>=$F69,$H69*OFFSET(Z$22,,1-$F69),) -> 0 | AA69: =IF(AA$9>=$F69,$H69*OFFSET(AA$22,,1-$F69),) -> 0 | AB69: =IF(AB$9>=$F69,$H69*OFFSET(AB$22,,1-$F69),) -> 0 | AC69: =IF(AC$9>=$F69,$H69*OFFSET(AC$22,,1-$F69),) -> 0 | AD69: =IF(AD$9>=$F69,$H69*OFFSET(AD$22,,1-$F69),) -> 0 | AE69: =IF(AE$9>=$F69,$H69*OFFSET(AE$22,,1-$F69),) -> 0 | AF69: =IF(AF$9>=$F69,$H69*OFFSET(AF$22,,1-$F69),) -> 0 | AG69: =IF(AG$9>=$F69,$H69*OFFSET(AG$22,,1-$F69),) -> 0 | AH69: =IF(AH$9>=$F69,$H69*OFFSET(AH$22,,1-$F69),) -> 0 | AI69: =IF(AI$9>=$F69,$H69*OFFSET(AI$22,,1-$F69),) -> 0 | AJ69: =IF(AJ$9>=$F69,$H69*OFFSET(AJ$22,,1-$F69),) -> 0 | AK69: =IF(AK$9>=$F69,$H69*OFFSET(AK$22,,1-$F69),) -> 0 | AL69: =IF(AL$9>=$F69,$H69*OFFSET(AL$22,,1-$F69),) -> 0 | AM69: =IF(AM$9>=$F69,$H69*OFFSET(AM$22,,1-$F69),) -> 0 | AN69: =IF(AN$9>=$F69,$H69*OFFSET(AN$22,,1-$F69),) -> 0 | AO69: =IF(AO$9>=$F69,$H69*OFFSET(AO$22,,1-$F69),) -> 0 | AP69: =IF(AP$9>=$F69,$H69*OFFSET(AP$22,,1-$F69),) -> 0 | AQ69: =IF(AQ$9>=$F69,$H69*OFFSET(AQ$22,,1-$F69),) -> 0 | AR69: =IF(AR$9>=$F69,$H69*OFFSET(AR$22,,1-$F69),) -> 0 | AS69: =IF(AS$9>=$F69,$H69*OFFSET(AS$22,,1-$F69),) -> 0 | AT69: =IF(AT$9>=$F69,$H69*OFFSET(AT$22,,1-$F69),) -> 18.61593859 | AU69: =IF(AU$9>=$F69,$H69*OFFSET(AU$22,,1-$F69),) -> 18.61593859 | AV69: =IF(AV$9>=$F69,$H69*OFFSET(AV$22,,1-$F69),) -> 18.61593859 | AW69: =IF(AW$9>=$F69,$H69*OFFSET(AW$22,,1-$F69),) -> 18.61593859
F70: =OFFSET($I$9,,ROWS($E$33:$E70)) -> 38 | H70: =OFFSET($I$26,,ROWS($E$33:$E70)) -> 155.1328216 | J70: =IF(J$9>=$F70,$H70*OFFSET(J$22,,1-$F70),) -> 0 | K70: =IF(K$9>=$F70,$H70*OFFSET(K$22,,1-$F70),) -> 0 | L70: =IF(L$9>=$F70,$H70*OFFSET(L$22,,1-$F70),) -> 0 | M70: =IF(M$9>=$F70,$H70*OFFSET(M$22,,1-$F70),) -> 0 | N70: =IF(N$9>=$F70,$H70*OFFSET(N$22,,1-$F70),) -> 0 | O70: =IF(O$9>=$F70,$H70*OFFSET(O$22,,1-$F70),) -> 0 | P70: =IF(P$9>=$F70,$H70*OFFSET(P$22,,1-$F70),) -> 0 | Q70: =IF(Q$9>=$F70,$H70*OFFSET(Q$22,,1-$F70),) -> 0 | R70: =IF(R$9>=$F70,$H70*OFFSET(R$22,,1-$F70),) -> 0 | S70: =IF(S$9>=$F70,$H70*OFFSET(S$22,,1-$F70),) -> 0 | T70: =IF(T$9>=$F70,$H70*OFFSET(T$22,,1-$F70),) -> 0 | U70: =IF(U$9>=$F70,$H70*OFFSET(U$22,,1-$F70),) -> 0 | V70: =IF(V$9>=$F70,$H70*OFFSET(V$22,,1-$F70),) -> 0 | W70: =IF(W$9>=$F70,$H70*OFFSET(W$22,,1-$F70),) -> 0 | X70: =IF(X$9>=$F70,$H70*OFFSET(X$22,,1-$F70),) -> 0 | Y70: =IF(Y$9>=$F70,$H70*OFFSET(Y$22,,1-$F70),) -> 0 | Z70: =IF(Z$9>=$F70,$H70*OFFSET(Z$22,,1-$F70),) -> 0 | AA70: =IF(AA$9>=$F70,$H70*OFFSET(AA$22,,1-$F70),) -> 0 | AB70: =IF(AB$9>=$F70,$H70*OFFSET(AB$22,,1-$F70),) -> 0 | AC70: =IF(AC$9>=$F70,$H70*OFFSET(AC$22,,1-$F70),) -> 0 | AD70: =IF(AD$9>=$F70,$H70*OFFSET(AD$22,,1-$F70),) -> 0 | AE70: =IF(AE$9>=$F70,$H70*OFFSET(AE$22,,1-$F70),) -> 0 | AF70: =IF(AF$9>=$F70,$H70*OFFSET(AF$22,,1-$F70),) -> 0 | AG70: =IF(AG$9>=$F70,$H70*OFFSET(AG$22,,1-$F70),) -> 0 | AH70: =IF(AH$9>=$F70,$H70*OFFSET(AH$22,,1-$F70),) -> 0 | AI70: =IF(AI$9>=$F70,$H70*OFFSET(AI$22,,1-$F70),) -> 0 | AJ70: =IF(AJ$9>=$F70,$H70*OFFSET(AJ$22,,1-$F70),) -> 0 | AK70: =IF(AK$9>=$F70,$H70*OFFSET(AK$22,,1-$F70),) -> 0 | AL70: =IF(AL$9>=$F70,$H70*OFFSET(AL$22,,1-$F70),) -> 0 | AM70: =IF(AM$9>=$F70,$H70*OFFSET(AM$22,,1-$F70),) -> 0 | AN70: =IF(AN$9>=$F70,$H70*OFFSET(AN$22,,1-$F70),) -> 0 | AO70: =IF(AO$9>=$F70,$H70*OFFSET(AO$22,,1-$F70),) -> 0 | AP70: =IF(AP$9>=$F70,$H70*OFFSET(AP$22,,1-$F70),) -> 0 | AQ70: =IF(AQ$9>=$F70,$H70*OFFSET(AQ$22,,1-$F70),) -> 0 | AR70: =IF(AR$9>=$F70,$H70*OFFSET(AR$22,,1-$F70),) -> 0 | AS70: =IF(AS$9>=$F70,$H70*OFFSET(AS$22,,1-$F70),) -> 0 | AT70: =IF(AT$9>=$F70,$H70*OFFSET(AT$22,,1-$F70),) -> 0 | AU70: =IF(AU$9>=$F70,$H70*OFFSET(AU$22,,1-$F70),) -> 6.205312864 | AV70: =IF(AV$9>=$F70,$H70*OFFSET(AV$22,,1-$F70),) -> 6.205312864 | AW70: =IF(AW$9>=$F70,$H70*OFFSET(AW$22,,1-$F70),) -> 6.205312864
F71: =OFFSET($I$9,,ROWS($E$33:$E71)) -> 39 | H71: =OFFSET($I$26,,ROWS($E$33:$E71)) -> 310.2656432 | J71: =IF(J$9>=$F71,$H71*OFFSET(J$22,,1-$F71),) -> 0 | K71: =IF(K$9>=$F71,$H71*OFFSET(K$22,,1-$F71),) -> 0 | L71: =IF(L$9>=$F71,$H71*OFFSET(L$22,,1-$F71),) -> 0 | M71: =IF(M$9>=$F71,$H71*OFFSET(M$22,,1-$F71),) -> 0 | N71: =IF(N$9>=$F71,$H71*OFFSET(N$22,,1-$F71),) -> 0 | O71: =IF(O$9>=$F71,$H71*OFFSET(O$22,,1-$F71),) -> 0 | P71: =IF(P$9>=$F71,$H71*OFFSET(P$22,,1-$F71),) -> 0 | Q71: =IF(Q$9>=$F71,$H71*OFFSET(Q$22,,1-$F71),) -> 0 | R71: =IF(R$9>=$F71,$H71*OFFSET(R$22,,1-$F71),) -> 0 | S71: =IF(S$9>=$F71,$H71*OFFSET(S$22,,1-$F71),) -> 0 | T71: =IF(T$9>=$F71,$H71*OFFSET(T$22,,1-$F71),) -> 0 | U71: =IF(U$9>=$F71,$H71*OFFSET(U$22,,1-$F71),) -> 0 | V71: =IF(V$9>=$F71,$H71*OFFSET(V$22,,1-$F71),) -> 0 | W71: =IF(W$9>=$F71,$H71*OFFSET(W$22,,1-$F71),) -> 0 | X71: =IF(X$9>=$F71,$H71*OFFSET(X$22,,1-$F71),) -> 0 | Y71: =IF(Y$9>=$F71,$H71*OFFSET(Y$22,,1-$F71),) -> 0 | Z71: =IF(Z$9>=$F71,$H71*OFFSET(Z$22,,1-$F71),) -> 0 | AA71: =IF(AA$9>=$F71,$H71*OFFSET(AA$22,,1-$F71),) -> 0 | AB71: =IF(AB$9>=$F71,$H71*OFFSET(AB$22,,1-$F71),) -> 0 | AC71: =IF(AC$9>=$F71,$H71*OFFSET(AC$22,,1-$F71),) -> 0 | AD71: =IF(AD$9>=$F71,$H71*OFFSET(AD$22,,1-$F71),) -> 0 | AE71: =IF(AE$9>=$F71,$H71*OFFSET(AE$22,,1-$F71),) -> 0 | AF71: =IF(AF$9>=$F71,$H71*OFFSET(AF$22,,1-$F71),) -> 0 | AG71: =IF(AG$9>=$F71,$H71*OFFSET(AG$22,,1-$F71),) -> 0 | AH71: =IF(AH$9>=$F71,$H71*OFFSET(AH$22,,1-$F71),) -> 0 | AI71: =IF(AI$9>=$F71,$H71*OFFSET(AI$22,,1-$F71),) -> 0 | AJ71: =IF(AJ$9>=$F71,$H71*OFFSET(AJ$22,,1-$F71),) -> 0 | AK71: =IF(AK$9>=$F71,$H71*OFFSET(AK$22,,1-$F71),) -> 0 | AL71: =IF(AL$9>=$F71,$H71*OFFSET(AL$22,,1-$F71),) -> 0 | AM71: =IF(AM$9>=$F71,$H71*OFFSET(AM$22,,1-$F71),) -> 0 | AN71: =IF(AN$9>=$F71,$H71*OFFSET(AN$22,,1-$F71),) -> 0 | AO71: =IF(AO$9>=$F71,$H71*OFFSET(AO$22,,1-$F71),) -> 0 | AP71: =IF(AP$9>=$F71,$H71*OFFSET(AP$22,,1-$F71),) -> 0 | AQ71: =IF(AQ$9>=$F71,$H71*OFFSET(AQ$22,,1-$F71),) -> 0 | AR71: =IF(AR$9>=$F71,$H71*OFFSET(AR$22,,1-$F71),) -> 0 | AS71: =IF(AS$9>=$F71,$H71*OFFSET(AS$22,,1-$F71),) -> 0 | AT71: =IF(AT$9>=$F71,$H71*OFFSET(AT$22,,1-$F71),) -> 0 | AU71: =IF(AU$9>=$F71,$H71*OFFSET(AU$22,,1-$F71),) -> 0 | AV71: =IF(AV$9>=$F71,$H71*OFFSET(AV$22,,1-$F71),) -> 12.41062573 | AW71: =IF(AW$9>=$F71,$H71*OFFSET(AW$22,,1-$F71),) -> 12.41062573
F72: =OFFSET($I$9,,ROWS($E$33:$E72)) -> 40 | H72: =OFFSET($I$26,,ROWS($E$33:$E72)) -> 620.5312864 | J72: =IF(J$9>=$F72,$H72*OFFSET(J$22,,1-$F72),) -> 0 | K72: =IF(K$9>=$F72,$H72*OFFSET(K$22,,1-$F72),) -> 0 | L72: =IF(L$9>=$F72,$H72*OFFSET(L$22,,1-$F72),) -> 0 | M72: =IF(M$9>=$F72,$H72*OFFSET(M$22,,1-$F72),) -> 0 | N72: =IF(N$9>=$F72,$H72*OFFSET(N$22,,1-$F72),) -> 0 | O72: =IF(O$9>=$F72,$H72*OFFSET(O$22,,1-$F72),) -> 0 | P72: =IF(P$9>=$F72,$H72*OFFSET(P$22,,1-$F72),) -> 0 | Q72: =IF(Q$9>=$F72,$H72*OFFSET(Q$22,,1-$F72),) -> 0 | R72: =IF(R$9>=$F72,$H72*OFFSET(R$22,,1-$F72),) -> 0 | S72: =IF(S$9>=$F72,$H72*OFFSET(S$22,,1-$F72),) -> 0 | T72: =IF(T$9>=$F72,$H72*OFFSET(T$22,,1-$F72),) -> 0 | U72: =IF(U$9>=$F72,$H72*OFFSET(U$22,,1-$F72),) -> 0 | V72: =IF(V$9>=$F72,$H72*OFFSET(V$22,,1-$F72),) -> 0 | W72: =IF(W$9>=$F72,$H72*OFFSET(W$22,,1-$F72),) -> 0 | X72: =IF(X$9>=$F72,$H72*OFFSET(X$22,,1-$F72),) -> 0 | Y72: =IF(Y$9>=$F72,$H72*OFFSET(Y$22,,1-$F72),) -> 0 | Z72: =IF(Z$9>=$F72,$H72*OFFSET(Z$22,,1-$F72),) -> 0 | AA72: =IF(AA$9>=$F72,$H72*OFFSET(AA$22,,1-$F72),) -> 0 | AB72: =IF(AB$9>=$F72,$H72*OFFSET(AB$22,,1-$F72),) -> 0 | AC72: =IF(AC$9>=$F72,$H72*OFFSET(AC$22,,1-$F72),) -> 0 | AD72: =IF(AD$9>=$F72,$H72*OFFSET(AD$22,,1-$F72),) -> 0 | AE72: =IF(AE$9>=$F72,$H72*OFFSET(AE$22,,1-$F72),) -> 0 | AF72: =IF(AF$9>=$F72,$H72*OFFSET(AF$22,,1-$F72),) -> 0 | AG72: =IF(AG$9>=$F72,$H72*OFFSET(AG$22,,1-$F72),) -> 0 | AH72: =IF(AH$9>=$F72,$H72*OFFSET(AH$22,,1-$F72),) -> 0 | AI72: =IF(AI$9>=$F72,$H72*OFFSET(AI$22,,1-$F72),) -> 0 | AJ72: =IF(AJ$9>=$F72,$H72*OFFSET(AJ$22,,1-$F72),) -> 0 | AK72: =IF(AK$9>=$F72,$H72*OFFSET(AK$22,,1-$F72),) -> 0 | AL72: =IF(AL$9>=$F72,$H72*OFFSET(AL$22,,1-$F72),) -> 0 | AM72: =IF(AM$9>=$F72,$H72*OFFSET(AM$22,,1-$F72),) -> 0 | AN72: =IF(AN$9>=$F72,$H72*OFFSET(AN$22,,1-$F72),) -> 0 | AO72: =IF(AO$9>=$F72,$H72*OFFSET(AO$22,,1-$F72),) -> 0 | AP72: =IF(AP$9>=$F72,$H72*OFFSET(AP$22,,1-$F72),) -> 0 | AQ72: =IF(AQ$9>=$F72,$H72*OFFSET(AQ$22,,1-$F72),) -> 0 | AR72: =IF(AR$9>=$F72,$H72*OFFSET(AR$22,,1-$F72),) -> 0 | AS72: =IF(AS$9>=$F72,$H72*OFFSET(AS$22,,1-$F72),) -> 0 | AT72: =IF(AT$9>=$F72,$H72*OFFSET(AT$22,,1-$F72),) -> 0 | AU72: =IF(AU$9>=$F72,$H72*OFFSET(AU$22,,1-$F72),) -> 0 | AV72: =IF(AV$9>=$F72,$H72*OFFSET(AV$22,,1-$F72),) -> 0 | AW72: =IF(AW$9>=$F72,$H72*OFFSET(AW$22,,1-$F72),) -> 24.82125146
F74: Total Depreciation | J74: =SUM(J33:J72) -> 12 | K74: =SUM(K33:K72) -> 16 | L74: 24 | M74: 40 | N74: 52.6 | O74: 56.8 | P74: 65.2 | Q74: 82 | R74: 95.23 | S74: 99.64 | T74: 108.46 | U74: 282.1 | V74: 179.9915 | W74: 232.622 | X74: 337.883 | Y74: 296.205 | Z74: 188.991075 | AA74: 244.2531 | AB74: 354.77715 | AC74: 311.01525 | AD74: 198.4406288 | AE74: 256.465755 | AF74: 372.5160075 | AG74: 326.5660125 | AH74: 208.3626602 | AI74: 269.2890427 | AJ74: 391.1418079 | AK74: 342.8943131 | AL74: 218.7807932 | AM74: 282.7534949 | AN74: 410.6988983 | AO74: 360.0390288 | AP74: 229.7198329 | AQ74: 296.8911696 | AR74: 431.2338432 | AS74: 378.0409802 | AT74: 241.2058245 | AU74: 311.7357281 | AV74: 452.7955353 | AW74: 396.9430292
D76: Control Account
E78: Opening Net Book Value | J78: =IF(J$9=1,,I81) -> 0 | K78: =IF(K$9=1,,J81) -> 288 | L78: 372 | M78: 548 | N78: 908 | O78: 1170.4 | P78: 1218.6 | Q78: 1363.4 | R78: 1701.4 | S78: 1936.92 | T78: 1947.53 | U78: 2059.57 | V78: 2218.47 | W78: 2385.766 | X78: 2268.9065 | Y78: 2162.5485 | Z78: 2329.3935 | AA78: 2505.0543 | AB78: 2382.351825 | AC78: 2270.675925 | AD78: 2445.863175 | AE78: 2630.307015 | AF78: 2501.469416 | AG78: 2384.209721 | AH78: 2568.156334 | AI78: 2761.822366 | AJ78: 2626.542887 | AK78: 2503.420207 | AL78: 2696.56415 | AM78: 2899.913484 | AN78: 2757.870031 | AO78: 2628.591218 | AP78: 2831.392358 | AQ78: 3044.909158 | AR78: 2895.763533 | AS78: 2760.020779 | AT78: 2972.961976 | AU78: 3197.154616 | AV78: 3040.55171 | AW78: 2898.021817
E79: Additions | J79: =J$26 -> 300 | K79: =K$26 -> 100 | L79: 200 | M79: 400 | N79: 315 | O79: 105 | P79: 210 | Q79: 420 | R79: 330.75 | S79: 110.25 | T79: 220.5 | U79: 441 | V79: 347.2875 | W79: 115.7625 | X79: 231.525 | Y79: 463.05 | Z79: 364.651875 | AA79: 121.550625 | AB79: 243.10125 | AC79: 486.2025 | AD79: 382.8844688 | AE79: 127.6281563 | AF79: 255.2563125 | AG79: 510.512625 | AH79: 402.0286922 | AI79: 134.0095641 | AJ79: 268.0191281 | AK79: 536.0382563 | AL79: 422.1301268 | AM79: 140.7100423 | AN79: 281.4200845 | AO79: 562.8401691 | AP79: 443.2366331 | AQ79: 147.7455444 | AR79: 295.4910888 | AS79: 590.9821775 | AT79: 465.3984648 | AU79: 155.1328216 | AV79: 310.2656432 | AW79: 620.5312864
E80: Depreciaton | J80: =-J74 -> -12 | K80: =-K74 -> -16 | L80: -24 | M80: -40 | N80: -52.6 | O80: -56.8 | P80: -65.2 | Q80: -82 | R80: -95.23 | S80: -99.64 | T80: -108.46 | U80: -282.1 | V80: -179.9915 | W80: -232.622 | X80: -337.883 | Y80: -296.205 | Z80: -188.991075 | AA80: -244.2531 | AB80: -354.77715 | AC80: -311.01525 | AD80: -198.4406288 | AE80: -256.465755 | AF80: -372.5160075 | AG80: -326.5660125 | AH80: -208.3626602 | AI80: -269.2890427 | AJ80: -391.1418079 | AK80: -342.8943131 | AL80: -218.7807932 | AM80: -282.7534949 | AN80: -410.6988983 | AO80: -360.0390288 | AP80: -229.7198329 | AQ80: -296.8911696 | AR80: -431.2338432 | AS80: -378.0409802 | AT80: -241.2058245 | AU80: -311.7357281 | AV80: -452.7955353 | AW80: -396.9430292
E81: Closing Net Book Value | J81: =SUM(J78:J80) -> 288 | K81: =SUM(K78:K80) -> 372 | L81: 548 | M81: 908 | N81: 1170.4 | O81: 1218.6 | P81: 1363.4 | Q81: 1701.4 | R81: 1936.92 | S81: 1947.53 | T81: 2059.57 | U81: 2218.47 | V81: 2385.766 | W81: 2268.9065 | X81: 2162.5485 | Y81: 2329.3935 | Z81: 2505.0543 | AA81: 2382.351825 | AB81: 2270.675925 | AC81: 2445.863175 | AD81: 2630.307015 | AE81: 2501.469416 | AF81: 2384.209721 | AG81: 2568.156334 | AH81: 2761.822366 | AI81: 2626.542887 | AJ81: 2503.420207 | AK81: 2696.56415 | AL81: 2899.913484 | AM81: 2757.870031 | AN81: 2628.591218 | AO81: 2831.392358 | AP81: 3044.909158 | AQ81: 2895.763533 | AR81: 2760.020779 | AS81: 2972.961976 | AT81: 3197.154616 | AU81: 3040.55171 | AV81: 2898.021817 | AW81: 3121.610075
E83: Depreciation Profile | J83: =IF(AND(J$9>$H$24,J78<>0),-J80/J78,) -> 0 | K83: =IF(AND(K$9>$H$24,K78<>0),-K80/K78,) -> 0 | L83: 0 | M83: 0 | N83: 0 | O83: 0 | P83: 0 | Q83: 0 | R83: 0 | S83: 0 | T83: 0 | U83: 0 | V83: 0.08113316835 | W83: 0.09750411398 | X83: 0.1489188735 | Y83: 0.1369703385 | Z83: 0.08113316835 | AA83: 0.09750411398 | AB83: 0.1489188735 | AC83: 0.1369703385 | AD83: 0.08113316835 | AE83: 0.09750411398 | AF83: 0.1489188735 | AG83: 0.1369703385 | AH83: 0.08113316835 | AI83: 0.09750411398 | AJ83: 0.1489188735 | AK83: 0.1369703385 | AL83: 0.08113316835 | AM83: 0.09750411398 | AN83: 0.1489188735 | AO83: 0.1369703385 | AP83: 0.08113316835 | AQ83: 0.09750411398 | AR83: 0.1489188735 | AS83: 0.1369703385 | AT83: 0.08113316835 | AU83: 0.09750411398 | AV83: 0.1489188735 | AW83: 0.1369703385
C86: =A1 -> Depreciating Existing Capex
D88: =E83 -> Depreciation Profile
E90: =E83 -> Depreciation Profile | J90: =SUM(OFFSET(J$33,1,$H$24,$H24,))/SUM(OFFSET($I$33,1,$H$24+1,$H$24,$H$24)) -> 0.07015140753 | K90: =SUM(OFFSET(K$33,1,$H$24,$H24,))/SUM(OFFSET($I$33,1,$H$24+1,$H$24,$H$24)) -> 0.08885933297 | L90: 0.1262751838 | M90: 0.1028123274 | N90: 0.05534096656 | O90: 0.07498428827 | P90: 0.1142709317 | Q90: 0.08963493237 | R90: 0.03979000354 | S90: 0.06041549133 | T90: 0.1016664669 | U90: 0.07579866764 | V90: 0 | W90: 0 | X90: 0 | Y90: 0 | Z90: 0 | AA90: 0 | AB90: 0 | AC90: 0 | AD90: 0 | AE90: 0 | AF90: 0 | AG90: 0 | AH90: 0 | AI90: 0 | AJ90: 0 | AK90: 0 | AL90: 0 | AM90: 0 | AN90: 0 | AO90: 0 | AP90: 0 | AQ90: 0 | AR90: 0 | AS90: 0 | AT90: 0 | AU90: 0 | AV90: 0 | AW90: 0
D92: Control Account
E94: =E78 -> Opening Net Book Value | J94: =IF(J$9=1,$H$17,I97) -> 10000 | K94: =IF(K$9=1,$H$17,J97) -> 9298.485925 | L94: 8409.892595 | M94: 7147.140757 | N94: 6119.017483 | O94: 5565.607818 | P94: 4815.764935 | Q94: 3673.055618 | R94: 2776.706294 | S94: 2378.806259 | T94: 1774.651346 | U94: 757.9866764 | V94: 0 | W94: 0 | X94: 0 | Y94: 0 | Z94: 0 | AA94: 0 | AB94: 0 | AC94: 0 | AD94: 0 | AE94: 0 | AF94: 0 | AG94: 0 | AH94: 0 | AI94: 0 | AJ94: 0 | AK94: 0 | AL94: 0 | AM94: 0 | AN94: 0 | AO94: 0 | AP94: 0 | AQ94: 0 | AR94: 0 | AS94: 0 | AT94: 0 | AU94: 0 | AV94: 0 | AW94: 0
E95: =E79 -> Additions
E96: Depreciaton | J96: =IF(J$9=$H$24,-J94,-J90*$H$17) -> -701.5140753 | K96: =IF(K$9=$H$24,-K94,-K90*$H$17) -> -888.5933297 | L96: -1262.751838 | M96: -1028.123274 | N96: -553.4096656 | O96: -749.8428827 | P96: -1142.709317 | Q96: -896.3493237 | R96: -397.9000354 | S96: -604.1549133 | T96: -1016.664669 | U96: -757.9866764 | V96: 0 | W96: 0 | X96: 0 | Y96: 0 | Z96: 0 | AA96: 0 | AB96: 0 | AC96: 0 | AD96: 0 | AE96: 0 | AF96: 0 | AG96: 0 | AH96: 0 | AI96: 0 | AJ96: 0 | AK96: 0 | AL96: 0 | AM96: 0 | AN96: 0 | AO96: 0 | AP96: 0 | AQ96: 0 | AR96: 0 | AS96: 0 | AT96: 0 | AU96: 0 | AV96: 0 | AW96: 0
E97: Closing Net Book Value | J97: =SUM(J94:J96) -> 9298.485925 | K97: =SUM(K94:K96) -> 8409.892595 | L97: 7147.140757 | M97: 6119.017483 | N97: 5565.607818 | O97: 4815.764935 | P97: 3673.055618 | Q97: 2776.706294 | R97: 2378.806259 | S97: 1774.651346 | T97: 757.9866764 | U97: 0 | V97: 0 | W97: 0 | X97: 0 | Y97: 0 | Z97: 0 | AA97: 0 | AB97: 0 | AC97: 0 | AD97: 0 | AE97: 0 | AF97: 0 | AG97: 0 | AH97: 0 | AI97: 0 | AJ97: 0 | AK97: 0 | AL97: 0 | AM97: 0 | AN97: 0 | AO97: 0 | AP97: 0 | AQ97: 0 | AR97: 0 | AS97: 0 | AT97: 0 | AU97: 0 | AV97: 0 | AW97: 0
B100: =MAX($B$10:$B99)+1 -> 2 | C100: Shorthand Method
C102: Assumptions
D104: Existing Capex
E106: =E17 -> Opening Net Book Value | H106: =H17 -> 10000
E107: =E18 -> Spend Profile | J107: =J18 -> 0.3 | K107: =K18 -> 0.1 | L107: =L18 -> 0.2 | M107: =M18 -> 0.4
E109: =E20 -> Assumed Growth in Existing Capex | H109: =H20 -> 0.05
E111: ="Extrapolated "&E107 -> Extrapolated Spend Profile | J111: =IF(J$9<=$H$115+1,IF(J$9<=Quarters_in_Year,J107,F111*(1+$H$109)),) -> 0.3 | K111: 0.1 | L111: 0.2 | M111: 0.4 | N111: 0.315 | O111: 0.105 | P111: 0.21 | Q111: 0.42 | R111: 0.33075 | S111: 0.11025 | T111: 0.2205 | U111: 0.441 | V111: 0.3472875 | W111: 0 | X111: 0 | Y111: 0 | Z111: 0 | AA111: 0 | AB111: 0 | AC111: 0 | AD111: 0 | AE111: 0 | AF111: 0 | AG111: 0 | AH111: 0 | AI111: 0 | AJ111: 0 | AK111: 0 | AL111: 0 | AM111: 0 | AN111: 0 | AO111: 0 | AP111: 0 | AQ111: 0 | AR111: 0 | AS111: 0 | AT111: 0 | AU111: 0 | AV111: 0 | AW111: 0
E113: =E22 -> Depreciation Profile | J113: =J22 -> 0.04 | K113: =K22 -> 0.04 | L113: 0.04 | M113: 0.04 | N113: 0.04 | O113: 0.04 | P113: 0.04 | Q113: 0.04 | R113: 0.04 | S113: 0.04 | T113: 0.04 | U113: 0.56 | V113: 0 | W113: 0 | X113: 0 | Y113: 0 | Z113: 0 | AA113: 0 | AB113: 0 | AC113: 0 | AD113: 0 | AE113: 0 | AF113: 0 | AG113: 0 | AH113: 0 | AI113: 0 | AJ113: 0 | AK113: 0 | AL113: 0 | AM113: 0 | AN113: 0 | AO113: 0 | AP113: 0 | AQ113: 0 | AR113: 0 | AS113: 0 | AT113: 0 | AU113: 0 | AV113: 0 | AW113: 0
E115: =E24 -> Final Period | H115: =H24 -> 12
E117: ="Reverse "&E113 -> Reverse Depreciation Profile | J117: =INDEX($J$113:$AW$113,MAX($J$9:$AW$9-J$9+1)) -> 0 | K117: =INDEX($J$113:$AW$113,MAX($J$9:$AW$9-K$9+1)) -> 0 | L117: =INDEX($J$113:$AW$113,MAX($J$9:$AW$9-L$9+1)) -> 0 | M117: =INDEX($J$113:$AW$113,MAX($J$9:$AW$9-M$9+1)) -> 0 | N117: =INDEX($J$113:$AW$113,MAX($J$9:$AW$9-N$9+1)) -> 0 | O117: =INDEX($J$113:$AW$113,MAX($J$9:$AW$9-O$9+1)) -> 0 | P117: =INDEX($J$113:$AW$113,MAX($J$9:$AW$9-P$9+1)) -> 0 | Q117: =INDEX($J$113:$AW$113,MAX($J$9:$AW$9-Q$9+1)) -> 0 | R117: =INDEX($J$113:$AW$113,MAX($J$9:$AW$9-R$9+1)) -> 0 | S117: =INDEX($J$113:$AW$113,MAX($J$9:$AW$9-S$9+1)) -> 0 | T117: =INDEX($J$113:$AW$113,MAX($J$9:$AW$9-T$9+1)) -> 0 | U117: =INDEX($J$113:$AW$113,MAX($J$9:$AW$9-U$9+1)) -> 0 | V117: =INDEX($J$113:$AW$113,MAX($J$9:$AW$9-V$9+1)) -> 0 | W117: =INDEX($J$113:$AW$113,MAX($J$9:$AW$9-W$9+1)) -> 0 | X117: =INDEX($J$113:$AW$113,MAX($J$9:$AW$9-X$9+1)) -> 0 | Y117: =INDEX($J$113:$AW$113,MAX($J$9:$AW$9-Y$9+1)) -> 0 | Z117: =INDEX($J$113:$AW$113,MAX($J$9:$AW$9-Z$9+1)) -> 0 | AA117: =INDEX($J$113:$AW$113,MAX($J$9:$AW$9-AA$9+1)) -> 0 | AB117: =INDEX($J$113:$AW$113,MAX($J$9:$AW$9-AB$9+1)) -> 0 | AC117: =INDEX($J$113:$AW$113,MAX($J$9:$AW$9-AC$9+1)) -> 0 | AD117: =INDEX($J$113:$AW$113,MAX($J$9:$AW$9-AD$9+1)) -> 0 | AE117: =INDEX($J$113:$AW$113,MAX($J$9:$AW$9-AE$9+1)) -> 0 | AF117: =INDEX($J$113:$AW$113,MAX($J$9:$AW$9-AF$9+1)) -> 0 | AG117: =INDEX($J$113:$AW$113,MAX($J$9:$AW$9-AG$9+1)) -> 0 | AH117: =INDEX($J$113:$AW$113,MAX($J$9:$AW$9-AH$9+1)) -> 0 | AI117: =INDEX($J$113:$AW$113,MAX($J$9:$AW$9-AI$9+1)) -> 0 | AJ117: =INDEX($J$113:$AW$113,MAX($J$9:$AW$9-AJ$9+1)) -> 0 | AK117: =INDEX($J$113:$AW$113,MAX($J$9:$AW$9-AK$9+1)) -> 0 | AL117: =INDEX($J$113:$AW$113,MAX($J$9:$AW$9-AL$9+1)) -> 0.56 | AM117: =INDEX($J$113:$AW$113,MAX($J$9:$AW$9-AM$9+1)) -> 0.04 | AN117: =INDEX($J$113:$AW$113,MAX($J$9:$AW$9-AN$9+1)) -> 0.04 | AO117: =INDEX($J$113:$AW$113,MAX($J$9:$AW$9-AO$9+1)) -> 0.04 | AP117: =INDEX($J$113:$AW$113,MAX($J$9:$AW$9-AP$9+1)) -> 0.04 | AQ117: =INDEX($J$113:$AW$113,MAX($J$9:$AW$9-AQ$9+1)) -> 0.04 | AR117: =INDEX($J$113:$AW$113,MAX($J$9:$AW$9-AR$9+1)) -> 0.04 | AS117: =INDEX($J$113:$AW$113,MAX($J$9:$AW$9-AS$9+1)) -> 0.04 | AT117: =INDEX($J$113:$AW$113,MAX($J$9:$AW$9-AT$9+1)) -> 0.04 | AU117: =INDEX($J$113:$AW$113,MAX($J$9:$AW$9-AU$9+1)) -> 0.04 | AV117: =INDEX($J$113:$AW$113,MAX($J$9:$AW$9-AV$9+1)) -> 0.04 | AW117: =INDEX($J$113:$AW$113,MAX($J$9:$AW$9-AW$9+1)) -> 0.04
E119: Multiplied Profile | J119: =SUMPRODUCT(OFFSET($J$111,,,,J$9)*OFFSET($AW$117,,,,-J$9)) -> 0.012 | K119: =SUMPRODUCT(OFFSET($J$111,,,,K$9)*OFFSET($AW$117,,,,-K$9)) -> 0.016 | L119: =SUMPRODUCT(OFFSET($J$111,,,,L$9)*OFFSET($AW$117,,,,-L$9)) -> 0.024 | M119: =SUMPRODUCT(OFFSET($J$111,,,,M$9)*OFFSET($AW$117,,,,-M$9)) -> 0.04 | N119: =SUMPRODUCT(OFFSET($J$111,,,,N$9)*OFFSET($AW$117,,,,-N$9)) -> 0.0526 | O119: =SUMPRODUCT(OFFSET($J$111,,,,O$9)*OFFSET($AW$117,,,,-O$9)) -> 0.0568 | P119: =SUMPRODUCT(OFFSET($J$111,,,,P$9)*OFFSET($AW$117,,,,-P$9)) -> 0.0652 | Q119: =SUMPRODUCT(OFFSET($J$111,,,,Q$9)*OFFSET($AW$117,,,,-Q$9)) -> 0.082 | R119: =SUMPRODUCT(OFFSET($J$111,,,,R$9)*OFFSET($AW$117,,,,-R$9)) -> 0.09523 | S119: =SUMPRODUCT(OFFSET($J$111,,,,S$9)*OFFSET($AW$117,,,,-S$9)) -> 0.09964 | T119: =SUMPRODUCT(OFFSET($J$111,,,,T$9)*OFFSET($AW$117,,,,-T$9)) -> 0.10846 | U119: =SUMPRODUCT(OFFSET($J$111,,,,U$9)*OFFSET($AW$117,,,,-U$9)) -> 0.2821 | V119: =SUMPRODUCT(OFFSET($J$111,,,,V$9)*OFFSET($AW$117,,,,-V$9)) -> 0.1799915 | W119: =SUMPRODUCT(OFFSET($J$111,,,,W$9)*OFFSET($AW$117,,,,-W$9)) -> 0.2279915 | X119: =SUMPRODUCT(OFFSET($J$111,,,,X$9)*OFFSET($AW$117,,,,-X$9)) -> 0.3239915 | Y119: =SUMPRODUCT(OFFSET($J$111,,,,Y$9)*OFFSET($AW$117,,,,-Y$9)) -> 0.2637915 | Z119: =SUMPRODUCT(OFFSET($J$111,,,,Z$9)*OFFSET($AW$117,,,,-Z$9)) -> 0.1419915 | AA119: =SUMPRODUCT(OFFSET($J$111,,,,AA$9)*OFFSET($AW$117,,,,-AA$9)) -> 0.1923915 | AB119: =SUMPRODUCT(OFFSET($J$111,,,,AB$9)*OFFSET($AW$117,,,,-AB$9)) -> 0.2931915 | AC119: =SUMPRODUCT(OFFSET($J$111,,,,AC$9)*OFFSET($AW$117,,,,-AC$9)) -> 0.2299815 | AD119: =SUMPRODUCT(OFFSET($J$111,,,,AD$9)*OFFSET($AW$117,,,,-AD$9)) -> 0.1020915 | AE119: =SUMPRODUCT(OFFSET($J$111,,,,AE$9)*OFFSET($AW$117,,,,-AE$9)) -> 0.1550115 | AF119: =SUMPRODUCT(OFFSET($J$111,,,,AF$9)*OFFSET($AW$117,,,,-AF$9)) -> 0.2608515 | AG119: =SUMPRODUCT(OFFSET($J$111,,,,AG$9)*OFFSET($AW$117,,,,-AG$9)) -> 0.194481 | AH119: =SUMPRODUCT(OFFSET($J$111,,,,AH$9)*OFFSET($AW$117,,,,-AH$9)) -> 0 | AI119: =SUMPRODUCT(OFFSET($J$111,,,,AI$9)*OFFSET($AW$117,,,,-AI$9)) -> 0 | AJ119: =SUMPRODUCT(OFFSET($J$111,,,,AJ$9)*OFFSET($AW$117,,,,-AJ$9)) -> 0 | AK119: =SUMPRODUCT(OFFSET($J$111,,,,AK$9)*OFFSET($AW$117,,,,-AK$9)) -> 0 | AL119: =SUMPRODUCT(OFFSET($J$111,,,,AL$9)*OFFSET($AW$117,,,,-AL$9)) -> 0 | AM119: =SUMPRODUCT(OFFSET($J$111,,,,AM$9)*OFFSET($AW$117,,,,-AM$9)) -> 0 | AN119: =SUMPRODUCT(OFFSET($J$111,,,,AN$9)*OFFSET($AW$117,,,,-AN$9)) -> 0 | AO119: =SUMPRODUCT(OFFSET($J$111,,,,AO$9)*OFFSET($AW$117,,,,-AO$9)) -> 0 | AP119: =SUMPRODUCT(OFFSET($J$111,,,,AP$9)*OFFSET($AW$117,,,,-AP$9)) -> 0 | AQ119: =SUMPRODUCT(OFFSET($J$111,,,,AQ$9)*OFFSET($AW$117,,,,-AQ$9)) -> 0 | AR119: =SUMPRODUCT(OFFSET($J$111,,,,AR$9)*OFFSET($AW$117,,,,-AR$9)) -> 0 | AS119: =SUMPRODUCT(OFFSET($J$111,,,,AS$9)*OFFSET($AW$117,,,,-AS$9)) -> 0 | AT119: =SUMPRODUCT(OFFSET($J$111,,,,AT$9)*OFFSET($AW$117,,,,-AT$9)) -> 0 | AU119: =SUMPRODUCT(OFFSET($J$111,,,,AU$9)*OFFSET($AW$117,,,,-AU$9)) -> 0 | AV119: =SUMPRODUCT(OFFSET($J$111,,,,AV$9)*OFFSET($AW$117,,,,-AV$9)) -> 0 | AW119: =SUMPRODUCT(OFFSET($J$111,,,,AW$9)*OFFSET($AW$117,,,,-AW$9)) -> 0
E121: =E113 -> Depreciation Profile | J121: =IF(J$9<=$H$115,OFFSET(J$119,,$H$115)/SUM(OFFSET($J$119,,$H$115,,$H$115)),) -> 0.07015140753 | K121: =IF(K$9<=$H$115,OFFSET(K$119,,$H$115)/SUM(OFFSET($J$119,,$H$115,,$H$115)),) -> 0.08885933297 | L121: =IF(L$9<=$H$115,OFFSET(L$119,,$H$115)/SUM(OFFSET($J$119,,$H$115,,$H$115)),) -> 0.1262751838 | M121: =IF(M$9<=$H$115,OFFSET(M$119,,$H$115)/SUM(OFFSET($J$119,,$H$115,,$H$115)),) -> 0.1028123274 | N121: =IF(N$9<=$H$115,OFFSET(N$119,,$H$115)/SUM(OFFSET($J$119,,$H$115,,$H$115)),) -> 0.05534096656 | O121: =IF(O$9<=$H$115,OFFSET(O$119,,$H$115)/SUM(OFFSET($J$119,,$H$115,,$H$115)),) -> 0.07498428827 | P121: =IF(P$9<=$H$115,OFFSET(P$119,,$H$115)/SUM(OFFSET($J$119,,$H$115,,$H$115)),) -> 0.1142709317 | Q121: =IF(Q$9<=$H$115,OFFSET(Q$119,,$H$115)/SUM(OFFSET($J$119,,$H$115,,$H$115)),) -> 0.08963493237 | R121: =IF(R$9<=$H$115,OFFSET(R$119,,$H$115)/SUM(OFFSET($J$119,,$H$115,,$H$115)),) -> 0.03979000354 | S121: =IF(S$9<=$H$115,OFFSET(S$119,,$H$115)/SUM(OFFSET($J$119,,$H$115,,$H$115)),) -> 0.06041549133 | T121: =IF(T$9<=$H$115,OFFSET(T$119,,$H$115)/SUM(OFFSET($J$119,,$H$115,,$H$115)),) -> 0.1016664669 | U121: =IF(U$9<=$H$115,OFFSET(U$119,,$H$115)/SUM(OFFSET($J$119,,$H$115,,$H$115)),) -> 0.07579866764 | V121: =IF(V$9<=$H$115,OFFSET(V$119,,$H$115)/SUM(OFFSET($J$119,,$H$115,,$H$115)),) -> 0 | W121: =IF(W$9<=$H$115,OFFSET(W$119,,$H$115)/SUM(OFFSET($J$119,,$H$115,,$H$115)),) -> 0 | X121: =IF(X$9<=$H$115,OFFSET(X$119,,$H$115)/SUM(OFFSET($J$119,,$H$115,,$H$115)),) -> 0 | Y121: =IF(Y$9<=$H$115,OFFSET(Y$119,,$H$115)/SUM(OFFSET($J$119,,$H$115,,$H$115)),) -> 0 | Z121: =IF(Z$9<=$H$115,OFFSET(Z$119,,$H$115)/SUM(OFFSET($J$119,,$H$115,,$H$115)),) -> 0 | AA121: =IF(AA$9<=$H$115,OFFSET(AA$119,,$H$115)/SUM(OFFSET($J$119,,$H$115,,$H$115)),) -> 0 | AB121: =IF(AB$9<=$H$115,OFFSET(AB$119,,$H$115)/SUM(OFFSET($J$119,,$H$115,,$H$115)),) -> 0 | AC121: =IF(AC$9<=$H$115,OFFSET(AC$119,,$H$115)/SUM(OFFSET($J$119,,$H$115,,$H$115)),) -> 0 | AD121: =IF(AD$9<=$H$115,OFFSET(AD$119,,$H$115)/SUM(OFFSET($J$119,,$H$115,,$H$115)),) -> 0 | AE121: =IF(AE$9<=$H$115,OFFSET(AE$119,,$H$115)/SUM(OFFSET($J$119,,$H$115,,$H$115)),) -> 0 | AF121: =IF(AF$9<=$H$115,OFFSET(AF$119,,$H$115)/SUM(OFFSET($J$119,,$H$115,,$H$115)),) -> 0 | AG121: =IF(AG$9<=$H$115,OFFSET(AG$119,,$H$115)/SUM(OFFSET($J$119,,$H$115,,$H$115)),) -> 0 | AH121: =IF(AH$9<=$H$115,OFFSET(AH$119,,$H$115)/SUM(OFFSET($J$119,,$H$115,,$H$115)),) -> 0 | AI121: =IF(AI$9<=$H$115,OFFSET(AI$119,,$H$115)/SUM(OFFSET($J$119,,$H$115,,$H$115)),) -> 0 | AJ121: =IF(AJ$9<=$H$115,OFFSET(AJ$119,,$H$115)/SUM(OFFSET($J$119,,$H$115,,$H$115)),) -> 0 | AK121: =IF(AK$9<=$H$115,OFFSET(AK$119,,$H$115)/SUM(OFFSET($J$119,,$H$115,,$H$115)),) -> 0 | AL121: =IF(AL$9<=$H$115,OFFSET(AL$119,,$H$115)/SUM(OFFSET($J$119,,$H$115,,$H$115)),) -> 0 | AM121: =IF(AM$9<=$H$115,OFFSET(AM$119,,$H$115)/SUM(OFFSET($J$119,,$H$115,,$H$115)),) -> 0 | AN121: =IF(AN$9<=$H$115,OFFSET(AN$119,,$H$115)/SUM(OFFSET($J$119,,$H$115,,$H$115)),) -> 0 | AO121: =IF(AO$9<=$H$115,OFFSET(AO$119,,$H$115)/SUM(OFFSET($J$119,,$H$115,,$H$115)),) -> 0 | AP121: =IF(AP$9<=$H$115,OFFSET(AP$119,,$H$115)/SUM(OFFSET($J$119,,$H$115,,$H$115)),) -> 0 | AQ121: =IF(AQ$9<=$H$115,OFFSET(AQ$119,,$H$115)/SUM(OFFSET($J$119,,$H$115,,$H$115)),) -> 0 | AR121: =IF(AR$9<=$H$115,OFFSET(AR$119,,$H$115)/SUM(OFFSET($J$119,,$H$115,,$H$115)),) -> 0 | AS121: =IF(AS$9<=$H$115,OFFSET(AS$119,,$H$115)/SUM(OFFSET($J$119,,$H$115,,$H$115)),) -> 0 | AT121: =IF(AT$9<=$H$115,OFFSET(AT$119,,$H$115)/SUM(OFFSET($J$119,,$H$115,,$H$115)),) -> 0 | AU121: =IF(AU$9<=$H$115,OFFSET(AU$119,,$H$115)/SUM(OFFSET($J$119,,$H$115,,$H$115)),) -> 0 | AV121: =IF(AV$9<=$H$115,OFFSET(AV$119,,$H$115)/SUM(OFFSET($J$119,,$H$115,,$H$115)),) -> 0 | AW121: =IF(AW$9<=$H$115,OFFSET(AW$119,,$H$115)/SUM(OFFSET($J$119,,$H$115,,$H$115)),) -> 0
D124: =D92 -> Control Account
E126: =E94 -> Opening Net Book Value | J126: =IF(J$9=1,$H$17,I129) -> 10000 | K126: =IF(K$9=1,$H$17,J129) -> 9298.485925 | L126: 8409.892595 | M126: 7147.140757 | N126: 6119.017483 | O126: 5565.607818 | P126: 4815.764935 | Q126: 3673.055618 | R126: 2776.706294 | S126: 2378.806259 | T126: 1774.651346 | U126: 757.9866764 | V126: 0 | W126: 0 | X126: 0 | Y126: 0 | Z126: 0 | AA126: 0 | AB126: 0 | AC126: 0 | AD126: 0 | AE126: 0 | AF126: 0 | AG126: 0 | AH126: 0 | AI126: 0 | AJ126: 0 | AK126: 0 | AL126: 0 | AM126: 0 | AN126: 0 | AO126: 0 | AP126: 0 | AQ126: 0 | AR126: 0 | AS126: 0 | AT126: 0 | AU126: 0 | AV126: 0 | AW126: 0
E127: =E95 -> Additions
E128: Depreciaton | J128: =IF(J$9=$H$115,-J126,-J121*$H$106) -> -701.5140753 | K128: =IF(K$9=$H$115,-K126,-K121*$H$106) -> -888.5933297 | L128: -1262.751838 | M128: -1028.123274 | N128: -553.4096656 | O128: -749.8428827 | P128: -1142.709317 | Q128: -896.3493237 | R128: -397.9000354 | S128: -604.1549133 | T128: -1016.664669 | U128: -757.9866764 | V128: 0 | W128: 0 | X128: 0 | Y128: 0 | Z128: 0 | AA128: 0 | AB128: 0 | AC128: 0 | AD128: 0 | AE128: 0 | AF128: 0 | AG128: 0 | AH128: 0 | AI128: 0 | AJ128: 0 | AK128: 0 | AL128: 0 | AM128: 0 | AN128: 0 | AO128: 0 | AP128: 0 | AQ128: 0 | AR128: 0 | AS128: 0 | AT128: 0 | AU128: 0 | AV128: 0 | AW128: 0
E129: Closing Net Book Value | J129: =SUM(J126:J128) -> 9298.485925 | K129: =SUM(K126:K128) -> 8409.892595 | L129: 7147.140757 | M129: 6119.017483 | N129: 5565.607818 | O129: 4815.764935 | P129: 3673.055618 | Q129: 2776.706294 | R129: 2378.806259 | S129: 1774.651346 | T129: 757.9866764 | U129: 0 | V129: 0 | W129: 0 | X129: 0 | Y129: 0 | Z129: 0 | AA129: 0 | AB129: 0 | AC129: 0 | AD129: 0 | AE129: 0 | AF129: 0 | AG129: 0 | AH129: 0 | AI129: 0 | AJ129: 0 | AK129: 0 | AL129: 0 | AM129: 0 | AN129: 0 | AO129: 0 | AP129: 0 | AQ129: 0 | AR129: 0 | AS129: 0 | AT129: 0 | AU129: 0 | AV129: 0 | AW129: 0

Sheet Timing
A1: =IF(ISERROR(RIGHT(CELL("filename",A1),LEN(CELL("filename",A1))-FIND("]",CELL("filename",A1)))), "", RIGHT(CELL("filename",A1),LEN(CELL("filename",A1))-FIND("]",CELL("filename",A1)))) -> Timing
A2: =Model_Name -> SP Depreciating Existing Capex Example.xlsm
A3: Navigator
B4: Error Checks: | F4: =Overall_Error_Check -> 0
J5: =J$7 -> 2020-03-31 | K5: =K$7 -> 2020-06-30 | L5: =L$7 -> 2020-09-30 | M5: =M$7 -> 2020-12-31 | N5: =N$7 -> 2021-03-31 | O5: =O$7 -> 2021-06-30 | P5: 2021-09-30 | Q5: 2021-12-31 | R5: 2022-03-31 | S5: 2022-06-30 | T5: 2022-09-30 | U5: 2022-12-31 | V5: 2023-03-31 | W5: 2023-06-30 | X5: 2023-09-30 | Y5: 2023-12-31 | Z5: 2024-03-31 | AA5: 2024-06-30 | AB5: 2024-09-30 | AC5: 2024-12-31 | AD5: 2025-03-31 | AE5: 2025-06-30 | AF5: 2025-09-30 | AG5: 2025-12-31 | AH5: 2026-03-31 | AI5: 2026-06-30 | AJ5: 2026-09-30 | AK5: 2026-12-31 | AL5: 2027-03-31 | AM5: 2027-06-30 | AN5: 2027-09-30 | AO5: 2027-12-31 | AP5: 2028-03-31 | AQ5: 2028-06-30 | AR5: 2028-09-30 | AS5: 2028-12-31 | AT5: 2029-03-31 | AU5: 2029-06-30 | AV5: 2029-09-30 | AW5: 2029-12-31
C6: Start Date | J6: =IF(J$9=1,Model_Start_Date,I$7+1) -> 2020-01-01 | K6: 2020-04-01 | L6: 2020-07-01 | M6: 2020-10-01 | N6: 2021-01-01 | O6: 2021-04-01 | P6: 2021-07-01 | Q6: 2021-10-01 | R6: 2022-01-01 | S6: 2022-04-01 | T6: 2022-07-01 | U6: 2022-10-01 | V6: 2023-01-01 | W6: 2023-04-01 | X6: 2023-07-01 | Y6: 2023-10-01 | Z6: 2024-01-01 | AA6: 2024-04-01 | AB6: 2024-07-01 | AC6: 2024-10-01 | AD6: 2025-01-01 | AE6: 2025-04-01 | AF6: 2025-07-01 | AG6: 2025-10-01 | AH6: 2026-01-01 | AI6: 2026-04-01 | AJ6: 2026-07-01 | AK6: 2026-10-01 | AL6: 2027-01-01 | AM6: 2027-04-01 | AN6: 2027-07-01 | AO6: 2027-10-01 | AP6: 2028-01-01 | AQ6: 2028-04-01 | AR6: 2028-07-01 | AS6: 2028-10-01 | AT6: 2029-01-01 | AU6: 2029-04-01 | AV6: 2029-07-01 | AW6: 2029-10-01
C7: End Date | J7: =EOMONTH(J$6,MOD(Periodicity+Reporting_Month_Factor-MONTH(J$6),Periodicity)) -> 2020-03-31 | K7: 2020-06-30 | L7: 2020-09-30 | M7: 2020-12-31 | N7: 2021-03-31 | O7: 2021-06-30 | P7: 2021-09-30 | Q7: 2021-12-31 | R7: 2022-03-31 | S7: 2022-06-30 | T7: 2022-09-30 | U7: 2022-12-31 | V7: 2023-03-31 | W7: 2023-06-30 | X7: 2023-09-30 | Y7: 2023-12-31 | Z7: 2024-03-31 | AA7: 2024-06-30 | AB7: 2024-09-30 | AC7: 2024-12-31 | AD7: 2025-03-31 | AE7: 2025-06-30 | AF7: 2025-09-30 | AG7: 2025-12-31 | AH7: 2026-03-31 | AI7: 2026-06-30 | AJ7: 2026-09-30 | AK7: 2026-12-31 | AL7: 2027-03-31 | AM7: 2027-06-30 | AN7: 2027-09-30 | AO7: 2027-12-31 | AP7: 2028-03-31 | AQ7: 2028-06-30 | AR7: 2028-09-30 | AS7: 2028-12-31 | AT7: 2029-03-31 | AU7: 2029-06-30 | AV7: 2029-09-30 | AW7: 2029-12-31
C8: Number of Days | J8: =J7-J6+1 -> 91 | K8: =K7-K6+1 -> 91 | L8: 92 | M8: 92 | N8: 90 | O8: =O7-O6+1 -> 91 | P8: 92 | Q8: 92 | R8: 90 | S8: 91 | T8: 92 | U8: 92 | V8: 90 | W8: 91 | X8: 92 | Y8: 92 | Z8: 91 | AA8: 91 | AB8: 92 | AC8: 92 | AD8: 90 | AE8: 91 | AF8: 92 | AG8: 92 | AH8: 90 | AI8: 91 | AJ8: 92 | AK8: 92 | AL8: 90 | AM8: 91 | AN8: 92 | AO8: 92 | AP8: 91 | AQ8: 91 | AR8: 92 | AS8: 92 | AT8: 90 | AU8: 91 | AV8: 92 | AW8: 92
C9: Counter | J9: =N(I$9)+1 -> 1 | K9: =N(J$9)+1 -> 2 | L9: 3 | M9: 4 | N9: 5 | O9: =N(N$9)+1 -> 6 | P9: =N(O$9)+1 -> 7 | Q9: =N(P$9)+1 -> 8 | R9: =N(Q$9)+1 -> 9 | S9: =N(R$9)+1 -> 10 | T9: =N(S$9)+1 -> 11 | U9: =N(T$9)+1 -> 12 | V9: =N(U$9)+1 -> 13 | W9: =N(V$9)+1 -> 14 | X9: =N(W$9)+1 -> 15 | Y9: =N(X$9)+1 -> 16 | Z9: =N(Y$9)+1 -> 17 | AA9: =N(Z$9)+1 -> 18 | AB9: =N(AA$9)+1 -> 19 | AC9: =N(AB$9)+1 -> 20 | AD9: =N(AC$9)+1 -> 21 | AE9: =N(AD$9)+1 -> 22 | AF9: =N(AE$9)+1 -> 23 | AG9: =N(AF$9)+1 -> 24 | AH9: =N(AG$9)+1 -> 25 | AI9: =N(AH$9)+1 -> 26 | AJ9: =N(AI$9)+1 -> 27 | AK9: =N(AJ$9)+1 -> 28 | AL9: =N(AK$9)+1 -> 29 | AM9: =N(AL$9)+1 -> 30 | AN9: =N(AM$9)+1 -> 31 | AO9: =N(AN$9)+1 -> 32 | AP9: =N(AO$9)+1 -> 33 | AQ9: =N(AP$9)+1 -> 34 | AR9: =N(AQ$9)+1 -> 35 | AS9: =N(AR$9)+1 -> 36 | AT9: =N(AS$9)+1 -> 37 | AU9: =N(AT$9)+1 -> 38 | AV9: =N(AU$9)+1 -> 39 | AW9: =N(AV$9)+1 -> 40
B11: =MAX($B$10:$B10)+1 -> 1 | C11: Timing Assumptions
C13: Data (do not change once modelling has commenced)
D15: Model Start Date | H15: =DATE(YEAR(TODAY())+1,1,1) -> 2020-01-01
D17: Number of Months in a Full Period | H17: 3
D19: Example Reporting Month | H19: 12 | I19: ="e.g. "&TEXT(DATE(YEAR(Model_Start_Date)+IF(Example_Reporting_Month<MONTH(Model_Start_Date),1,0),Example_Reporting_Month+1,1)-1,"dd-Mmm-yy") -> e.g. 31-Dec-20
D21: Reporting Month Factor | H21: =MOD(Example_Reporting_Month-1,Periodicity)+1 -> 3
D23: Months per Year | H23: 12

Sheet Error Checks
A1: =IF(ISERROR(RIGHT(CELL("filename",A1),LEN(CELL("filename",A1))-FIND("]",CELL("filename",A1)))), "", RIGHT(CELL("filename",A1),LEN(CELL("filename",A1))-FIND("]",CELL("filename",A1)))) -> Error Checks
A2: =Model_Name -> SP Depreciating Existing Capex Example.xlsm
A3: Navigator
B4: Error Checks: | F4: =Overall_Error_Check -> 0
B6: =MAX($B$5:$B5)+1 -> 1 | C6: Error Checks
C8: Summary of Errors
D10: Assumptions
E12: Unused
E17: =C8 -> Summary of Errors | I17: =MIN(1,SUM(I11:I15)) -> 0
